Workbook

Sheet 1_aciklikli
B2: ÇERÇEVE CROSS (1 AÇIKLIKLI) (atalet momentleri etkin rijitlik çarpanı ile çarpılmış) (inş.müh. Gürcan BERBEROĞLU tel: 0532 366 02 04 www.betoncelik.com )
I3: pas payı d ' = | M3: 0.03 | O3: m | V3: dikkat sadece sarı hücrelere rakam giriniz.
G4: 0.5 | I4: m | Q4: 0.5 | S4: m | AK4: kiriş için etkin rijitlik çarpanı = | AS4: 0.35
AK5: kolon için etkin rijitlik çarpanı = | AS5: 0.7
I6: m | S6: m
I7: 0.6 | S7: 0.6
AK8: Not: kolon ve kiriş atalet momentleri etkin rijitlik çarpanı ile çarpılmıştır.
G11: dm4 | Q11: dm4
D13: =SUM(D14:E18) -> -13.42730638 | G13: =(I7*G4^3/12*10000)*AS5 -> 43.75 | I13: =SUM(I14:J18) -> -12.36725587 | Q13: =(S7*Q4^3/12*10000)*AS5 -> 43.75
D14: =-I30*G22 -> -6.10130797e-06 | I14: =-I30*G18 -> -5.619625762e-06 | N14: =SUM(N15:O18) -> 12.02880654 | S14: =SUM(S15:T18) -> 11.07916392 | W14: m
D15: =-I28*G22 -> -0.0003818903421 | I15: =-I28*G18 -> -0.0003517411046 | N15: =-(O29)*Q22 -> 4.827039039e-05 | S15: =-(O29)*Q18 -> 4.445957009e-05 | W15: 3.8
D16: =-I26*G22 -> -0.02390310965 | G16: I = | I16: =-I26*G18 -> -0.02201602204 | N16: =-(O27)*Q22 -> 0.003021318706 | Q16: I = | S16: =-(O27)*Q18 -> 0.002782793545
D17: =-I24*G22 -> -1.496132758 | I17: =-I24*G18 -> -1.378017014 | N17: =-(O25)*Q22 -> 0.1891090303 | S17: =-(O25)*Q18 -> 0.1741793701
D18: =-(E22+I22)*G22 -> -11.90688252 | G18: =(4*G13/W15)/((4*G13/W15)+(4*L21/L35)+(4*G27/W26)) -> 0.3582479535 | I18: =-(E22+I22)*G18 -> -10.96686548 | N18: =-(O22+O23+S22)*Q22 -> 11.83662792 | Q18: =(4*Q13/W15)/((4*Q13/W15)+(4*Q27/W26)+(4*L21/L35)) -> 0.3582479535 | S18: =-(O22+O23+S22)*Q18 -> 10.9021573
B20: q = | C20: 10 | E20: KN/m | K20: q = | L20: 15 | N20: KN/m | S20: q = | T20: 10 | V20: KN/m
F21: 0 | H21: =(4*L21/L35)/((4*G13/W15)+(4*L21/L35)+(4*G27/W26)) -> 0.2527971256 | K21: I = | L21: =((L43*H45^3/12+H45*L43*(((H45*L43*H45/2+L50*(O46-H45)*((O46-H45)/2+H45))/(L43*H45+(O46-H45)*L50))-H45/2)^2+L50*(O46-H45)^3/12+L50*(O46-H45)*(O46-((H45*L43*H45/2+L50*(O46-H45)*((O46-H45)/2+H45))/(L43*H45+(O46-H45)*L50))-(O46-H45)/2)^2)*10000)*AS4 -> 44.68333333 | N21: dm4 | P21: =(4*L21/L35)/((4*Q13/W15)+(4*Q27/W26)+(4*L21/L35)) -> 0.2527971256 | R21: 0
E22: =-C20*E35*E35/2 -> -7.2 | G22: =(4*G27/W26)/((4*G13/W15)+(4*L21/L35)+(4*G27/W26)) -> 0.3889549209 | I22: =L20*L35^2/12 -> 37.8125 | O22: =-L20*L35^2/12 -> -37.8125 | Q22: =(4*Q27/W26)/((4*Q13/W15)+(4*Q27/W26)+(4*L21/L35)) -> 0.3889549209 | S22: =T20*R35^2/2 -> 11.25
I23: =-(E22+I22)*H21 -> -7.738752007 | O23: =+I23/2 -> -3.869376003
I24: =+O24/2 -> 3.84654539 | O24: =-(O22+O23+S22)*P21 -> 7.69309078
G25: dm4 | I25: =-I24*H21 -> -0.972395618 | O25: =+I25/2 -> -0.486197809 | Q25: dm4 | W25: m
I26: =+O26/2 -> 0.06145470429 | O26: =-(O25)*P21 -> 0.1229094086 | W26: 3.5
G27: =(I38*G41^3/12*10000)*AS5 -> 43.75 | I27: =-I26*H21 -> -0.0155355726 | O27: =+I27/2 -> -0.007767786299 | Q27: =(S38*Q41^3/12*10000)*AS5 -> 43.75
I28: =+O28/2 -> 0.0009818370242 | O28: =-(O27)*P21 -> 0.001963674048
I29: =-I28*H21 -> -0.0002482055775 | O29: =+I29/2 -> -0.0001241027888
G30: I = | I30: =+O30/2 -> 1.568641414e-05 | O30: =-(O29)*P21 -> 3.137282827e-05 | Q30: I =
I31: =-I30*H21 -> -3.965480404e-06 | O31: =SUM(O22:P30) -> -34.35797047
I32: =SUM(I22:J31) -> 32.99456225
E35: 1.2 | G35: m | L35: 5.5 | N35: m | R35: 1.5 | T35: m
I37: m | S37: m
I38: 0.6 | S38: 0.6
G41: 0.5 | I41: m | Q41: 0.5 | S41: m
L43: 1.2 | N43: m
H45: 0.1 | J45: m | O45: m
O46: 0.7
L50: 0.25 | N50: m
D52: =IF(I13<0,I13/2,"") -> -6.183627936 | J52: =IF(I13>0,I13/2,"") ->  | N52: =IF(S14<0,S14/2,"") ->  | T52: =IF(S14>0,S14/2,"") -> 5.539581961
J55: moment diyagramı (KNm)
H57: =-I32 -> -32.99456225
P58: =O31 -> -34.35797047
H59: =IF(E22=0,"",+E22) -> -7.2 | R59: =IF(S22=0,"",-S22) -> -11.25
E61: =IF(I13>0,-I13,"") ->  | I61: =IF(I13<0,-I13,"") -> 12.36725587 | O61: =IF(S14>0,-S14,"") -> -11.07916392 | S61: =IF(S14<0,-S14,"") -> 
E62: =IF(D13<0,D13,"") -> -13.42730638 | I62: =IF(D13>0,D13,"") ->  | O62: =IF(N14<0,N14,"") ->  | S62: =IF(N14>0,N14,"") -> 12.02880654
L65: =(((I32-(-O31))/L35+L20*L35*0.5)^2/(2*L20))-I32 -> 23.044532
D74: =IF(D13>0,-D13/2,"") ->  | J74: =IF(D13<0,-D13/2,"") -> 6.713653188 | N74: =IF(N14>0,-N14/2,"") -> -6.014403272 | T74: =IF(N14<0,-N14/2,"") -> 
D77: =IF(I13<0,(I13+I13/2)/$W$15,"") -> -4.881811529 | J77: =IF(I13>0,(I13+I13/2)/$W$15,"") ->  | N77: =IF(S14<0,(S14+S14/2)/$W$15,"") ->  | T77: =IF(S14>0,(S14+S14/2)/$W$15,"") -> 4.37335418
J80: kesme kuvveti diyagramı (KN)
H84: =L20*L35+P89 -> 41.0021076 | R84: =IF(S22=0,"",T20*R35) -> 15
D86: =IF(D77<0,D77,"") -> -4.881811529 | J86: =IF(J77>0,J77,"") ->  | N86: =IF(N77<0,N77,"") ->  | T86: =IF(T77>0,T77,"") -> 4.37335418
D87: =IF(D99<0,D99,"") -> -5.754559876 | J87: =IF(J99>0,J99,"") ->  | N87: =IF(N99<0,N99,"") ->  | T87: =IF(T99>0,T99,"") -> 5.155202805
P89: =-(0.5*L20*L35^2+(-O31)-I32)/L35 -> -41.4978924
F90: =IF(E22=0,"",-C20*E35) -> -12
J91: =((L20*L35-((0.5*L20*L35^2+(-O31)-I32)/L35))*L35)/((L20*L35-((0.5*L20*L35^2+(-O31)-I32)/L35))+((0.5*L20*L35^2+(-O31)-I32)/L35)) -> 2.73347384 | L91: m
D99: =IF(D13<0,(D13+D13/2)/$W$26,"") -> -5.754559876 | J99: =IF(D13>0,(D13+D13/2)/$W$26,"") ->  | N99: =IF(N14<0,(N14+N14/2)/$W$26,"") ->  | T99: =IF(N14>0,(N14+N14/2)/$W$26,"") -> 5.155202805
B101: kiriş faydalı yükseklik d (m) | H101: =O46-M3 -> 0.67
B103: kiriş kolon yüzünden d mesafede kesme kuvveti (KN) | H103: =(L20*L35-((0.5*L20*L35^2-O31-I32)/L35))-L20*(MIN(G4,G41)/2+H101) -> 27.2021076 | O103: =((0.5*L20*L35^2-O31-I32)/L35)-L20*(MIN(Q4,Q41)/2+H101) -> 27.6978924
B105: kiriş kolon yüzünden 2*h mesafede kesme kuvveti (KN) | H105: =(L20*L35-((0.5*L20*L35^2-O31-I32)/L35))-L20*(MIN(G4,G41)/2+2*O46) -> 16.2521076 | O105: =((0.5*L20*L35^2-O31-I32)/L35)-L20*(MIN(Q4,Q41)/2+2*O46) -> 16.7478924
B107: kiriş kolon yüzü kesme kuvveti (KN) | H107: =(L20*L35-((0.5*L20*L35^2-O31-I32)/L35))-L20*MIN(G4,G41)/2 -> 37.2521076 | O107: =((0.5*L20*L35^2-O31-I32)/L35)-L20*MIN(Q4,Q41)/2 -> 37.7478924
B109: kiriş kolon yüzü moment (KNm) | H109: =+I32-(L20*L35-((0.5*L20*L35^2-O31-I32)/L35))*MIN(G4,G41)/3 -> 26.16087765 | O109: =-O31-((0.5*L20*L35^2-O31-I32)/L35)*MIN(Q4,Q41)/3 -> 27.44165507

Sheet 2_aciklikli
B2: ÇERÇEVE CROSS (2 AÇIKLIKLI) (atalet momentleri etkin rijitlik çarpanı ile çarpılmış) (inş.müh. Gürcan BERBEROĞLU tel: 0532 366 02 04 www.betoncelik.com )
I3: pas payı d ' = | M3: 0.03 | O3: m | V3: dikkat sadece sarı hücrelere rakam giriniz.
G4: 0.3 | I4: m | Q4: 0.3 | S4: m | AA4: 0.3 | AC4: m | AK4: kiriş için etkin rijitlik çarpanı = | AS4: 0.35
AK5: kolon için etkin rijitlik çarpanı = | AS5: 0.7
I6: m | S6: m | AC6: m
I7: 0.25 | S7: 0.4 | AC7: 0.25
AK8: Not: kolon ve kiriş atalet momentleri etkin rijitlik çarpanı ile çarpılmıştır.
G11: dm4 | Q11: dm4 | AA11: dm4
D13: =SUM(D14:E18) -> -3.563174044 | G13: =(I7*G4^3/12*10000)*AS5 -> 3.9375 | I13: =SUM(I14:J18) -> -2.203795692 | Q13: =(S7*Q4^3/12*10000)*AS5 -> 6.3 | X13: =SUM(X14:Y18) -> 8.178799363 | AA13: =(AC7*AA4^3/12*10000)*AS5 -> 3.9375 | AC13: =SUM(AC14:AD18) -> 5.058524388
D14: =-I30*G22 -> 0.0002396595488 | I14: =-I30*G18 -> 0.0001482275843 | N14: =SUM(N15:O18) -> -3.546924724 | S14: =SUM(S15:T18) -> -2.33999532 | X14: =-Y30*AA22 -> 0.0002299442842 | AC14: =-Y30*AA18 -> 0.000142218768 | AF14: m
D15: =-I28*G22 -> 0.003208075753 | I15: =-I28*G18 -> 0.001984170135 | N15: =-(O29+S29)*Q22 -> -0.001368346371 | S15: =-(O29+S29)*Q18 -> -0.0009027324667 | X15: =-Y28*AA22 -> 0.003078027503 | AC15: =-Y28*AA18 -> 0.001903736294 | AF15: 2.8
D16: =-I26*G22 -> 0.04294320876 | G16: I = | I16: =-I26*G18 -> 0.02656004374 | N16: =-(O27+S27)*Q22 -> -0.01831664475 | Q16: I = | S16: =-(O27+S27)*Q18 -> -0.01208395055 | X16: =-Y26*AA22 -> 0.04120238667 | AA16: I = | AC16: =-Y26*AA18 -> 0.02548335869
D17: =-I24*G22 -> 0.574836544 | I17: =-I24*G18 -> 0.3555319733 | N17: =-(O25+S25)*Q22 -> -0.2451860741 | S17: =-(O25+S25)*Q18 -> -0.1617554108 | X17: =-Y24*AA22 -> 0.5515339501 | AC17: =-Y24*AA18 -> 0.3411194985
D18: =-(E22+I22)*G22 -> -4.184401532 | G18: =(4*G13/AF15)/((4*G13/AF15)+(4*L21/L35)+(4*G27/AF26)) -> 0.181350314 | I18: =-(E22+I22)*G18 -> -2.588020106 | N18: =-(O22+O23+S22+S23)*Q22 -> -3.282053659 | Q18: =(4*Q13/AF15)/((4*Q13/AF15)+(4*V21/V35)+(4*Q27/AF26)+(4*L21/L35)) -> 0.1669606302 | S18: =-(O22+O23+S22+S23)*Q18 -> -2.165253226 | X18: =-(Y22+AC22)*AA22 -> 7.582755055 | AA18: =(4*AA13/AF15)/((4*AA13/AF15)+(4*AA27/AF26)+(4*V21/V35)) -> 0.1894899222 | AC18: =-(Y22+AC22)*AA18 -> 4.689875575
B20: q = | C20: 10 | E20: KN/m | K20: q = | L20: 25 | N20: KN/m | U20: q = | V20: 27 | X20: KN/m | AC20: q = | AD20: 10 | AF20: KN/m
F21: 0 | H21: =(4*L21/L35)/((4*G13/AF15)+(4*L21/L35)+(4*G27/AF26)) -> 0.5254361479 | K21: I = | L21: =((L43*H45^3/12+H45*L43*(((H45*L43*H45/2+L50*(O46-H45)*((O46-H45)/2+H45))/(L43*H45+(O46-H45)*L50))-H45/2)^2+L50*(O46-H45)^3/12+L50*(O46-H45)*(O46-((H45*L43*H45/2+L50*(O46-H45)*((O46-H45)/2+H45))/(L43*H45+(O46-H45)*L50))-(O46-H45)/2)^2)*10000)*AS4 -> 14.26041667 | N21: dm4 | P21: =(4*L21/L35)/((4*Q13/AF15)+(4*V21/V35)+(4*Q27/AF26)+(4*L21/L35)) -> 0.302340083 | R21: =(4*V21/V35)/((4*Q13/AF15)+(4*V21/V35)+(4*Q27/AF26)+(4*L21/L35)) -> 0.2776232306 | U21: I = | V21: =((V43*R45^3/12+R45*V43*(((R45*V43*R45/2+V50*(Y46-R45)*((Y46-R45)/2+R45))/(V43*R45+(Y46-R45)*V50))-R45/2)^2+V50*(Y46-R45)^3/12+V50*(Y46-R45)*(Y46-((R45*V43*R45/2+V50*(Y46-R45)*((Y46-R45)/2+R45))/(V43*R45+(Y46-R45)*V50))-(Y46-R45)/2)^2)*10000)*AS4 -> 14.96525901 | X21: dm4 | Z21: =(4*V21/V35)/((4*AA13/AF15)+(4*AA27/AF26)+(4*V21/V35)) -> 0.5041361362 | AB21: 0
E22: =-C20*E35*E35/2 -> -11.25 | G22: =(4*G27/AF26)/((4*G13/AF15)+(4*L21/L35)+(4*G27/AF26)) -> 0.293213538 | I22: =L20*L35^2/12 -> 25.52083333 | O22: =-L20*L35^2/12 -> -25.52083333 | Q22: =(4*Q27/AF26)/((4*Q13/AF15)+(4*V21/V35)+(4*Q27/AF26)+(4*L21/L35)) -> 0.2530760562 | S22: =V20*V35^2/12 -> 36 | Y22: =-V20*V35^2/12 -> -36 | AA22: =(4*AA27/AF26)/((4*AA13/AF15)+(4*AA27/AF26)+(4*V21/V35)) -> 0.3063739416 | AC22: =AD20*AB35*AB35/2 -> 11.25
I23: =-(E22+I22)*H21 -> -7.498411695 | O23: =+I23/2 -> -3.749205847 | S23: =+Y23/2 -> 6.238684685 | Y23: =-(Y22+AC22)*Z21 -> 12.47736937
I24: =+O24/2 -> -1.960470679 | O24: =-(O22+O23+S22+S23)*P21 -> -3.920941358 | S24: =-(O22+O23+S22+S23)*R21 -> -3.600397261 | Y24: =+S24/2 -> -1.800198631
G25: dm4 | I25: =-I24*H21 -> 1.030102162 | O25: =+I25/2 -> 0.5150510809 | Q25: dm4 | S25: =+Y25/2 -> 0.453772591 | Y25: =-Y24*Z21 -> 0.9075451819 | AA25: dm4 | AF25: m
I26: =+O26/2 -> -0.1464571147 | O26: =-(O25+S25)*P21 -> -0.2929142293 | S26: =-(O25+S25)*R21 -> -0.2689679576 | Y26: =+S26/2 -> -0.1344839788 | AF26: 3.3
G27: =(I38*G41^3/12*10000)*AS5 -> 7.503125 | I27: =-I26*H21 -> 0.07695386217 | O27: =+I27/2 -> 0.03847693108 | Q27: =(S38*Q41^3/12*10000)*AS5 -> 11.2546875 | S27: =+Y27/2 -> 0.03389911673 | Y27: =-Y26*Z21 -> 0.06779823345 | AA27: =(AC38*AA41^3/12*10000)*AS5 -> 7.503125
I28: =+O28/2 -> -0.01094109015 | O28: =-(O27+S27)*P21 -> -0.0218821803 | S28: =-(O27+S27)*R21 -> -0.02009327221 | Y28: =+S28/2 -> -0.0100466361
I29: =-I28*H21 -> 0.005748844263 | O29: =+I29/2 -> 0.002874422132 | S29: =+Y29/2 -> 0.002532436154 | Y29: =-Y28*Z21 -> 0.005064872307
G30: I = | I30: =+O30/2 -> -0.0008173549913 | O30: =-(O29+S29)*P21 -> -0.001634709983 | Q30: I = | S30: =-(O29+S29)*R21 -> -0.001501069464 | Y30: =+S30/2 -> -0.0007505347322 | AA30: I =
I31: =-I30*H21 -> 0.0004294678581 | O31: =SUM(O22:P30) -> -32.95100922 | S31: =SUM(S22:T30) -> 38.83792927 | Y31: =-Y30*Z21 -> 0.0003783716799
I32: =SUM(I22:J31) -> 17.01696974 | Y32: =SUM(Y22:Z31) -> -24.48732375
E35: 1.5 | G35: m | L35: 3.5 | N35: m | V35: 4 | X35: m | AB35: 1.5 | AD35: m
I37: m | S37: m | AC37: m
I38: 0.3 | S38: 0.45 | AC38: 0.3
G41: 0.35 | I41: m | Q41: 0.35 | S41: m | AA41: 0.35 | AC41: m
L43: 0.75 | N43: m | V43: 0.85 | X43: m
H45: 0.1 | J45: m | O45: m | R45: 0.1 | T45: m | Y45: m
O46: 0.5 | Y46: 0.5
L50: 0.25 | N50: m | V50: 0.25 | X50: m
D52: =IF(I13<0,I13/2,"") -> -1.101897846 | J52: =IF(I13>0,I13/2,"") ->  | N52: =IF(S14<0,S14/2,"") -> -1.16999766 | T52: =IF(S14>0,S14/2,"") ->  | X52: =IF(AC13<0,AC13/2,"") ->  | AD52: =IF(AC13>0,AC13/2,"") -> 2.529262194
J55: moment diyagramı (KNm)
R56: =-S31 -> -38.83792927
H57: =-I32 -> -17.01696974 | Z57: =Y32 -> -24.48732375
P58: =O31 -> -32.95100922
H59: =IF(E22=0,"",+E22) -> -11.25 | AB59: =IF(AC22=0,"",-AC22) -> -11.25
E61: =IF(I13>0,-I13,"") ->  | I61: =IF(I13<0,-I13,"") -> 2.203795692 | O61: =IF(S14>0,-S14,"") ->  | S61: =IF(S14<0,-S14,"") -> 2.33999532 | Y61: =IF(AC13>0,-AC13,"") -> -5.058524388 | AC61: =IF(AC13<0,-AC13,"") -> 
E62: =IF(D13<0,D13,"") -> -3.563174044 | I62: =IF(D13>0,D13,"") ->  | O62: =IF(N14<0,N14,"") -> -3.546924724 | S62: =IF(N14>0,N14,"") ->  | Y62: =IF(X13<0,X13,"") ->  | AC62: =IF(X13>0,X13,"") -> 8.178799363
L65: =(((I32-(-O31))/L35+L20*L35*0.5)^2/(2*L20))-I32 -> 13.71178071 | V65: =(((S31-(-Y32))/V35+V20*V35*0.5)^2/(2*V20))-S31 -> 22.57572983
D74: =IF(D13>0,-D13/2,"") ->  | J74: =IF(D13<0,-D13/2,"") -> 1.781587022 | N74: =IF(N14>0,-N14/2,"") ->  | T74: =IF(N14<0,-N14/2,"") -> 1.773462362 | X74: =IF(X13>0,-X13/2,"") -> -4.089399682 | AD74: =IF(X13<0,-X13/2,"") -> 
D77: =IF(I13<0,(I13+I13/2)/$AF$15,"") -> -1.180604835 | J77: =IF(I13>0,(I13+I13/2)/$AF$15,"") ->  | N77: =IF(S14<0,(S14+S14/2)/$AF$15,"") -> -1.253568921 | T77: =IF(S14>0,(S14+S14/2)/$AF$15,"") ->  | X77: =IF(AC13<0,(AC13+AC13/2)/$AF$15,"") ->  | AD77: =IF(AC13>0,(AC13+AC13/2)/$AF$15,"") -> 2.709923779
J80: kesme kuvveti diyagramı (KN)
H84: =L20*L35+P89 -> 39.19741729 | R84: =V20*V35+Z89 -> 57.58765138 | AB84: =IF(AC22=0,"",AD20*AB35) -> 15
D86: =IF(D77<0,D77,"") -> -1.180604835 | J86: =IF(J77>0,J77,"") ->  | N86: =IF(N77<0,N77,"") -> -1.253568921 | T86: =IF(T77>0,T77,"") ->  | X86: =IF(X77<0,X77,"") ->  | AD86: =IF(AD77>0,AD77,"") -> 2.709923779
D87: =IF(D99<0,D99,"") -> -1.619624566 | J87: =IF(J99>0,J99,"") ->  | N87: =IF(N99<0,N99,"") -> -1.612238511 | T87: =IF(T99>0,T99,"") ->  | X87: =IF(X99<0,X99,"") ->  | AD87: =IF(AD99>0,AD99,"") -> 3.717636074
P89: =-(0.5*L20*L35^2+(-O31)-I32)/L35 -> -48.30258271 | Z89: =-(0.5*V20*V35^2+(-Y32)-S31)/V35 -> -50.41234862
F90: =IF(E22=0,"",-C20*E35) -> -15
J91: =((L20*L35-((0.5*L20*L35^2+(-O31)-I32)/L35))*L35)/((L20*L35-((0.5*L20*L35^2+(-O31)-I32)/L35))+((0.5*L20*L35^2+(-O31)-I32)/L35)) -> 1.567896692 | L91: m | T91: =((V20*V35-((0.5*V20*V35^2+(-Y32)-S31)/V35))*V35)/((V20*V35-((0.5*V20*V35^2+(-Y32)-S31)/V35))+((0.5*V20*V35^2+(-Y32)-S31)/V35)) -> 2.132875977 | V91: m
D99: =IF(D13<0,(D13+D13/2)/$AF$26,"") -> -1.619624566 | J99: =IF(D13>0,(D13+D13/2)/$AF$26,"") ->  | N99: =IF(N14<0,(N14+N14/2)/$AF$26,"") -> -1.612238511 | T99: =IF(N14>0,(N14+N14/2)/$AF$26,"") ->  | X99: =IF(X13<0,(X13+X13/2)/$AF$26,"") ->  | AD99: =IF(X13>0,(X13+X13/2)/$AF$26,"") -> 3.717636074
B101: kiriş faydalı yükseklik d (m) | H101: =O46-M3 -> 0.47 | R101: =Y46-M3 -> 0.47
B103: kiriş kolon yüzünden d mesafede kesme kuvveti (KN) | H103: =(L20*L35-((0.5*L20*L35^2-O31-I32)/L35))-L20*(MIN(G4,G41)/2+H101) -> 23.69741729 | O103: =((0.5*L20*L35^2-O31-I32)/L35)-L20*(MIN(Q4,Q41)/2+H101) -> 32.80258271 | R103: =(V20*V35-((0.5*V20*V35^2-Y32-S31)/V35))-V20*(MIN(Q4,Q41)/2+R101) -> 40.84765138 | Y103: =((0.5*V20*V35^2-Y32-S31)/V35)-V20*(MIN(AA4,AA41)/2+R101) -> 33.67234862
B105: kiriş kolon yüzünden 2*h mesafede kesme kuvveti (KN) | H105: =(L20*L35-((0.5*L20*L35^2-O31-I32)/L35))-L20*(MIN(G4,G41)/2+2*O46) -> 10.44741729 | O105: =((0.5*L20*L35^2-O31-I32)/L35)-L20*(MIN(Q4,Q41)/2+2*O46) -> 19.55258271 | R105: =(V20*V35-((0.5*V20*V35^2-Y32-S31)/V35))-V20*(MIN(Q4,Q41)/2+2*Y46) -> 26.53765138 | Y105: =((0.5*V20*V35^2-Y32-S31)/V35)-V20*(MIN(AA4,AA41)/2+2*Y46) -> 19.36234862
B107: kiriş kolon yüzü kesme kuvveti (KN) | H107: =(L20*L35-((0.5*L20*L35^2-O31-I32)/L35))-L20*MIN(G4,G41)/2 -> 35.44741729 | O107: =((0.5*L20*L35^2-O31-I32)/L35)-L20*MIN(Q4,Q41)/2 -> 44.55258271 | R107: =(V20*V35-((0.5*V20*V35^2-Y32-S31)/V35))-V20*MIN(Q4,Q41)/2 -> 53.53765138 | Y107: =((0.5*V20*V35^2-Y32-S31)/V35)-V20*MIN(AA4,AA41)/2 -> 46.36234862
B109: kiriş kolon yüzü moment (KNm) | H109: =+I32-(L20*L35-((0.5*L20*L35^2-O31-I32)/L35))*MIN(G4,G41)/3 -> 13.09722801 | O109: =-O31-((0.5*L20*L35^2-O31-I32)/L35)*MIN(Q4,Q41)/3 -> 28.12075095 | R109: =+S31-(V20*V35-((0.5*V20*V35^2-Y32-S31)/V35))*MIN(Q4,Q41)/3 -> 33.07916413 | Y109: =-Y32-((0.5*V20*V35^2-Y32-S31)/V35)*MIN(AA4,AA41)/3 -> 19.44608889

Sheet 3_aciklikli
B2: ÇERÇEVE CROSS (3 AÇIKLIKLI) (atalet momentleri etkin rijitlik çarpanı ile çarpılmış) (inş.müh. Gürcan BERBEROĞLU tel: 0532 366 02 04 www.betoncelik.com )
I3: pas payı d ' = | M3: 0.03 | O3: m | V3: dikkat sadece sarı hücrelere rakam giriniz.
G4: 0.35 | I4: m | Q4: 0.25 | S4: m | AA4: 0.25 | AC4: m | AK4: 0.35 | AM4: m | AU4: kiriş için etkin rijitlik çarpanı = | BC4: 0.35
AU5: kolon için etkin rijitlik çarpanı = | BC5: 0.7
I6: m | S6: m | AC6: m | AM6: m
I7: 0.25 | S7: 0.35 | AC7: 0.35 | AM7: 0.25
AU8: Not: kolon ve kiriş atalet momentleri etkin rijitlik çarpanı ile çarpılmıştır.
G11: dm4 | Q11: dm4 | AA11: dm4 | AK11: dm4
D13: =SUM(D14:E18) -> -37.1167701 | G13: =(I7*G4^3/12*10000)*BC5 -> 6.252604167 | I13: =SUM(I14:J18) -> -12.73105215 | Q13: =(S7*Q4^3/12*10000)*BC5 -> 3.190104167 | X13: =SUM(X14:Y18) -> -7.393570584 | AA13: =(AC7*AA4^3/12*10000)*BC5 -> 3.190104167 | AC13: =SUM(AC14:AD18) -> -5.750554899 | AK13: =(AM7*AK4^3/12*10000)*BC5 -> 6.252604167
D14: =-I30*G22 -> -0.01407210323 | I14: =-I30*G18 -> -0.004826731409 | N14: =SUM(N15:O18) -> 7.39198525 | S14: =SUM(S15:T18) -> 5.749321861 | X14: =-(Y30+AC30)*AA22 -> -0.005996222693 | AC14: =-(Y30+AC30)*AA18 -> -0.004663728761 | AH14: =SUM(AH15:AI18) -> 37.11304948 | AM14: =SUM(AM15:AN18) -> 12.72977597 | AP14: m
D15: =-I28*G22 -> -0.1088910809 | I15: =-I28*G18 -> -0.03734964075 | N15: =-(O29+S29)*Q22 -> 0.01668283313 | S15: =-(O29+S29)*Q18 -> 0.01297553688 | X15: =-(Y28+AC28)*AA22 -> -0.04642147372 | AC15: =-(Y28+AC28)*AA18 -> -0.03610559067 | AH15: =-AI29*AK22 -> 0.03915688452 | AM15: =-AI29*AK18 -> 0.01343081139 | AP15: 3
D16: =-I26*G22 -> -0.8357851466 | G16: I = | I16: =-I26*G18 -> -0.2866743053 | N16: =-(O27+S27)*Q22 -> 0.1290931215 | Q16: I = | S16: =-(O27+S27)*Q18 -> 0.1004057612 | X16: =-(Y26+AC26)*AA22 -> -0.3600113944 | AA16: I = | AC16: =-(Y26+AC26)*AA18 -> -0.2800088623 | AH16: =-AI27*AK22 -> 0.3036724917 | AK16: I = | AM16: =-AI27*AK18 -> 0.1041596647
D17: =-I24*G22 -> -5.276450374 | I17: =-I24*G18 -> -1.809822478 | N17: =-(O25+S25)*Q22 -> 0.990844361 | S17: =-(O25+S25)*Q18 -> 0.7706567252 | X17: =-(Y24+AC24)*AA22 -> -2.896445712 | AC17: =-(Y24+AC24)*AA18 -> -2.25279111 | AH17: =-AI25*AK22 -> 2.443175134 | AM17: =-AI25*AK18 -> 0.8380090709
D18: =-(E22+I22)*G22 -> -30.8815714 | G18: =(4*G13/AP15)/((4*G13/AP15)+(4*L21/L35)+(4*G27/AP26)) -> 0.1584546091 | I18: =-(E22+I22)*G18 -> -10.59237899 | N18: =-(O22+O23+S22+S23)*Q22 -> 6.255364934 | Q18: =(4*Q13/AP15)/((4*Q13/AP15)+(4*V21/V35)+(4*Q27/AP26)+(4*L21/L35)) -> 0.06245921202 | S18: =-(O22+O23+S22+S23)*Q18 -> 4.865283838 | X18: =-(Y22+AC22)*AA22 -> -4.084695781 | AA18: =(4*AA13/AP15)/((4*AA13/AP15)+(4*AA27/AP26)+(4*V21/V35)+(4*AF21/AF35)) -> 0.06245921202 | AC18: =-(Y22+AC22)*AA18 -> -3.176985607 | AH18: =-(AI22+AM22+AI23)*AK22 -> 34.32704497 | AK18: =(4*AK13/AP15)/((4*AK13/AP15)+(4*AK27/AP26)+(4*AF21/AF35)) -> 0.1584546091 | AM18: =-(AI22+AM22+AI23)*AK18 -> 11.77417643
B20: q = | C20: 10 | E20: KN/m | K20: q = | L20: 44.29 | N20: KN/m | U20: q = | V20: 35.13 | X20: KN/m | AE20: q = | AF20: 44.29 | AH20: KN/m | AM20: q = | AN20: 10 | AP20: KN/m
F21: 0 | H21: =(4*L21/L35)/((4*G13/AP15)+(4*L21/L35)+(4*G27/AP26)) -> 0.3795786006 | K21: I = | L21: =((L43*H45^3/12+H45*L43*(((H45*L43*H45/2+L50*(O46-H45)*((O46-H45)/2+H45))/(L43*H45+(O46-H45)*L50))-H45/2)^2+L50*(O46-H45)^3/12+L50*(O46-H45)*(O46-((H45*L43*H45/2+L50*(O46-H45)*((O46-H45)/2+H45))/(L43*H45+(O46-H45)*L50))-(O46-H45)/2)^2)*10000)*BC4 -> 22.96647573 | N21: dm4 | P21: =(4*L21/L35)/((4*Q13/AP15)+(4*V21/V35)+(4*Q27/AP26)+(4*L21/L35)) -> 0.2932576947 | R21: =(4*V21/V35)/((4*Q13/AP15)+(4*V21/V35)+(4*Q27/AP26)+(4*L21/L35)) -> 0.5639783921 | U21: I = | V21: =((V43*R45^3/12+R45*V43*(((R45*V43*R45/2+V50*(Y46-R45)*((Y46-R45)/2+R45))/(V43*R45+(Y46-R45)*V50))-R45/2)^2+V50*(Y46-R45)^3/12+V50*(Y46-R45)*(Y46-((R45*V43*R45/2+V50*(Y46-R45)*((Y46-R45)/2+R45))/(V43*R45+(Y46-R45)*V50))-(Y46-R45)/2)^2)*10000)*BC4 -> 29.28528218 | X21: dm4 | Z21: =(4*V21/V35)/((4*AA13/AP15)+(4*AA27/AP26)+(4*V21/V35)+(4*AF21/AF35)) -> 0.5639783921 | AB21: =(4*AF21/AF35)/((4*AA13/AP15)+(4*AA27/AP26)+(4*V21/V35)+(4*AF21/AF35)) -> 0.2932576947 | AE21: I = | AF21: =((AF43*AB45^3/12+AB45*AF43*(((AB45*AF43*AB45/2+AF50*(AI46-AB45)*((AI46-AB45)/2+AB45))/(AF43*AB45+(AI46-AB45)*AF50))-AB45/2)^2+AF50*(AI46-AB45)^3/12+AF50*(AI46-AB45)*(AI46-((AB45*AF43*AB45/2+AF50*(AI46-AB45)*((AI46-AB45)/2+AB45))/(AF43*AB45+(AI46-AB45)*AF50))-(AI46-AB45)/2)^2)*10000)*BC4 -> 22.96647573 | AH21: dm4 | AJ21: =(4*AF21/AF35)/((4*AK13/AP15)+(4*AK27/AP26)+(4*AF21/AF35)) -> 0.3795786006 | AL21: 0
E22: =-C20*E35*E35/2 -> -11.25 | G22: =(4*G27/AP26)/((4*G13/AP15)+(4*L21/L35)+(4*G27/AP26)) -> 0.4619667903 | I22: =L20*L35^2/12 -> 78.09803333 | O22: =-L20*L35^2/12 -> -78.09803333 | Q22: =(4*Q27/AP26)/((4*Q13/AP15)+(4*V21/V35)+(4*Q27/AP26)+(4*L21/L35)) -> 0.08030470117 | S22: =V20*V35^2/12 -> 27.23306875 | Y22: =-V20*V35^2/12 -> -27.23306875 | AA22: =(4*AA27/AP26)/((4*AA13/AP15)+(4*AA27/AP26)+(4*V21/V35)+(4*AF21/AF35)) -> 0.08030470117 | AC22: =AF20*AF35^2/12 -> 78.09803333 | AI22: =-AF20*AF35^2/12 -> -78.09803333 | AK22: =(4*AK27/AP26)/((4*AK13/AP15)+(4*AK27/AP26)+(4*AF21/AF35)) -> 0.4619667903 | AM22: =AN20*AL35*AL35/2 -> 11.25
I23: =-(E22+I22)*H21 -> -25.37408295 | O23: =+I23/2 -> -12.68704147 | S23: =+Y23/2 -> -14.34337047 | Y23: =-(Y22+AC22)*Z21 -> -28.68674094 | AC23: =-(Y22+AC22)*AB21 -> -14.91654226 | AI23: =+AC23/2 -> -7.458271128
I24: =+O24/2 -> 11.42170927 | O24: =-(O22+O23+S22+S23)*P21 -> 22.84341855 | S24: =-(O22+O23+S22+S23)*R21 -> 43.9313092 | Y24: =+S24/2 -> 21.9656546 | AC24: =+AI24/2 -> 14.10254153 | AI24: =-(AI22+AM22+AI23)*AJ21 -> 28.20508306
G25: dm4 | I25: =-I24*H21 -> -4.335436423 | O25: =+I25/2 -> -2.167718212 | Q25: dm4 | S25: =+Y25/2 -> -10.17084163 | Y25: =-(Y24+AC24)*Z21 -> -20.34168326 | AA25: dm4 | AC25: =-(Y24+AC24)*AB21 -> -10.57727605 | AI25: =+AC25/2 -> -5.288638026 | AK25: dm4 | AP25: m
I26: =+O26/2 -> 1.809188808 | O26: =-(O25+S25)*P21 -> 3.618377616 | S26: =-(O25+S25)*R21 -> 6.95868114 | Y26: =+S26/2 -> 3.47934057 | AC26: =+AI26/2 -> 1.00372691 | AI26: =-AI25*AJ21 -> 2.007453821 | AP26: 3
G27: =(I38*G41^3/12*10000)*BC5 -> 18.22916667 | I27: =-I26*H21 -> -0.6867293559 | O27: =+I27/2 -> -0.3433646779 | Q27: =(S38*Q41^3/12*10000)*BC5 -> 4.1015625 | S27: =+Y27/2 -> -1.264176595 | Y27: =-(Y26+AC26)*Z21 -> -2.528353189 | AA27: =(AC38*AA41^3/12*10000)*BC5 -> 4.1015625 | AC27: =-(Y26+AC26)*AB21 -> -1.314694035 | AI27: =+AC27/2 -> -0.6573470173 | AK27: =(AM38*AK41^3/12*10000)*BC5 -> 18.22916667
I28: =+O28/2 -> 0.2357119239 | O28: =-(O27+S27)*P21 -> 0.4714238478 | S28: =-(O27+S27)*R21 -> 0.9066185421 | Y28: =+S28/2 -> 0.4533092711 | AC28: =+AI28/2 -> 0.1247574305 | AI28: =-AI27*AJ21 -> 0.249514861
I29: =-I28*H21 -> -0.08947120222 | O29: =+I29/2 -> -0.04473560111 | S29: =+Y29/2 -> -0.1630085644 | Y29: =-(Y28+AC28)*Z21 -> -0.3260171288 | AC29: =-(Y28+AC28)*AB21 -> -0.1695225083 | AI29: =+AC29/2 -> -0.08476125415
G30: I = | I30: =+O30/2 -> 0.03046128754 | O30: =-(O29+S29)*P21 -> 0.06092257508 | Q30: I = | S30: =-(O29+S29)*R21 -> 0.1171632204 | Y30: =+S30/2 -> 0.05858161022 | AA30: I = | AC30: =+AI30/2 -> 0.01608677912 | AI30: =-AI29*AJ21 -> 0.03217355823 | AK30: I =
I31: =-I30*H21 -> -0.0115624529 | O31: =SUM(O22:P30) -> -66.34675071 | S31: =SUM(S22:T30) -> 53.2054436 | Y31: =-(Y30+AC30)*Z21 -> -0.04211135816 | AC31: =-(Y30+AC30)*AB21 -> -0.02189707973 | AI31: =SUM(AI22:AJ30) -> -61.09282545
I32: =SUM(I22:J31) -> 61.09782225 | Y32: =SUM(Y22:Z31) -> -53.20108857 | AC32: =SUM(AC22:AD31) -> 66.34521406
E35: 1.5 | G35: m | L35: 4.6 | N35: m | V35: 3.05 | X35: m | AF35: 4.6 | AH35: m | AL35: 1.5 | AN35: m
I37: m | S37: m | AC37: m | AM37: m
I38: 0.25 | S38: 0.45 | AC38: 0.45 | AM38: 0.25
G41: 0.5 | I41: m | Q41: 0.25 | S41: m | AA41: 0.25 | AC41: m | AK41: 0.5 | AM41: m
L43: 0.616 | N43: m | V43: 1.18 | X43: m | AF43: 0.616 | AH43: m
H45: 0.13 | J45: m | O45: m | R45: 0.13 | T45: m | Y45: m | AB45: 0.13 | AD45: m | AI45: m
O46: 0.6 | Y46: 0.6 | AI46: 0.6
L50: 0.25 | N50: m | V50: 0.25 | X50: m | AF50: 0.25 | AH50: m
D52: =IF(I13<0,I13/2,"") -> -6.365526073 | J52: =IF(I13>0,I13/2,"") ->  | N52: =IF(S14<0,S14/2,"") ->  | T52: =IF(S14>0,S14/2,"") -> 2.874660931 | X52: =IF(AC13<0,AC13/2,"") -> -2.875277449 | AD52: =IF(AC13>0,AC13/2,"") ->  | AH52: =IF(AM14<0,AM14/2,"") ->  | AN52: =IF(AM14>0,AM14/2,"") -> 6.364887986
J55: moment diyagramı (KNm)
R56: =-S31 -> -53.2054436
H57: =-I32 -> -61.09782225 | Z57: =Y32 -> -53.20108857 | AB57: =-AC32 -> -66.34521406 | AJ57: =AI31 -> -61.09282545
P58: =O31 -> -66.34675071
H59: =IF(E22=0,"",+E22) -> -11.25 | AL59: =IF(AM22=0,"",-AM22) -> -11.25
E61: =IF(I13>0,-I13,"") ->  | I61: =IF(I13<0,-I13,"") -> 12.73105215 | O61: =IF(S14>0,-S14,"") -> -5.749321861 | S61: =IF(S14<0,-S14,"") ->  | Y61: =IF(AC13>0,-AC13,"") ->  | AC61: =IF(AC13<0,-AC13,"") -> 5.750554899 | AI61: =IF(AM14>0,-AM14,"") -> -12.72977597 | AM61: =IF(AM14<0,-AM14,"") -> 
E62: =IF(D13<0,D13,"") -> -37.1167701 | I62: =IF(D13>0,D13,"") ->  | O62: =IF(N14<0,N14,"") ->  | S62: =IF(N14>0,N14,"") -> 7.39198525 | Y62: =IF(X13<0,X13,"") -> -7.393570584 | AC62: =IF(X13>0,X13,"") ->  | AI62: =IF(AH14<0,AH14,"") ->  | AM62: =IF(AH14>0,AH14,"") -> 37.11304948
L65: =(((I32-(-O31))/L35+L20*L35*0.5)^2/(2*L20))-I32 -> 53.4394626 | V65: =(((S31-(-Y32))/V35+V20*V35*0.5)^2/(2*V20))-S31 -> -12.35366293 | AF65: =(((AC32-(-AI31))/AF35+AF20*AF35*0.5)^2/(2*AF20))-AC32 -> 53.4427487
D74: =IF(D13>0,-D13/2,"") ->  | J74: =IF(D13<0,-D13/2,"") -> 18.55838505 | N74: =IF(N14>0,-N14/2,"") -> -3.695992625 | T74: =IF(N14<0,-N14/2,"") ->  | X74: =IF(X13>0,-X13/2,"") ->  | AD74: =IF(X13<0,-X13/2,"") -> 3.696785292 | AH74: =IF(AH14>0,-AH14/2,"") -> -18.55652474 | AN74: =IF(AH14<0,-AH14/2,"") -> 
D77: =IF(I13<0,(I13+I13/2)/$AP$15,"") -> -6.365526073 | J77: =IF(I13>0,(I13+I13/2)/$AP$15,"") ->  | N77: =IF(S14<0,(S14+S14/2)/$AP$15,"") ->  | T77: =IF(S14>0,(S14+S14/2)/$AP$15,"") -> 2.874660931 | X77: =IF(AC13<0,(AC13+AC13/2)/$AP$15,"") -> -2.875277449 | AD77: =IF(AC13>0,(AC13+AC13/2)/$AP$15,"") ->  | AH77: =IF(AM14<0,(AM14+AM14/2)/$AP$15,"") ->  | AN77: =IF(AM14>0,(AM14+AM14/2)/$AP$15,"") -> 6.364887986
J80: kesme kuvveti diyagramı (KN)
H84: =L20*L35+P89 -> 100.7259286 | R84: =V20*V35+Z89 -> 53.57467788 | AB84: =AF20*AF35+AJ89 -> 103.0088236 | AL84: =IF(AM22=0,"",AN20*AL35) -> 15
D86: =IF(D77<0,D77,"") -> -6.365526073 | J86: =IF(J77>0,J77,"") ->  | N86: =IF(N77<0,N77,"") ->  | T86: =IF(T77>0,T77,"") -> 2.874660931 | X86: =IF(X77<0,X77,"") -> -2.875277449 | AD86: =IF(AD77>0,AD77,"") ->  | AH86: =IF(AH77<0,AH77,"") ->  | AN86: =IF(AN77>0,AN77,"") -> 6.364887986
D87: =IF(D99<0,D99,"") -> -18.55838505 | J87: =IF(J99>0,J99,"") ->  | N87: =IF(N99<0,N99,"") ->  | T87: =IF(T99>0,T99,"") -> 3.695992625 | X87: =IF(X99<0,X99,"") -> -3.696785292 | AD87: =IF(AD99>0,AD99,"") ->  | AH87: =IF(AH99<0,AH99,"") ->  | AN87: =IF(AN99>0,AN99,"") -> 18.55652474
P89: =-(0.5*L20*L35^2+(-O31)-I32)/L35 -> -103.0080714 | Z89: =-(0.5*V20*V35^2+(-Y32)-S31)/V35 -> -53.57182212 | AJ89: =-(0.5*AF20*AF35^2+(-AI31)-AC32)/AF35 -> -100.7251764
F90: =IF(E22=0,"",-C20*E35) -> -15
J91: =((L20*L35-((0.5*L20*L35^2+(-O31)-I32)/L35))*L35)/((L20*L35-((0.5*L20*L35^2+(-O31)-I32)/L35))+((0.5*L20*L35^2+(-O31)-I32)/L35)) -> 2.274236365 | L91: m | T91: =((V20*V35-((0.5*V20*V35^2+(-Y32)-S31)/V35))*V35)/((V20*V35-((0.5*V20*V35^2+(-Y32)-S31)/V35))+((0.5*V20*V35^2+(-Y32)-S31)/V35)) -> 1.525040646 | V91: m | AD91: =((AF20*AF35-((0.5*AF20*AF35^2+(-AI31)-AC32)/AF35))*AF35)/((AF20*AF35-((0.5*AF20*AF35^2+(-AI31)-AC32)/AF35))+((0.5*AF20*AF35^2+(-AI31)-AC32)/AF35)) -> 2.325780619 | AF91: m
D99: =IF(D13<0,(D13+D13/2)/$AP$26,"") -> -18.55838505 | J99: =IF(D13>0,(D13+D13/2)/$AP$26,"") ->  | N99: =IF(N14<0,(N14+N14/2)/$AP$26,"") ->  | T99: =IF(N14>0,(N14+N14/2)/$AP$26,"") -> 3.695992625 | X99: =IF(X13<0,(X13+X13/2)/$AP$26,"") -> -3.696785292 | AD99: =IF(X13>0,(X13+X13/2)/$AP$26,"") ->  | AH99: =IF(AH14<0,(AH14+AH14/2)/$AP$26,"") ->  | AN99: =IF(AH14>0,(AH14+AH14/2)/$AP$26,"") -> 18.55652474
B101: kiriş faydalı yükseklik d (m) | H101: =O46-M3 -> 0.57 | R101: =Y46-M3 -> 0.57 | AB101: =AI46-M3 -> 0.57
B103: kiriş kolon yüzünden d mesafede kesme kuvveti (KN) | H103: =(L20*L35-((0.5*L20*L35^2-O31-I32)/L35))-L20*(MIN(G4,G41)/2+H101) -> 67.7298786 | O103: =((0.5*L20*L35^2-O31-I32)/L35)-L20*(MIN(Q4,Q41)/2+H101) -> 72.2265214 | R103: =(V20*V35-((0.5*V20*V35^2-Y32-S31)/V35))-V20*(MIN(Q4,Q41)/2+R101) -> 29.15932788 | Y103: =((0.5*V20*V35^2-Y32-S31)/V35)-V20*(MIN(AA4,AA41)/2+R101) -> 29.15647212 | AB103: =(AF20*AF35-((0.5*AF20*AF35^2-AI31-AC32)/AF35))-AF20*(MIN(AA4,AA41)/2+AB101) -> 72.22727361 | AI103: =((0.5*AF20*AF35^2-AI31-AC32)/AF35)-AF20*(MIN(AK4,AK41)/2+AB101) -> 67.72912639
B105: kiriş kolon yüzünden 2*h mesafede kesme kuvveti (KN) | H105: =(L20*L35-((0.5*L20*L35^2-O31-I32)/L35))-L20*(MIN(G4,G41)/2+2*O46) -> 39.8271786 | O105: =((0.5*L20*L35^2-O31-I32)/L35)-L20*(MIN(Q4,Q41)/2+2*O46) -> 44.3238214 | R105: =(V20*V35-((0.5*V20*V35^2-Y32-S31)/V35))-V20*(MIN(Q4,Q41)/2+2*Y46) -> 7.027427877 | Y105: =((0.5*V20*V35^2-Y32-S31)/V35)-V20*(MIN(AA4,AA41)/2+2*Y46) -> 7.024572123 | AB105: =(AF20*AF35-((0.5*AF20*AF35^2-AI31-AC32)/AF35))-AF20*(MIN(AA4,AA41)/2+2*AI46) -> 44.32457361 | AI105: =((0.5*AF20*AF35^2-AI31-AC32)/AF35)-AF20*(MIN(AK4,AK41)/2+2*AI46) -> 39.82642639
B107: kiriş kolon yüzü kesme kuvveti (KN) | H107: =(L20*L35-((0.5*L20*L35^2-O31-I32)/L35))-L20*MIN(G4,G41)/2 -> 92.9751786 | O107: =((0.5*L20*L35^2-O31-I32)/L35)-L20*MIN(Q4,Q41)/2 -> 97.4718214 | R107: =(V20*V35-((0.5*V20*V35^2-Y32-S31)/V35))-V20*MIN(Q4,Q41)/2 -> 49.18342788 | Y107: =((0.5*V20*V35^2-Y32-S31)/V35)-V20*MIN(AA4,AA41)/2 -> 49.18057212 | AB107: =(AF20*AF35-((0.5*AF20*AF35^2-AI31-AC32)/AF35))-AF20*MIN(AA4,AA41)/2 -> 97.47257361 | AI107: =((0.5*AF20*AF35^2-AI31-AC32)/AF35)-AF20*MIN(AK4,AK41)/2 -> 92.97442639
B109: kiriş kolon yüzü moment (KNm) | H109: =+I32-(L20*L35-((0.5*L20*L35^2-O31-I32)/L35))*MIN(G4,G41)/3 -> 49.34646391 | O109: =-O31-((0.5*L20*L35^2-O31-I32)/L35)*MIN(Q4,Q41)/3 -> 57.76274476 | R109: =+S31-(V20*V35-((0.5*V20*V35^2-Y32-S31)/V35))*MIN(Q4,Q41)/3 -> 48.74088711 | Y109: =-Y32-((0.5*V20*V35^2-Y32-S31)/V35)*MIN(AA4,AA41)/3 -> 48.73677006 | AB109: =+AC32-(AF20*AF35-((0.5*AF20*AF35^2-AI31-AC32)/AF35))*MIN(AA4,AA41)/3 -> 57.76114542 | AI109: =-AI31-((0.5*AF20*AF35^2-AI31-AC32)/AF35)*MIN(AK4,AK41)/3 -> 49.34155488

Sheet 4_aciklikli
B2: ÇERÇEVE CROSS (4 AÇIKLIKLI) (atalet momentleri etkin rijitlik çarpanı ile çarpılmış) (inş.müh. Gürcan BERBEROĞLU tel: 0532 366 02 04 www.betoncelik.com )
I3: pas payı d ' = | M3: 0.03 | O3: m | V3: dikkat sadece sarı hücrelere rakam giriniz.
G4: 0.5 | I4: m | Q4: 0.5 | S4: m | AA4: 0.5 | AC4: m | AK4: 0.5 | AM4: m | AU4: 0.5 | AW4: m | BE4: kiriş için etkin rijitlik çarpanı = | BM4: 0.35
BE5: kolon için etkin rijitlik çarpanı = | BM5: 0.7
I6: m | S6: m | AC6: m | AM6: m | AW6: m
I7: 0.6 | S7: 0.6 | AC7: 0.6 | AM7: 0.6 | AW7: 0.6
BE8: Not: kolon ve kiriş atalet momentleri etkin rijitlik çarpanı ile çarpılmıştır.
G11: dm4 | Q11: dm4 | AA11: dm4 | AK11: dm4 | AU11: dm4
D13: =SUM(D14:E18) -> -3.57897215 | G13: =(I7*G4^3/12*10000)*BM5 -> 43.75 | I13: =SUM(I14:J18) -> -3.57897215 | Q13: =(S7*Q4^3/12*10000)*BM5 -> 43.75 | X13: =SUM(X14:Y18) -> 5.025905155e-17 | AA13: =(AC7*AA4^3/12*10000)*BM5 -> 43.75 | AC13: =SUM(AC14:AD18) -> 5.025905155e-17 | AK13: =(AM7*AK4^3/12*10000)*BM5 -> 43.75 | AR13: =SUM(AR14:AS18) -> 3.57897215 | AU13: =(AW7*AU4^3/12*10000)*BM5 -> 43.75 | AW13: =SUM(AW14:AX18) -> 3.57897215
D14: =-I30*G22 -> -1.251688322e-07 | I14: =-I30*G18 -> -1.251688322e-07 | N14: =SUM(N15:O18) -> 0.3730066863 | S14: =SUM(S15:T18) -> 0.3730066863 | X14: =-(Y30+AC30)*AA22 -> 2.114577713e-21 | AC14: =-(Y30+AC30)*AA18 -> 2.114577713e-21 | AH14: =SUM(AH15:AI18) -> -0.3730066863 | AM14: =SUM(AM15:AN18) -> -0.3730066863 | AR14: =-AS30*AU22 -> 1.251688322e-07 | AW14: =-AS30*AU18 -> 1.251688322e-07 | AZ14: m
D15: =-I28*G22 -> -9.121400109e-06 | I15: =-I28*G18 -> -9.121400109e-06 | N15: =-(O29+S29)*Q22 -> 9.506481765e-07 | S15: =-(O29+S29)*Q18 -> 9.506481765e-07 | X15: =-(Y28+AC28)*AA22 -> 5.926991545e-20 | AC15: =-(Y28+AC28)*AA18 -> 5.926991545e-20 | AH15: =-(AI29+AM29)*AK22 -> -9.506481765e-07 | AM15: =-(AI29+AM29)*AK18 -> -9.506481765e-07 | AR15: =-AS28*AU22 -> 9.121400109e-06 | AW15: =-AS28*AU18 -> 9.121400109e-06 | AZ15: 3.5
D16: =-I26*G22 -> -0.0006647017352 | G16: I = | I16: =-I26*G18 -> -0.0006647017352 | N16: =-(O27+S27)*Q22 -> 6.927637039e-05 | Q16: I = | S16: =-(O27+S27)*Q18 -> 6.927637039e-05 | X16: =-(Y26+AC26)*AA22 -> 1.643752322e-18 | AA16: I = | AC16: =-(Y26+AC26)*AA18 -> 1.643752322e-18 | AH16: =-(AI27+AM27)*AK22 -> -6.927637039e-05 | AK16: I = | AM16: =-(AI27+AM27)*AK18 -> -6.927637039e-05 | AR16: =-AS26*AU22 -> 0.0006647017352 | AU16: I = | AW16: =-AS26*AU18 -> 0.0006647017352
D17: =-I24*G22 -> -0.04843865979 | I17: =-I24*G18 -> -0.04843865979 | N17: =-(O25+S25)*Q22 -> 0.005048361332 | S17: =-(O25+S25)*Q18 -> 0.005048361332 | X17: =-(Y24+AC24)*AA22 -> 4.855391474e-17 | AC17: =-(Y24+AC24)*AA18 -> 4.855391474e-17 | AH17: =-(AI25+AM25)*AK22 -> -0.005048361332 | AM17: =-(AI25+AM25)*AK18 -> -0.005048361332 | AR17: =-AS24*AU22 -> 0.04843865979 | AW17: =-AS24*AU18 -> 0.04843865979
D18: =-(E22+I22)*G22 -> -3.529859542 | G18: =(4*G13/AZ15)/((4*G13/AZ15)+(4*L21/L35)+(4*G27/AZ26)) -> 0.3683331696 | I18: =-(E22+I22)*G18 -> -3.529859542 | N18: =-(O22+O23+S22+S23)*Q22 -> 0.367888098 | Q18: =(4*Q13/AZ15)/((4*Q13/AZ15)+(4*V21/V35)+(4*Q27/AZ26)+(4*L21/L35)) -> 0.2915565231 | S18: =-(O22+O23+S22+S23)*Q18 -> 0.367888098 | X18: =-(Y22+AC22)*AA22 -> 0 | AA18: =(4*AA13/AZ15)/((4*AA13/AZ15)+(4*AA27/AZ26)+(4*V21/V35)+(4*AF21/AF35)) -> 0.2915565231 | AC18: =-(Y22+AC22)*AA18 -> 0 | AH18: =-(AI22+AM22+AI23+AM23)*AK22 -> -0.367888098 | AK18: =(4*AK13/AZ15)/((4*AK13/AZ15)+(4*AK27/AZ26)+(4*AF21/AF35)+(4*AP21/AP35)) -> 0.2915565231 | AM18: =-(AI22+AM22+AI23+AM23)*AK18 -> -0.367888098 | AR18: =-(AS22+AW22)*AU22 -> 3.529859542 | AU18: =(4*AU13/AZ15)/((4*AU13/AZ15)+(4*AU27/AZ26)+(4*AP21/AP35)) -> 0.3683331696 | AW18: =-(AS22+AW22)*AU18 -> 3.529859542
B20: q = | C20: 10 | E20: KN/m | K20: q = | L20: 10 | N20: KN/m | U20: q = | V20: 10 | X20: KN/m | AE20: q = | AF20: 10 | AH20: KN/m | AO20: q = | AP20: 10 | AR20: KN/m | AW20: q = | AX20: 10 | AZ20: KN/m
F21: 0 | H21: =(4*L21/L35)/((4*G13/AZ15)+(4*L21/L35)+(4*G27/AZ26)) -> 0.2633336607 | K21: I = | L21: =((L43*H45^3/12+H45*L43*(((H45*L43*H45/2+L50*(O46-H45)*((O46-H45)/2+H45))/(L43*H45+(O46-H45)*L50))-H45/2)^2+L50*(O46-H45)^3/12+L50*(O46-H45)*(O46-((H45*L43*H45/2+L50*(O46-H45)*((O46-H45)/2+H45))/(L43*H45+(O46-H45)*L50))-(O46-H45)/2)^2)*10000)*BM4 -> 44.68333333 | N21: dm4 | P21: =(4*L21/L35)/((4*Q13/AZ15)+(4*V21/V35)+(4*Q27/AZ26)+(4*L21/L35)) -> 0.2084434769 | R21: =(4*V21/V35)/((4*Q13/AZ15)+(4*V21/V35)+(4*Q27/AZ26)+(4*L21/L35)) -> 0.2084434769 | U21: I = | V21: =((V43*R45^3/12+R45*V43*(((R45*V43*R45/2+V50*(Y46-R45)*((Y46-R45)/2+R45))/(V43*R45+(Y46-R45)*V50))-R45/2)^2+V50*(Y46-R45)^3/12+V50*(Y46-R45)*(Y46-((R45*V43*R45/2+V50*(Y46-R45)*((Y46-R45)/2+R45))/(V43*R45+(Y46-R45)*V50))-(Y46-R45)/2)^2)*10000)*BM4 -> 44.68333333 | X21: dm4 | Z21: =(4*V21/V35)/((4*AA13/AZ15)+(4*AA27/AZ26)+(4*V21/V35)+(4*AF21/AF35)) -> 0.2084434769 | AB21: =(4*AF21/AF35)/((4*AA13/AZ15)+(4*AA27/AZ26)+(4*V21/V35)+(4*AF21/AF35)) -> 0.2084434769 | AE21: I = | AF21: =((AF43*AB45^3/12+AB45*AF43*(((AB45*AF43*AB45/2+AF50*(AI46-AB45)*((AI46-AB45)/2+AB45))/(AF43*AB45+(AI46-AB45)*AF50))-AB45/2)^2+AF50*(AI46-AB45)^3/12+AF50*(AI46-AB45)*(AI46-((AB45*AF43*AB45/2+AF50*(AI46-AB45)*((AI46-AB45)/2+AB45))/(AF43*AB45+(AI46-AB45)*AF50))-(AI46-AB45)/2)^2)*10000)*BM4 -> 44.68333333 | AH21: dm4 | AJ21: =(4*AF21/AF35)/((4*AK13/AZ15)+(4*AK27/AZ26)+(4*AF21/AF35)+(4*AP21/AP35)) -> 0.2084434769 | AL21: =(4*AP21/AP35)/((4*AK13/AZ15)+(4*AK27/AZ26)+(4*AF21/AF35)+(4*AP21/AP35)) -> 0.2084434769 | AO21: I = | AP21: =((AP43*AL45^3/12+AL45*AP43*(((AL45*AP43*AL45/2+AP50*(AS46-AL45)*((AS46-AL45)/2+AL45))/(AP43*AL45+(AS46-AL45)*AP50))-AL45/2)^2+AP50*(AS46-AL45)^3/12+AP50*(AS46-AL45)*(AS46-((AL45*AP43*AL45/2+AP50*(AS46-AL45)*((AS46-AL45)/2+AL45))/(AP43*AL45+(AS46-AL45)*AP50))-(AS46-AL45)/2)^2)*10000)*BM4 -> 44.68333333 | AR21: dm4 | AT21: =(4*AP21/AP35)/((4*AU13/AZ15)+(4*AU27/AZ26)+(4*AP21/AP35)) -> 0.2633336607 | AV21: 0
E22: =-C20*E35*E35/2 -> -11.25 | G22: =(4*G27/AZ26)/((4*G13/AZ15)+(4*L21/L35)+(4*G27/AZ26)) -> 0.3683331696 | I22: =L20*L35^2/12 -> 20.83333333 | O22: =-L20*L35^2/12 -> -20.83333333 | Q22: =(4*Q27/AZ26)/((4*Q13/AZ15)+(4*V21/V35)+(4*Q27/AZ26)+(4*L21/L35)) -> 0.2915565231 | S22: =V20*V35^2/12 -> 20.83333333 | Y22: =-V20*V35^2/12 -> -20.83333333 | AA22: =(4*AA27/AZ26)/((4*AA13/AZ15)+(4*AA27/AZ26)+(4*V21/V35)+(4*AF21/AF35)) -> 0.2915565231 | AC22: =AF20*AF35^2/12 -> 20.83333333 | AI22: =-AF20*AF35^2/12 -> -20.83333333 | AK22: =(4*AK27/AZ26)/((4*AK13/AZ15)+(4*AK27/AZ26)+(4*AF21/AF35)+(4*AP21/AP35)) -> 0.2915565231 | AM22: =AP20*AP35^2/12 -> 20.83333333 | AS22: =-AP20*AP35^2/12 -> -20.83333333 | AU22: =(4*AU27/AZ26)/((4*AU13/AZ15)+(4*AU27/AZ26)+(4*AP21/AP35)) -> 0.3683331696 | AW22: =AX20*AV35*AV35/2 -> 11.25
I23: =-(E22+I22)*H21 -> -2.523614249 | O23: =+I23/2 -> -1.261807124 | S23: =+Y23/2 -> 0 | Y23: =-(Y22+AC22)*Z21 -> 0 | AC23: =-(Y22+AC22)*AB21 -> 0 | AI23: =+AC23/2 -> 0 | AM23: =+AS23/2 -> 1.261807124 | AS23: =-(AS22+AW22)*AT21 -> 2.523614249
I24: =+O24/2 -> 0.1315077321 | O24: =-(O22+O23+S22+S23)*P21 -> 0.2630154642 | S24: =-(O22+O23+S22+S23)*R21 -> 0.2630154642 | Y24: =+S24/2 -> 0.1315077321 | AC24: =+AI24/2 -> -0.1315077321 | AI24: =-(AI22+AM22+AI23+AM23)*AJ21 -> -0.2630154642 | AM24: =-(AI22+AI23+AM22+AM23)*AL21 -> -0.2630154642 | AS24: =+AM24/2 -> -0.1315077321
G25: dm4 | I25: =-I24*H21 -> -0.03463041251 | O25: =+I25/2 -> -0.01731520625 | Q25: dm4 | S25: =+Y25/2 -> 1.735640605e-17 | Y25: =-(Y24+AC24)*Z21 -> 3.471281211e-17 | AA25: dm4 | AC25: =-(Y24+AC24)*AB21 -> 3.471281211e-17 | AI25: =+AC25/2 -> 1.735640605e-17 | AK25: dm4 | AM25: =+AS25/2 -> 0.01731520625 | AS25: =-AS24*AT21 -> 0.03463041251 | AU25: dm4 | AZ25: m
I26: =+O26/2 -> 0.001804620898 | O26: =-(O25+S25)*P21 -> 0.003609241795 | S26: =-(O25+S25)*R21 -> 0.003609241795 | Y26: =+S26/2 -> 0.001804620898 | AC26: =+AI26/2 -> -0.001804620898 | AI26: =-(AI25+AM25)*AJ21 -> -0.003609241795 | AM26: =-(AI25+AM25)*AL21 -> -0.003609241795 | AS26: =+AM26/2 -> -0.001804620898 | AZ26: 3.5
G27: =(I38*G41^3/12*10000)*BM5 -> 43.75 | I27: =-I26*H21 -> -0.0004752174272 | O27: =+I27/2 -> -0.0002376087136 | Q27: =(S38*Q41^3/12*10000)*BM5 -> 43.75 | S27: =+Y27/2 -> 5.875866633e-19 | Y27: =-(Y26+AC26)*Z21 -> 1.175173327e-18 | AA27: =(AC38*AA41^3/12*10000)*BM5 -> 43.75 | AC27: =-(Y26+AC26)*AB21 -> 1.175173327e-18 | AI27: =+AC27/2 -> 5.875866633e-19 | AK27: =(AM38*AK41^3/12*10000)*BM5 -> 43.75 | AM27: =+AS27/2 -> 0.0002376087136 | AS27: =-AS26*AT21 -> 0.0004752174272 | AU27: =(AW38*AU41^3/12*10000)*BM5 -> 43.75
I28: =+O28/2 -> 2.47639932e-05 | O28: =-(O27+S27)*P21 -> 4.952798641e-05 | S28: =-(O27+S27)*R21 -> 4.952798641e-05 | Y28: =+S28/2 -> 2.47639932e-05 | AC28: =+AI28/2 -> -2.47639932e-05 | AI28: =-(AI27+AM27)*AJ21 -> -4.952798641e-05 | AM28: =-(AI27+AM27)*AL21 -> -4.952798641e-05 | AS28: =+AM28/2 -> -2.47639932e-05
I29: =-I28*H21 -> -6.521192985e-06 | O29: =+I29/2 -> -3.260596492e-06 | S29: =+Y29/2 -> 2.118701911e-20 | Y29: =-(Y28+AC28)*Z21 -> 4.237403822e-20 | AC29: =-(Y28+AC28)*AB21 -> 4.237403822e-20 | AI29: =+AC29/2 -> 2.118701911e-20 | AM29: =+AS29/2 -> 3.260596492e-06 | AS29: =-AS28*AT21 -> 6.521192985e-06
G30: I = | I30: =+O30/2 -> 3.398250348e-07 | O30: =-(O29+S29)*P21 -> 6.796500697e-07 | Q30: I = | S30: =-(O29+S29)*R21 -> 6.796500697e-07 | Y30: =+S30/2 -> 3.398250348e-07 | AA30: I = | AC30: =+AI30/2 -> -3.398250348e-07 | AI30: =-(AI29+AM29)*AJ21 -> -6.796500697e-07 | AK30: I = | AM30: =-(AI29+AM29)*AL21 -> -6.796500697e-07 | AS30: =+AM30/2 -> -3.398250348e-07 | AU30: I =
I31: =-I30*H21 -> -8.948737043e-08 | O31: =SUM(O22:P30) -> -21.84602162 | S31: =SUM(S22:T30) -> 21.10000825 | Y31: =-(Y30+AC30)*Z21 -> 1.511782093e-21 | AC31: =-(Y30+AC30)*AB21 -> 1.511782093e-21 | AI31: =SUM(AI22:AJ30) -> -21.10000825 | AM31: =SUM(AM22:AN30) -> 21.84602162 | AS31: =-AS30*AT21 -> 8.948737043e-08
I32: =SUM(I22:J31) -> 18.4079443 | Y32: =SUM(Y22:Z31) -> -20.69999588 | AC32: =SUM(AC22:AD31) -> 20.69999588 | AS32: =SUM(AS22:AT31) -> -18.4079443
E35: 1.5 | G35: m | L35: 5 | N35: m | V35: 5 | X35: m | AF35: 5 | AH35: m | AP35: 5 | AR35: m | AV35: 1.5 | AX35: m
I37: m | S37: m | AC37: m | AM37: m | AW37: m
I38: 0.6 | S38: 0.6 | AC38: 0.6 | AM38: 0.6 | AW38: 0.6
G41: 0.5 | I41: m | Q41: 0.5 | S41: m | AA41: 0.5 | AC41: m | AK41: 0.5 | AM41: m | AU41: 0.5 | AW41: m
L43: 1.2 | N43: m | V43: 1.2 | X43: m | AF43: 1.2 | AH43: m | AP43: 1.2 | AR43: m
H45: 0.1 | J45: m | O45: m | R45: 0.1 | T45: m | Y45: m | AB45: 0.1 | AD45: m | AI45: m | AL45: 0.1 | AN45: m | AS45: m
O46: 0.7 | Y46: 0.7 | AI46: 0.7 | AS46: 0.7
L50: 0.25 | N50: m | V50: 0.25 | X50: m | AF50: 0.25 | AH50: m | AP50: 0.25 | AR50: m
D52: =IF(I13<0,I13/2,"") -> -1.789486075 | J52: =IF(I13>0,I13/2,"") ->  | N52: =IF(S14<0,S14/2,"") ->  | T52: =IF(S14>0,S14/2,"") -> 0.1865033432 | X52: =IF(AC13<0,AC13/2,"") ->  | AD52: =IF(AC13>0,AC13/2,"") -> 2.512952578e-17 | AH52: =IF(AM14<0,AM14/2,"") -> -0.1865033432 | AN52: =IF(AM14>0,AM14/2,"") ->  | AR52: =IF(AW13<0,AW13/2,"") ->  | AX52: =IF(AW13>0,AW13/2,"") -> 1.789486075
J55: moment diyagramı (KNm)
R56: =-S31 -> -21.10000825
H57: =-I32 -> -18.4079443 | Z57: =Y32 -> -20.69999588 | AB57: =-AC32 -> -20.69999588 | AJ57: =AI31 -> -21.10000825 | AL57: =-AM31 -> -21.84602162 | AT57: =AS32 -> -18.4079443
P58: =O31 -> -21.84602162
H59: =IF(E22=0,"",+E22) -> -11.25 | AV59: =IF(AW22=0,"",-AW22) -> -11.25
E61: =IF(I13>0,-I13,"") ->  | I61: =IF(I13<0,-I13,"") -> 3.57897215 | O61: =IF(S14>0,-S14,"") -> -0.3730066863 | S61: =IF(S14<0,-S14,"") ->  | Y61: =IF(AC13>0,-AC13,"") -> -5.025905155e-17 | AC61: =IF(AC13<0,-AC13,"") ->  | AI61: =IF(AM14>0,-AM14,"") ->  | AM61: =IF(AM14<0,-AM14,"") -> 0.3730066863 | AS61: =IF(AW13>0,-AW13,"") -> -3.57897215 | AW61: =IF(AW13<0,-AW13,"") -> 
E62: =IF(D13<0,D13,"") -> -3.57897215 | I62: =IF(D13>0,D13,"") ->  | O62: =IF(N14<0,N14,"") ->  | S62: =IF(N14>0,N14,"") -> 0.3730066863 | Y62: =IF(X13<0,X13,"") ->  | AC62: =IF(X13>0,X13,"") -> 5.025905155e-17 | AI62: =IF(AH14<0,AH14,"") -> -0.3730066863 | AM62: =IF(AH14>0,AH14,"") ->  | AS62: =IF(AR13<0,AR13,"") ->  | AW62: =IF(AR13>0,AR13,"") -> 3.57897215
L65: =(((I32-(-O31))/L35+L20*L35*0.5)^2/(2*L20))-I32 -> 11.14665779 | V65: =(((S31-(-Y32))/V35+V20*V35*0.5)^2/(2*V20))-S31 -> 10.35031796 | AF65: =(((AC32-(-AI31))/AF35+AF20*AF35*0.5)^2/(2*AF20))-AC32 -> 10.35031796 | AP65: =(((AM31-(-AS32))/AP35+AP20*AP35*0.5)^2/(2*AP20))-AM31 -> 11.14665779
D74: =IF(D13>0,-D13/2,"") ->  | J74: =IF(D13<0,-D13/2,"") -> 1.789486075 | N74: =IF(N14>0,-N14/2,"") -> -0.1865033432 | T74: =IF(N14<0,-N14/2,"") ->  | X74: =IF(X13>0,-X13/2,"") -> -2.512952578e-17 | AD74: =IF(X13<0,-X13/2,"") ->  | AH74: =IF(AH14>0,-AH14/2,"") ->  | AN74: =IF(AH14<0,-AH14/2,"") -> 0.1865033432 | AR74: =IF(AR13>0,-AR13/2,"") -> -1.789486075 | AX74: =IF(AR13<0,-AR13/2,"") -> 
D77: =IF(I13<0,(I13+I13/2)/$AZ$15,"") -> -1.533845207 | J77: =IF(I13>0,(I13+I13/2)/$AZ$15,"") ->  | N77: =IF(S14<0,(S14+S14/2)/$AZ$15,"") ->  | T77: =IF(S14>0,(S14+S14/2)/$AZ$15,"") -> 0.1598600084 | X77: =IF(AC13<0,(AC13+AC13/2)/$AZ$15,"") ->  | AD77: =IF(AC13>0,(AC13+AC13/2)/$AZ$15,"") -> 2.153959352e-17 | AH77: =IF(AM14<0,(AM14+AM14/2)/$AZ$15,"") -> -0.1598600084 | AN77: =IF(AM14>0,(AM14+AM14/2)/$AZ$15,"") ->  | AR77: =IF(AW13<0,(AW13+AW13/2)/$AZ$15,"") ->  | AX77: =IF(AW13>0,(AW13+AW13/2)/$AZ$15,"") -> 1.533845207
J80: kesme kuvveti diyagramı (KN)
H84: =L20*L35+P89 -> 24.31238454 | R84: =V20*V35+Z89 -> 25.08000247 | AB84: =AF20*AF35+AJ89 -> 24.91999753 | AL84: =AP20*AP35+AT89 -> 25.68761546 | AV84: =IF(AW22=0,"",AX20*AV35) -> 15
D86: =IF(D77<0,D77,"") -> -1.533845207 | J86: =IF(J77>0,J77,"") ->  | N86: =IF(N77<0,N77,"") ->  | T86: =IF(T77>0,T77,"") -> 0.1598600084 | X86: =IF(X77<0,X77,"") ->  | AD86: =IF(AD77>0,AD77,"") -> 2.153959352e-17 | AH86: =IF(AH77<0,AH77,"") -> -0.1598600084 | AN86: =IF(AN77>0,AN77,"") ->  | AR86: =IF(AR77<0,AR77,"") ->  | AX86: =IF(AX77>0,AX77,"") -> 1.533845207
D87: =IF(D99<0,D99,"") -> -1.533845207 | J87: =IF(J99>0,J99,"") ->  | N87: =IF(N99<0,N99,"") ->  | T87: =IF(T99>0,T99,"") -> 0.1598600084 | X87: =IF(X99<0,X99,"") ->  | AD87: =IF(AD99>0,AD99,"") -> 2.153959352e-17 | AH87: =IF(AH99<0,AH99,"") -> -0.1598600084 | AN87: =IF(AN99>0,AN99,"") ->  | AR87: =IF(AR99<0,AR99,"") ->  | AX87: =IF(AX99>0,AX99,"") -> 1.533845207
P89: =-(0.5*L20*L35^2+(-O31)-I32)/L35 -> -25.68761546 | Z89: =-(0.5*V20*V35^2+(-Y32)-S31)/V35 -> -24.91999753 | AJ89: =-(0.5*AF20*AF35^2+(-AI31)-AC32)/AF35 -> -25.08000247 | AT89: =-(0.5*AP20*AP35^2+(-AS32)-AM31)/AP35 -> -24.31238454
F90: =IF(E22=0,"",-C20*E35) -> -15
J91: =((L20*L35-((0.5*L20*L35^2+(-O31)-I32)/L35))*L35)/((L20*L35-((0.5*L20*L35^2+(-O31)-I32)/L35))+((0.5*L20*L35^2+(-O31)-I32)/L35)) -> 2.431238454 | L91: m | T91: =((V20*V35-((0.5*V20*V35^2+(-Y32)-S31)/V35))*V35)/((V20*V35-((0.5*V20*V35^2+(-Y32)-S31)/V35))+((0.5*V20*V35^2+(-Y32)-S31)/V35)) -> 2.508000247 | V91: m | AD91: =((AF20*AF35-((0.5*AF20*AF35^2+(-AI31)-AC32)/AF35))*AF35)/((AF20*AF35-((0.5*AF20*AF35^2+(-AI31)-AC32)/AF35))+((0.5*AF20*AF35^2+(-AI31)-AC32)/AF35)) -> 2.491999753 | AF91: m | AN91: =((AP20*AP35-((0.5*AP20*AP35^2+(-AS32)-AM31)/AP35))*AP35)/((AP20*AP35-((0.5*AP20*AP35^2+(-AS32)-AM31)/AP35))+((0.5*AP20*AP35^2+(-AS32)-AM31)/AP35)) -> 2.568761546 | AP91: m
D99: =IF(D13<0,(D13+D13/2)/$AZ$26,"") -> -1.533845207 | J99: =IF(D13>0,(D13+D13/2)/$AZ$26,"") ->  | N99: =IF(N14<0,(N14+N14/2)/$AZ$26,"") ->  | T99: =IF(N14>0,(N14+N14/2)/$AZ$26,"") -> 0.1598600084 | X99: =IF(X13<0,(X13+X13/2)/$AZ$26,"") ->  | AD99: =IF(X13>0,(X13+X13/2)/$AZ$26,"") -> 2.153959352e-17 | AH99: =IF(AH14<0,(AH14+AH14/2)/$AZ$26,"") -> -0.1598600084 | AN99: =IF(AH14>0,(AH14+AH14/2)/$AZ$26,"") ->  | AR99: =IF(AR13<0,(AR13+AR13/2)/$AZ$26,"") ->  | AX99: =IF(AR13>0,(AR13+AR13/2)/$AZ$26,"") -> 1.533845207
B101: kiriş faydalı yükseklik d (m) | H101: =O46-M3 -> 0.67 | R101: =Y46-M3 -> 0.67 | AB101: =AI46-M3 -> 0.67 | AL101: =AS46-M3 -> 0.67
B103: kiriş kolon yüzünden d mesafede kesme kuvveti (KN) | H103: =(L20*L35-((0.5*L20*L35^2-O31-I32)/L35))-L20*(MIN(G4,G41)/2+H101) -> 15.11238454 | O103: =((0.5*L20*L35^2-O31-I32)/L35)-L20*(MIN(Q4,Q41)/2+H101) -> 16.48761546 | R103: =(V20*V35-((0.5*V20*V35^2-Y32-S31)/V35))-V20*(MIN(Q4,Q41)/2+R101) -> 15.88000247 | Y103: =((0.5*V20*V35^2-Y32-S31)/V35)-V20*(MIN(AA4,AA41)/2+R101) -> 15.71999753 | AB103: =(AF20*AF35-((0.5*AF20*AF35^2-AI31-AC32)/AF35))-AF20*(MIN(AA4,AA41)/2+AB101) -> 15.71999753 | AI103: =((0.5*AF20*AF35^2-AI31-AC32)/AF35)-AF20*(MIN(AK4,AK41)/2+AB101) -> 15.88000247 | AL103: =(AP20*AP35-((0.5*AP20*AP35^2-AS32-AM31)/AP35))-AP20*(MIN(AK4,AK41)/2+AL101) -> 16.48761546 | AS103: =((0.5*AP20*AP35^2-AS32-AM31)/AP35)-AP20*(MIN(AU4,AU41)/2+AL101) -> 15.11238454
B105: kiriş kolon yüzünden 2*h mesafede kesme kuvveti (KN) | H105: =(L20*L35-((0.5*L20*L35^2-O31-I32)/L35))-L20*(MIN(G4,G41)/2+2*O46) -> 7.812384536 | O105: =((0.5*L20*L35^2-O31-I32)/L35)-L20*(MIN(Q4,Q41)/2+2*O46) -> 9.187615464 | R105: =(V20*V35-((0.5*V20*V35^2-Y32-S31)/V35))-V20*(MIN(Q4,Q41)/2+2*Y46) -> 8.580002474 | Y105: =((0.5*V20*V35^2-Y32-S31)/V35)-V20*(MIN(AA4,AA41)/2+2*Y46) -> 8.419997526 | AB105: =(AF20*AF35-((0.5*AF20*AF35^2-AI31-AC32)/AF35))-AF20*(MIN(AA4,AA41)/2+2*AI46) -> 8.419997526 | AI105: =((0.5*AF20*AF35^2-AI31-AC32)/AF35)-AF20*(MIN(AK4,AK41)/2+2*AI46) -> 8.580002474 | AL105: =(AP20*AP35-((0.5*AP20*AP35^2-AS32-AM31)/AP35))-AP20*(MIN(AK4,AK41)/2+2*AS46) -> 9.187615464 | AS105: =((0.5*AP20*AP35^2-AS32-AM31)/AP35)-AP20*(MIN(AU4,AU41)/2+2*AS46) -> 7.812384536
B107: kiriş kolon yüzü kesme kuvveti (KN) | H107: =(L20*L35-((0.5*L20*L35^2-O31-I32)/L35))-L20*MIN(G4,G41)/2 -> 21.81238454 | O107: =((0.5*L20*L35^2-O31-I32)/L35)-L20*MIN(Q4,Q41)/2 -> 23.18761546 | R107: =(V20*V35-((0.5*V20*V35^2-Y32-S31)/V35))-V20*MIN(Q4,Q41)/2 -> 22.58000247 | Y107: =((0.5*V20*V35^2-Y32-S31)/V35)-V20*MIN(AA4,AA41)/2 -> 22.41999753 | AB107: =(AF20*AF35-((0.5*AF20*AF35^2-AI31-AC32)/AF35))-AF20*MIN(AA4,AA41)/2 -> 22.41999753 | AI107: =((0.5*AF20*AF35^2-AI31-AC32)/AF35)-AF20*MIN(AK4,AK41)/2 -> 22.58000247 | AL107: =(AP20*AP35-((0.5*AP20*AP35^2-AS32-AM31)/AP35))-AP20*MIN(AK4,AK41)/2 -> 23.18761546 | AS107: =((0.5*AP20*AP35^2-AS32-AM31)/AP35)-AP20*MIN(AU4,AU41)/2 -> 21.81238454
B109: kiriş kolon yüzü moment (KNm) | H109: =+I32-(L20*L35-((0.5*L20*L35^2-O31-I32)/L35))*MIN(G4,G41)/3 -> 14.35588021 | O109: =-O31-((0.5*L20*L35^2-O31-I32)/L35)*MIN(Q4,Q41)/3 -> 17.56475238 | R109: =+S31-(V20*V35-((0.5*V20*V35^2-Y32-S31)/V35))*MIN(Q4,Q41)/3 -> 16.92000783 | Y109: =-Y32-((0.5*V20*V35^2-Y32-S31)/V35)*MIN(AA4,AA41)/3 -> 16.54666296 | AB109: =+AC32-(AF20*AF35-((0.5*AF20*AF35^2-AI31-AC32)/AF35))*MIN(AA4,AA41)/3 -> 16.54666296 | AI109: =-AI31-((0.5*AF20*AF35^2-AI31-AC32)/AF35)*MIN(AK4,AK41)/3 -> 16.92000783 | AL109: =+AM31-(AP20*AP35-((0.5*AP20*AP35^2-AS32-AM31)/AP35))*MIN(AK4,AK41)/3 -> 17.56475238 | AS109: =-AS32-((0.5*AP20*AP35^2-AS32-AM31)/AP35)*MIN(AU4,AU41)/3 -> 14.35588021

Sheet 5_aciklikli
B2: ÇERÇEVE CROSS (5 AÇIKLIKLI) (atalet momentleri etkin rijitlik çarpanı ile çarpılmış) (inş.müh. Gürcan BERBEROĞLU tel: 0532 366 02 04 www.betoncelik.com )
I3: pas payı d ' = | M3: 0.03 | O3: m | V3: dikkat sadece sarı hücrelere rakam giriniz.
G4: 0.5 | I4: m | Q4: 0.5 | S4: m | AA4: 0.5 | AC4: m | AK4: 0.5 | AM4: m | AU4: 0.5 | AW4: m | BE4: 0.5 | BG4: m | BO4: kiriş için etkin rijitlik çarpanı = | BW4: 0.35
BO5: kolon için etkin rijitlik çarpanı = | BW5: 0.7
I6: m | S6: m | AC6: m | AM6: m | AW6: m | BG6: m
I7: 0.6 | S7: 0.6 | AC7: 0.6 | AM7: 0.6 | AW7: 0.6 | BG7: 0.6
BO8: Not: kolon ve kiriş atalet momentleri etkin rijitlik çarpanı ile çarpılmıştır.
G11: dm4 | Q11: dm4 | AA11: dm4 | AK11: dm4 | AU11: dm4 | BE11: dm4
D13: =SUM(D14:E18) -> -12.09092084 | G13: =(I7*G4^3/12*10000)*BW5 -> 43.75 | I13: =SUM(I14:J18) -> -11.13637446 | Q13: =(S7*Q4^3/12*10000)*BW5 -> 43.75 | X13: =SUM(X14:Y18) -> 7.234199159 | AA13: =(AC7*AA4^3/12*10000)*BW5 -> 43.75 | AC13: =SUM(AC14:AD18) -> 6.663078172 | AK13: =(AM7*AK4^3/12*10000)*BW5 -> 43.75 | AR13: =SUM(AR14:AS18) -> 1.683435084 | AU13: =(AW7*AU4^3/12*10000)*BW5 -> 43.75 | AW13: =SUM(AW14:AX18) -> 1.550532314 | BE13: =(BG7*BE4^3/12*10000)*BW5 -> 43.75
D14: =-I30*G22 -> 6.276509371e-06 | I14: =-I30*G18 -> 5.780995473e-06 | N14: =SUM(N15:O18) -> 1.456015969 | S14: =SUM(S15:T18) -> 1.34106734 | X14: =-(Y30+AC30)*AA22 -> 2.636518495e-05 | AC14: =-(Y30+AC30)*AA18 -> 2.428372298e-05 | AH14: =SUM(AH15:AI18) -> -1.301458907 | AM14: =SUM(AM15:AN18) -> -1.198712152 | AR14: =-(AS30+AW30)*AU22 -> 3.424388134e-05 | AW14: =-(AS30+AW30)*AU18 -> 3.154041702e-05 | BB14: =SUM(BB15:BC18) -> -2.125234999 | BG14: =SUM(BG15:BH18) -> -1.957453288 | BJ14: m
D15: =-I28*G22 -> 6.545048583e-05 | I15: =-I28*G18 -> 6.028334221e-05 | N15: =-(O29+S29)*Q22 -> -4.965649318e-05 | S15: =-(O29+S29)*Q18 -> -4.573624371e-05 | X15: =-(Y28+AC28)*AA22 -> 0.0004862473311 | AC15: =-(Y28+AC28)*AA18 -> 0.0004478593839 | AH15: =-(AI29+AM29)*AK22 -> -0.0001535674689 | AM15: =-(AI29+AM29)*AK18 -> -0.0001414437213 | AR15: =-(AS28+AW28)*AU22 -> 0.0007171088619 | AW15: =-(AS28+AW28)*AU18 -> 0.0006604950044 | BB15: =-BC29*BE22 -> -0.000118280133 | BG15: =-BC29*BE18 -> -0.0001089422278 | BJ15: 3.8
D16: =-I26*G22 -> -0.00165165642 | G16: I = | I16: =-I26*G18 -> -0.001521262492 | N16: =-(O27+S27)*Q22 -> -0.0005178103642 | Q16: I = | S16: =-(O27+S27)*Q18 -> -0.0004769305986 | X16: =-(Y26+AC26)*AA22 -> 0.00782907089 | AA16: I = | AC16: =-(Y26+AC26)*AA18 -> 0.007210986346 | AH16: =-(AI27+AM27)*AK22 -> -0.003046515364 | AK16: I = | AM16: =-(AI27+AM27)*AK18 -> -0.002806000993 | AR16: =-(AS26+AW26)*AU22 -> 0.01609537462 | AU16: I = | AW16: =-(AS26+AW26)*AU18 -> 0.01482468715 | BB16: =-BC27*BE22 -> -0.002654775519 | BE16: I = | BG16: =-BC27*BE18 -> -0.002445187978
D17: =-I24*G22 -> -0.1824583965 | I17: =-I24*G18 -> -0.1680537863 | N17: =-(O25+S25)*Q22 -> 0.01306705064 | S17: =-(O25+S25)*Q18 -> 0.01203544138 | X17: =-(Y24+AC24)*AA22 -> 0.06732249205 | AC17: =-(Y24+AC24)*AA18 -> 0.06200755847 | AH17: =-(AI25+AM25)*AK22 -> -0.06057736229 | AM17: =-(AI25+AM25)*AK18 -> -0.05579493895 | AR17: =-(AS24+AW24)*AU22 -> 0.4109190629 | AW17: =-(AS24+AW24)*AU18 -> 0.3784780843 | BB17: =-BC25*BE22 -> -0.06777710331 | BG17: =-BC25*BE18 -> -0.06242627936
D18: =-(E22+I22)*G22 -> -11.90688252 | G18: =(4*G13/BJ15)/((4*G13/BJ15)+(4*L21/L35)+(4*G27/BJ26)) -> 0.3582479535 | I18: =-(E22+I22)*G18 -> -10.96686548 | N18: =-(O22+O23+S22+S23)*Q22 -> 1.443516386 | Q18: =(4*Q13/BJ15)/((4*Q13/BJ15)+(4*V21/V35)+(4*Q27/BJ26)+(4*L21/L35)) -> 0.295120192 | S18: =-(O22+O23+S22+S23)*Q18 -> 1.329554566 | X18: =-(Y22+AC22)*AA22 -> 7.158534983 | AA18: =(4*AA13/BJ15)/((4*AA13/BJ15)+(4*AA27/BJ26)+(4*V21/V35)+(4*AF21/AF35)) -> 0.2637354994 | AC18: =-(Y22+AC22)*AA18 -> 6.593387484 | AH18: =-(AI22+AM22+AI23+AM23)*AK22 -> -1.237681462 | AK18: =(4*AK13/BJ15)/((4*AK13/BJ15)+(4*AK27/BJ26)+(4*AF21/AF35)+(4*AP21/AP35)) -> 0.2340459889 | AM18: =-(AI22+AM22+AI23+AM23)*AK18 -> -1.139969768 | AR18: =-(AS22+AW22)*AU22 -> 1.255669293 | AU18: =(4*AU13/BJ15)/((4*AU13/BJ15)+(4*AU27/BJ26)+(4*AP21/AP35)+(4*AZ21/AZ35)) -> 0.2386335515 | AW18: =-(AS22+AW22)*AU18 -> 1.156537507 | BB18: =-(BC22+BG22+BC23)*BE22 -> -2.05468484 | BE18: =(4*BE13/BJ15)/((4*BE13/BJ15)+(4*BE27/BJ26)+(4*AZ21/AZ35)) -> 0.3212901471 | BG18: =-(BC22+BG22+BC23)*BE18 -> -1.892472879
B20: q = | C20: 10 | E20: KN/m | K20: q = | L20: 15 | N20: KN/m | U20: q = | V20: 10 | X20: KN/m | AE20: q = | AF20: 10 | AH20: KN/m | AO20: q = | AP20: 10 | AR20: KN/m | AY20: q = | AZ20: 5 | BB20: KN/m | BG20: q = | BH20: 10 | BJ20: KN/m
F21: 0 | H21: =(4*L21/L35)/((4*G13/BJ15)+(4*L21/L35)+(4*G27/BJ26)) -> 0.2527971256 | K21: I = | L21: =((L43*H45^3/12+H45*L43*(((H45*L43*H45/2+L50*(O46-H45)*((O46-H45)/2+H45))/(L43*H45+(O46-H45)*L50))-H45/2)^2+L50*(O46-H45)^3/12+L50*(O46-H45)*(O46-((H45*L43*H45/2+L50*(O46-H45)*((O46-H45)/2+H45))/(L43*H45+(O46-H45)*L50))-(O46-H45)/2)^2)*10000)*BW4 -> 44.68333333 | N21: dm4 | P21: =(4*L21/L35)/((4*Q13/BJ15)+(4*V21/V35)+(4*Q27/BJ26)+(4*L21/L35)) -> 0.2082511164 | R21: =(4*V21/V35)/((4*Q13/BJ15)+(4*V21/V35)+(4*Q27/BJ26)+(4*L21/L35)) -> 0.1762124831 | U21: I = | V21: =((V43*R45^3/12+R45*V43*(((R45*V43*R45/2+V50*(Y46-R45)*((Y46-R45)/2+R45))/(V43*R45+(Y46-R45)*V50))-R45/2)^2+V50*(Y46-R45)^3/12+V50*(Y46-R45)*(Y46-((R45*V43*R45/2+V50*(Y46-R45)*((Y46-R45)/2+R45))/(V43*R45+(Y46-R45)*V50))-(Y46-R45)/2)^2)*10000)*BW4 -> 44.68333333 | X21: dm4 | Z21: =(4*V21/V35)/((4*AA13/BJ15)+(4*AA27/BJ26)+(4*V21/V35)+(4*AF21/AF35)) -> 0.1574730855 | AB21: =(4*AF21/AF35)/((4*AA13/BJ15)+(4*AA27/BJ26)+(4*V21/V35)+(4*AF21/AF35)) -> 0.2924500158 | AE21: I = | AF21: =((AF43*AB45^3/12+AB45*AF43*(((AB45*AF43*AB45/2+AF50*(AI46-AB45)*((AI46-AB45)/2+AB45))/(AF43*AB45+(AI46-AB45)*AF50))-AB45/2)^2+AF50*(AI46-AB45)^3/12+AF50*(AI46-AB45)*(AI46-((AB45*AF43*AB45/2+AF50*(AI46-AB45)*((AI46-AB45)/2+AB45))/(AF43*AB45+(AI46-AB45)*AF50))-(AI46-AB45)/2)^2)*10000)*BW4 -> 44.68333333 | AH21: dm4 | AJ21: =(4*AF21/AF35)/((4*AK13/BJ15)+(4*AK27/BJ26)+(4*AF21/AF35)+(4*AP21/AP35)) -> 0.2595280246 | AL21: =(4*AP21/AP35)/((4*AK13/BJ15)+(4*AK27/BJ26)+(4*AF21/AF35)+(4*AP21/AP35)) -> 0.2523189128 | AO21: I = | AP21: =((AP43*AL45^3/12+AL45*AP43*(((AL45*AP43*AL45/2+AP50*(AS46-AL45)*((AS46-AL45)/2+AL45))/(AP43*AL45+(AS46-AL45)*AP50))-AL45/2)^2+AP50*(AS46-AL45)^3/12+AP50*(AS46-AL45)*(AS46-((AL45*AP43*AL45/2+AP50*(AS46-AL45)*((AS46-AL45)/2+AL45))/(AP43*AL45+(AS46-AL45)*AP50))-(AS46-AL45)/2)^2)*10000)*BW4 -> 44.68333333 | AR21: dm4 | AT21: =(4*AP21/AP35)/((4*AU13/BJ15)+(4*AU27/BJ26)+(4*AP21/AP35)+(4*AZ21/AZ35)) -> 0.257264645 | AV21: =(4*AZ21/AZ35)/((4*AU13/BJ15)+(4*AU27/BJ26)+(4*AP21/AP35)+(4*AZ21/AZ35)) -> 0.2450139476 | AY21: I = | AZ21: =((AZ43*AV45^3/12+AV45*AZ43*(((AV45*AZ43*AV45/2+AZ50*(BC46-AV45)*((BC46-AV45)/2+AV45))/(AZ43*AV45+(BC46-AV45)*AZ50))-AV45/2)^2+AZ50*(BC46-AV45)^3/12+AZ50*(BC46-AV45)*(BC46-((AV45*AZ43*AV45/2+AZ50*(BC46-AV45)*((BC46-AV45)/2+AV45))/(AZ43*AV45+(BC46-AV45)*AZ50))-(BC46-AV45)/2)^2)*10000)*BW4 -> 44.68333333 | BB21: dm4 | BD21: =(4*AZ21/AZ35)/((4*BE13/BJ15)+(4*BE27/BJ26)+(4*AZ21/AZ35)) -> 0.3298805503 | BF21: 0
E22: =-C20*E35*E35/2 -> -7.2 | G22: =(4*G27/BJ26)/((4*G13/BJ15)+(4*L21/L35)+(4*G27/BJ26)) -> 0.3889549209 | I22: =L20*L35^2/12 -> 37.8125 | O22: =-L20*L35^2/12 -> -37.8125 | Q22: =(4*Q27/BJ26)/((4*Q13/BJ15)+(4*V21/V35)+(4*Q27/BJ26)+(4*L21/L35)) -> 0.3204162085 | S22: =V20*V35^2/12 -> 35.20833333 | Y22: =-V20*V35^2/12 -> -35.20833333 | AA22: =(4*AA27/BJ26)/((4*AA13/BJ15)+(4*AA27/BJ26)+(4*V21/V35)+(4*AF21/AF35)) -> 0.2863413993 | AC22: =AF20*AF35^2/12 -> 10.20833333 | AI22: =-AF20*AF35^2/12 -> -10.20833333 | AK22: =(4*AK27/BJ26)/((4*AK13/BJ15)+(4*AK27/BJ26)+(4*AF21/AF35)+(4*AP21/AP35)) -> 0.2541070737 | AM22: =AP20*AP35^2/12 -> 10.8 | AS22: =-AP20*AP35^2/12 -> -10.8 | AU22: =(4*AU27/BJ26)/((4*AU13/BJ15)+(4*AU27/BJ26)+(4*AP21/AP35)+(4*AZ21/AZ35)) -> 0.2590878559 | AW22: =AZ20*AZ35^2/12 -> 5.9535 | BC22: =-AZ20*AZ35^2/12 -> -5.9535 | BE22: =(4*BE27/BJ26)/((4*BE13/BJ15)+(4*BE27/BJ26)+(4*AZ21/AZ35)) -> 0.3488293026 | BG22: =BH20*BF35*BF35/2 -> 11.25
I23: =-(E22+I22)*H21 -> -7.738752007 | O23: =+I23/2 -> -3.869376003 | S23: =+Y23/2 -> 1.968413568 | Y23: =-(Y22+AC22)*Z21 -> 3.936827136 | AC23: =-(Y22+AC22)*AB21 -> 7.311250396 | AI23: =+AC23/2 -> 3.655625198 | AM23: =+AS23/2 -> 0.6234165511 | AS23: =-(AS22+AW22)*AT21 -> 1.246833102 | AW23: =-(AS22+AW22)*AV21 -> 1.187460097 | BC23: =+AW23/2 -> 0.5937300486
I24: =+O24/2 -> 0.4690990824 | O24: =-(O22+O23+S22+S23)*P21 -> 0.9381981648 | S24: =-(O22+O23+S22+S23)*R21 -> 0.7938599856 | Y24: =+S24/2 -> 0.3969299928 | AC24: =+AI24/2 -> -0.6320426668 | AI24: =-(AI22+AM22+AI23+AM23)*AJ21 -> -1.264085334 | AM24: =-(AI22+AI23+AM22+AM23)*AL21 -> -1.228971852 | AS24: =+AM24/2 -> -0.614485926 | AW24: =+BC24/2 -> -0.971536165 | BC24: =-(BC22+BG22+BC23)*BD21 -> -1.94307233
G25: dm4 | I25: =-I24*H21 -> -0.1185868996 | O25: =+I25/2 -> -0.05929344982 | Q25: dm4 | S25: =+Y25/2 -> 0.0185119591 | Y25: =-(Y24+AC24)*Z21 -> 0.03702391819 | AA25: dm4 | AC25: =-(Y24+AC24)*AB21 -> 0.06875870522 | AI25: =+AC25/2 -> 0.03437935261 | AK25: dm4 | AM25: =+AS25/2 -> 0.2040137051 | AS25: =-(AS24+AW24)*AT21 -> 0.4080274103 | AU25: dm4 | AW25: =-(AS24+AW24)*AV21 -> 0.3885975336 | BC25: =+AW25/2 -> 0.1942987668 | BE25: dm4 | BJ25: m
I26: =+O26/2 -> 0.004246395485 | O26: =-(O25+S25)*P21 -> 0.008492790971 | S26: =-(O25+S25)*R21 -> 0.007186207745 | Y26: =+S26/2 -> 0.003593103872 | AC26: =+AI26/2 -> -0.03093483968 | AI26: =-(AI25+AM25)*AJ21 -> -0.06186967935 | AM26: =-(AI25+AM25)*AL21 -> -0.06015107715 | AS26: =+AM26/2 -> -0.03007553857 | AW26: =+BC26/2 -> -0.03204769206 | BC26: =-BC25*BD21 -> -0.06409538412 | BJ26: 3.5
G27: =(I38*G41^3/12*10000)*BW5 -> 43.75 | I27: =-I26*H21 -> -0.001073476573 | O27: =+I27/2 -> -0.0005367382864 | Q27: =(S38*Q41^3/12*10000)*BW5 -> 43.75 | S27: =+Y27/2 -> 0.002152793749 | Y27: =-(Y26+AC26)*Z21 -> 0.004305587499 | AA27: =(AC38*AA41^3/12*10000)*BW5 -> 43.75 | AC27: =-(Y26+AC26)*AB21 -> 0.007996091069 | AI27: =+AC27/2 -> 0.003998045534 | AK27: =(AM38*AK41^3/12*10000)*BW5 -> 43.75 | AM27: =+AS27/2 -> 0.007991055438 | AS27: =-(AS26+AW26)*AT21 -> 0.01598211088 | AU27: =(AW38*AU41^3/12*10000)*BW5 -> 43.75 | AW27: =-(AS26+AW26)*AV21 -> 0.01522105798 | BC27: =+AW27/2 -> 0.007610528989 | BE27: =(BG38*BE41^3/12*10000)*BW5 -> 43.75
I28: =+O28/2 -> -0.0001682726771 | O28: =-(O27+S27)*P21 -> -0.0003365453543 | S28: =-(O27+S27)*R21 -> -0.0002847691459 | Y28: =+S28/2 -> -0.000142384573 | AC28: =+AI28/2 -> -0.001555753846 | AI28: =-(AI27+AM27)*AJ21 -> -0.003111507692 | AM28: =-(AI27+AM27)*AL21 -> -0.003025076923 | AS28: =+AM28/2 -> -0.001512538461 | AW28: =+BC28/2 -> -0.001255282746 | BC28: =-BC27*BD21 -> -0.002510565491
I29: =-I28*H21 -> 4.253884909e-05 | O29: =+I29/2 -> 2.126942455e-05 | S29: =+Y29/2 -> 0.0001337055482 | Y29: =-(Y28+AC28)*Z21 -> 0.0002674110964 | AC29: =-(Y28+AC28)*AB21 -> 0.0004966206075 | AI29: =+AC29/2 -> 0.0002483103038 | AM29: =+AS29/2 -> 0.0003560312702 | AS29: =-(AS28+AW28)*AT21 -> 0.0007120625403 | AW29: =-(AS28+AW28)*AV21 -> 0.0006781548003 | BC29: =+AW29/2 -> 0.0003390774002
G30: I = | I30: =+O30/2 -> -1.613685554e-05 | O30: =-(O29+S29)*P21 -> -3.227371108e-05 | Q30: I = | S30: =-(O29+S29)*R21 -> -2.730852476e-05 | Y30: =+S30/2 -> -1.365426238e-05 | AA30: I = | AC30: =+AI30/2 -> -7.842178743e-05 | AI30: =-(AI29+AM29)*AJ21 -> -0.0001568435749 | AK30: I = | AM30: =-(AI29+AM29)*AL21 -> -0.0001524868089 | AS30: =+AM30/2 -> -7.624340445e-05 | AU30: I = | AW30: =+BC30/2 -> -5.592751968e-05 | BC30: =-BC29*BD21 -> -0.0001118550394 | BE30: I =
I31: =-I30*H21 -> 4.079350696e-06 | O31: =SUM(O22:P30) -> -40.79536279 | S31: =SUM(S22:T30) -> 37.99827948 | Y31: =-(Y30+AC30)*Z21 -> 1.449949966e-05 | AC31: =-(Y30+AC30)*AB21 -> 2.692764223e-05 | AI31: =SUM(AI22:AJ30) -> -7.843305791 | AM31: =SUM(AM22:AN30) -> 10.34347685 | AS31: =-(AS30+AW30)*AT21 -> 3.400290588e-05 | AW31: =-(AS30+AW30)*AV21 -> 3.238371989e-05 | BC31: =SUM(BC22:BD30) -> -7.167311713
I32: =SUM(I22:J31) -> 30.4272953 | Y32: =SUM(Y22:Z31) -> -30.82952772 | AC32: =SUM(AC22:AD31) -> 16.93225039 | AS32: =SUM(AS22:AT31) -> -9.774561558 | AW32: =SUM(AW22:AX31) -> 6.54059416
E35: 1.2 | G35: m | L35: 5.5 | N35: m | V35: 6.5 | X35: m | AF35: 3.5 | AH35: m | AP35: 3.6 | AR35: m | AZ35: 3.78 | BB35: m | BF35: 1.5 | BH35: m
I37: m | S37: m | AC37: m | AM37: m | AW37: m | BG37: m
I38: 0.6 | S38: 0.6 | AC38: 0.6 | AM38: 0.6 | AW38: 0.6 | BG38: 0.6
G41: 0.5 | I41: m | Q41: 0.5 | S41: m | AA41: 0.5 | AC41: m | AK41: 0.5 | AM41: m | AU41: 0.5 | AW41: m | BE41: 0.5 | BG41: m
L43: 1.2 | N43: m | V43: 1.2 | X43: m | AF43: 1.2 | AH43: m | AP43: 1.2 | AR43: m | AZ43: 1.2 | BB43: m
H45: 0.1 | J45: m | O45: m | R45: 0.1 | T45: m | Y45: m | AB45: 0.1 | AD45: m | AI45: m | AL45: 0.1 | AN45: m | AS45: m | AV45: 0.1 | AX45: m | BC45: m
O46: 0.7 | Y46: 0.7 | AI46: 0.7 | AS46: 0.7 | BC46: 0.7
L50: 0.25 | N50: m | V50: 0.25 | X50: m | AF50: 0.25 | AH50: m | AP50: 0.25 | AR50: m | AZ50: 0.25 | BB50: m
D52: =IF(I13<0,I13/2,"") -> -5.56818723 | J52: =IF(I13>0,I13/2,"") ->  | N52: =IF(S14<0,S14/2,"") ->  | T52: =IF(S14>0,S14/2,"") -> 0.6705336701 | X52: =IF(AC13<0,AC13/2,"") ->  | AD52: =IF(AC13>0,AC13/2,"") -> 3.331539086 | AH52: =IF(AM14<0,AM14/2,"") -> -0.5993560758 | AN52: =IF(AM14>0,AM14/2,"") ->  | AR52: =IF(AW13<0,AW13/2,"") ->  | AX52: =IF(AW13>0,AW13/2,"") -> 0.775266157 | BB52: =IF(BG14<0,BG14/2,"") -> -0.9787266442 | BH52: =IF(BG14>0,BG14/2,"") -> 
J55: moment diyagramı (KNm)
R56: =-S31 -> -37.99827948
H57: =-I32 -> -30.4272953 | Z57: =Y32 -> -30.82952772 | AB57: =-AC32 -> -16.93225039 | AJ57: =AI31 -> -7.843305791 | AL57: =-+AM31 -> -10.34347685 | AT57: =AS32 -> -9.774561558 | AV57: =-AW32 -> -6.54059416 | BD57: =BC31 -> -7.167311713
P58: =O31 -> -40.79536279
H59: =IF(E22=0,"",+E22) -> -7.2 | BF59: =IF(BG22=0,"",-BG22) -> -11.25
E61: =IF(I13>0,-I13,"") ->  | I61: =IF(I13<0,-I13,"") -> 11.13637446 | O61: =IF(S14>0,-S14,"") -> -1.34106734 | S61: =IF(S14<0,-S14,"") ->  | Y61: =IF(AC13>0,-AC13,"") -> -6.663078172 | AC61: =IF(AC13<0,-AC13,"") ->  | AI61: =IF(AM14>0,-AM14,"") ->  | AM61: =IF(AM14<0,-AM14,"") -> 1.198712152 | AS61: =IF(AW13>0,-AW13,"") -> -1.550532314 | AW61: =IF(AW13<0,-AW13,"") ->  | BC61: =IF(BG14>0,-BG14,"") ->  | BG61: =IF(BG14<0,-BG14,"") -> 1.957453288
E62: =IF(D13<0,D13,"") -> -12.09092084 | I62: =IF(D13>0,D13,"") ->  | O62: =IF(N14<0,N14,"") ->  | S62: =IF(N14>0,N14,"") -> 1.456015969 | Y62: =IF(X13<0,X13,"") ->  | AC62: =IF(X13>0,X13,"") -> 7.234199159 | AI62: =IF(AH14<0,AH14,"") -> -1.301458907 | AM62: =IF(AH14>0,AH14,"") ->  | AS62: =IF(AR13<0,AR13,"") ->  | AW62: =IF(AR13>0,AR13,"") -> 1.683435084 | BC62: =IF(BB14<0,BB14,"") -> -2.125234999 | BG62: =IF(BB14>0,BB14,"") -> 
L65: =(((I32-(-O31))/L35+L20*L35*0.5)^2/(2*L20))-I32 -> 21.22587476 | V65: =(((S31-(-Y32))/V35+V20*V35*0.5)^2/(2*V20))-S31 -> 18.45941415 | AF65: =(((AC32-(-AI31))/AF35+AF20*AF35*0.5)^2/(2*AF20))-AC32 -> 3.261901149 | AP65: =(((AM31-(-AS32))/AP35+AP20*AP35*0.5)^2/(2*AP20))-AM31 -> 6.142229502 | AZ65: =(((AW32-(-BC31))/AZ35+AZ20*AZ35*0.5)^2/(2*AZ20))-AW32 -> 2.079045971
D74: =IF(D13>0,-D13/2,"") ->  | J74: =IF(D13<0,-D13/2,"") -> 6.045460421 | N74: =IF(N14>0,-N14/2,"") -> -0.7280079847 | T74: =IF(N14<0,-N14/2,"") ->  | X74: =IF(X13>0,-X13/2,"") -> -3.617099579 | AD74: =IF(X13<0,-X13/2,"") ->  | AH74: =IF(AH14>0,-AH14/2,"") ->  | AN74: =IF(AH14<0,-AH14/2,"") -> 0.6507294537 | AR74: =IF(AR13>0,-AR13/2,"") -> -0.8417175419 | AX74: =IF(AR13<0,-AR13/2,"") ->  | BB74: =IF(BB14>0,-BB14/2,"") ->  | BH74: =IF(BB14<0,-BB14/2,"") -> 1.062617499
D77: =IF(I13<0,(I13+I13/2)/$BJ$15,"") -> -4.395937287 | J77: =IF(I13>0,(I13+I13/2)/$BJ$15,"") ->  | N77: =IF(S14<0,(S14+S14/2)/$BJ$15,"") ->  | T77: =IF(S14>0,(S14+S14/2)/$BJ$15,"") -> 0.529368687 | X77: =IF(AC13<0,(AC13+AC13/2)/$BJ$15,"") ->  | AD77: =IF(AC13>0,(AC13+AC13/2)/$BJ$15,"") -> 2.630162436 | AH77: =IF(AM14<0,(AM14+AM14/2)/$BJ$15,"") -> -0.4731758493 | AN77: =IF(AM14>0,(AM14+AM14/2)/$BJ$15,"") ->  | AR77: =IF(AW13<0,(AW13+AW13/2)/$BJ$15,"") ->  | AX77: =IF(AW13>0,(AW13+AW13/2)/$BJ$15,"") -> 0.6120522292 | BB77: =IF(BG14<0,(BG14+BG14/2)/$BJ$15,"") -> -0.7726789296 | BH77: =IF(BG14>0,(BG14+BG14/2)/$BJ$15,"") -> 
J80: kesme kuvveti diyagramı (KN)
H84: =L20*L35+P89 -> 39.36489682 | R84: =V20*V35+Z89 -> 33.60288489 | AB84: =AF20*AF35+AJ89 -> 20.09684131 | AL84: =AP20*AP35+AT89 -> 18.15803203 | AV84: =AZ20*AZ35+BD89 -> 9.284201706 | BF84: =IF(BG22=0,"",BH20*BF35) -> 15
D86: =IF(D77<0,D77,"") -> -4.395937287 | J86: =IF(J77>0,J77,"") ->  | N86: =IF(N77<0,N77,"") ->  | T86: =IF(T77>0,T77,"") -> 0.529368687 | X86: =IF(X77<0,X77,"") ->  | AD86: =IF(AD77>0,AD77,"") -> 2.630162436 | AH86: =IF(AH77<0,AH77,"") -> -0.4731758493 | AN86: =IF(AN77>0,AN77,"") ->  | AR86: =IF(AR77<0,AR77,"") ->  | AX86: =IF(AX77>0,AX77,"") -> 0.6120522292 | BB86: =IF(BB77<0,BB77,"") -> -0.7726789296 | BH86: =IF(BH77>0,BH77,"") -> 
D87: =IF(D99<0,D99,"") -> -5.181823218 | J87: =IF(J99>0,J99,"") ->  | N87: =IF(N99<0,N99,"") ->  | T87: =IF(T99>0,T99,"") -> 0.624006844 | X87: =IF(X99<0,X99,"") ->  | AD87: =IF(AD99>0,AD99,"") -> 3.100371068 | AH87: =IF(AH99<0,AH99,"") -> -0.5577681032 | AN87: =IF(AN99>0,AN99,"") ->  | AR87: =IF(AR99<0,AR99,"") ->  | AX87: =IF(AX99>0,AX99,"") -> 0.7214721787 | BB87: =IF(BB99<0,BB99,"") -> -0.9108149995 | BH87: =IF(BH99>0,BH99,"") -> 
P89: =-(0.5*L20*L35^2+(-O31)-I32)/L35 -> -43.13510318 | Z89: =-(0.5*V20*V35^2+(-Y32)-S31)/V35 -> -31.39711511 | AJ89: =-(0.5*AF20*AF35^2+(-AI31)-AC32)/AF35 -> -14.90315869 | AT89: =-(0.5*AP20*AP35^2+(-AS32)-AM31)/AP35 -> -17.84196797 | BD89: =-(0.5*AZ20*AZ35^2+(-BC31)-AW32)/AZ35 -> -9.615798294
F90: =IF(E22=0,"",-C20*E35) -> -12
J91: =((L20*L35-((0.5*L20*L35^2+(-O31)-I32)/L35))*L35)/((L20*L35-((0.5*L20*L35^2+(-O31)-I32)/L35))+((0.5*L20*L35^2+(-O31)-I32)/L35)) -> 2.624326455 | L91: m | T91: =((V20*V35-((0.5*V20*V35^2+(-Y32)-S31)/V35))*V35)/((V20*V35-((0.5*V20*V35^2+(-Y32)-S31)/V35))+((0.5*V20*V35^2+(-Y32)-S31)/V35)) -> 3.360288489 | V91: m | AD91: =((AF20*AF35-((0.5*AF20*AF35^2+(-AI31)-AC32)/AF35))*AF35)/((AF20*AF35-((0.5*AF20*AF35^2+(-AI31)-AC32)/AF35))+((0.5*AF20*AF35^2+(-AI31)-AC32)/AF35)) -> 2.009684131 | AF91: m | AN91: =((AP20*AP35-((0.5*AP20*AP35^2+(-AS32)-AM31)/AP35))*AP35)/((AP20*AP35-((0.5*AP20*AP35^2+(-AS32)-AM31)/AP35))+((0.5*AP20*AP35^2+(-AS32)-AM31)/AP35)) -> 1.815803203 | AP91: m | AX91: =((AZ20*AZ35-((0.5*AZ20*AZ35^2+(-BC31)-AW32)/AZ35))*AZ35)/((AZ20*AZ35-((0.5*AZ20*AZ35^2+(-BC31)-AW32)/AZ35))+((0.5*AZ20*AZ35^2+(-BC31)-AW32)/AZ35)) -> 1.856840341 | AZ91: m
D99: =IF(D13<0,(D13+D13/2)/$BJ$26,"") -> -5.181823218 | J99: =IF(D13>0,(D13+D13/2)/$BJ$26,"") ->  | N99: =IF(N14<0,(N14+N14/2)/$BJ$26,"") ->  | T99: =IF(N14>0,(N14+N14/2)/$BJ$26,"") -> 0.624006844 | X99: =IF(X13<0,(X13+X13/2)/$BJ$26,"") ->  | AD99: =IF(X13>0,(X13+X13/2)/$BJ$26,"") -> 3.100371068 | AH99: =IF(AH14<0,(AH14+AH14/2)/$BJ$26,"") -> -0.5577681032 | AN99: =IF(AH14>0,(AH14+AH14/2)/$BJ$26,"") ->  | AR99: =IF(AR13<0,(AR13+AR13/2)/$BJ$26,"") ->  | AX99: =IF(AR13>0,(AR13+AR13/2)/$BJ$26,"") -> 0.7214721787 | BB99: =IF(BB14<0,(BB14+BB14/2)/$BJ$26,"") -> -0.9108149995 | BH99: =IF(BB14>0,(BB14+BB14/2)/$BJ$26,"") -> 
B101: kiriş faydalı yükseklik d (m) | H101: =O46-M3 -> 0.67 | R101: =Y46-M3 -> 0.67 | AB101: =AI46-M3 -> 0.67 | AL101: =AS46-M3 -> 0.67 | AV101: =BC46-M3 -> 0.67
B103: kiriş kolon yüzünden d mesafede kesme kuvveti (KN) | H103: =(L20*L35-((0.5*L20*L35^2-O31-I32)/L35))-L20*(MIN(G4,G41)/2+H101) -> 25.56489682 | O103: =((0.5*L20*L35^2-O31-I32)/L35)-L20*(MIN(Q4,Q41)/2+H101) -> 29.33510318 | R103: =(V20*V35-((0.5*V20*V35^2-Y32-S31)/V35))-V20*(MIN(Q4,Q41)/2+R101) -> 24.40288489 | Y103: =((0.5*V20*V35^2-Y32-S31)/V35)-V20*(MIN(AA4,AA41)/2+R101) -> 22.19711511 | AB103: =(AF20*AF35-((0.5*AF20*AF35^2-AI31-AC32)/AF35))-AF20*(MIN(AA4,AA41)/2+AB101) -> 10.89684131 | AI103: =((0.5*AF20*AF35^2-AI31-AC32)/AF35)-AF20*(MIN(AK4,AK41)/2+AB101) -> 5.703158685 | AL103: =(AP20*AP35-((0.5*AP20*AP35^2-AS32-AM31)/AP35))-AP20*(MIN(AK4,AK41)/2+AL101) -> 8.958032026 | AS103: =((0.5*AP20*AP35^2-AS32-AM31)/AP35)-AP20*(MIN(AU4,AU41)/2+AL101) -> 8.641967974 | AV103: =(AZ20*AZ35-((0.5*AZ20*AZ35^2-BC31-AW32)/AZ35))-AZ20*(MIN(AU4,AU41)/2+AV101) -> 4.684201706 | BC103: =((0.5*AZ20*AZ35^2-BC31-AW32)/AZ35)-AZ20*(MIN(BE4,BE41)/2+AV101) -> 5.015798294
B105: kiriş kolon yüzünden 2*h mesafede kesme kuvveti (KN) | H105: =(L20*L35-((0.5*L20*L35^2-O31-I32)/L35))-L20*(MIN(G4,G41)/2+2*O46) -> 14.61489682 | O105: =((0.5*L20*L35^2-O31-I32)/L35)-L20*(MIN(Q4,Q41)/2+2*O46) -> 18.38510318 | R105: =(V20*V35-((0.5*V20*V35^2-Y32-S31)/V35))-V20*(MIN(Q4,Q41)/2+2*Y46) -> 17.10288489 | Y105: =((0.5*V20*V35^2-Y32-S31)/V35)-V20*(MIN(AA4,AA41)/2+2*Y46) -> 14.89711511 | AB105: =(AF20*AF35-((0.5*AF20*AF35^2-AI31-AC32)/AF35))-AF20*(MIN(AA4,AA41)/2+2*AI46) -> 3.596841315 | AI105: =((0.5*AF20*AF35^2-AI31-AC32)/AF35)-AF20*(MIN(AK4,AK41)/2+2*AI46) -> -1.596841315 | AL105: =(AP20*AP35-((0.5*AP20*AP35^2-AS32-AM31)/AP35))-AP20*(MIN(AK4,AK41)/2+2*AS46) -> 1.658032026 | AS105: =((0.5*AP20*AP35^2-AS32-AM31)/AP35)-AP20*(MIN(AU4,AU41)/2+2*AS46) -> 1.341967974 | AV105: =(AZ20*AZ35-((0.5*AZ20*AZ35^2-BC31-AW32)/AZ35))-AZ20*(MIN(AU4,AU41)/2+2*BC46) -> 1.034201706 | BC105: =((0.5*AZ20*AZ35^2-BC31-AW32)/AZ35)-AZ20*(MIN(BE4,BE41)/2+2*BC46) -> 1.365798294
B107: kiriş kolon yüzü kesme kuvveti (KN) | H107: =(L20*L35-((0.5*L20*L35^2-O31-I32)/L35))-L20*MIN(G4,G41)/2 -> 35.61489682 | O107: =((0.5*L20*L35^2-O31-I32)/L35)-L20*MIN(Q4,Q41)/2 -> 39.38510318 | R107: =(V20*V35-((0.5*V20*V35^2-Y32-S31)/V35))-V20*MIN(Q4,Q41)/2 -> 31.10288489 | Y107: =((0.5*V20*V35^2-Y32-S31)/V35)-V20*MIN(AA4,AA41)/2 -> 28.89711511 | AB107: =(AF20*AF35-((0.5*AF20*AF35^2-AI31-AC32)/AF35))-AF20*MIN(AA4,AA41)/2 -> 17.59684131 | AI107: =((0.5*AF20*AF35^2-AI31-AC32)/AF35)-AF20*MIN(AK4,AK41)/2 -> 12.40315869 | AL107: =(AP20*AP35-((0.5*AP20*AP35^2-AS32-AM31)/AP35))-AP20*MIN(AK4,AK41)/2 -> 15.65803203 | AS107: =((0.5*AP20*AP35^2-AS32-AM31)/AP35)-AP20*MIN(AU4,AU41)/2 -> 15.34196797 | AV107: =(AZ20*AZ35-((0.5*AZ20*AZ35^2-BC31-AW32)/AZ35))-AZ20*MIN(AU4,AU41)/2 -> 8.034201706 | BC107: =((0.5*AZ20*AZ35^2-BC31-AW32)/AZ35)-AZ20*MIN(BE4,BE41)/2 -> 8.365798294
B109: kiriş kolon yüzü moment (KNm) | H109: =+I32-(L20*L35-((0.5*L20*L35^2-O31-I32)/L35))*MIN(G4,G41)/3 -> 23.86647917 | O109: =-O31-((0.5*L20*L35^2-O31-I32)/L35)*MIN(Q4,Q41)/3 -> 33.60617892 | R109: =+S31-(V20*V35-((0.5*V20*V35^2-Y32-S31)/V35))*MIN(Q4,Q41)/3 -> 32.39779866 | Y109: =-Y32-((0.5*V20*V35^2-Y32-S31)/V35)*MIN(AA4,AA41)/3 -> 25.5966752 | AB109: =+AC32-(AF20*AF35-((0.5*AF20*AF35^2-AI31-AC32)/AF35))*MIN(AA4,AA41)/3 -> 13.58277684 | AI109: =-AI31-((0.5*AF20*AF35^2-AI31-AC32)/AF35)*MIN(AK4,AK41)/3 -> 5.35944601 | AL109: =+AM31-(AP20*AP35-((0.5*AP20*AP35^2-AS32-AM31)/AP35))*MIN(AK4,AK41)/3 -> 7.317138179 | AS109: =-AS32-((0.5*AP20*AP35^2-AS32-AM31)/AP35)*MIN(AU4,AU41)/3 -> 6.800900229 | AV109: =+AW32-(AZ20*AZ35-((0.5*AZ20*AZ35^2-BC31-AW32)/AZ35))*MIN(AU4,AU41)/3 -> 4.993227209 | BC109: =-BC31-((0.5*AZ20*AZ35^2-BC31-AW32)/AZ35)*MIN(BE4,BE41)/3 -> 5.564678664

Sheet 6_aciklikli
B2: ÇERÇEVE CROSS (6 AÇIKLIKLI) (atalet momentleri etkin rijitlik çarpanı ile çarpılmış) (inş.müh. Gürcan BERBEROĞLU tel: 0532 366 02 04 www.betoncelik.com )
I3: pas payı d ' = | M3: 0.03 | O3: m | V3: dikkat sadece sarı hücrelere rakam giriniz.
G4: 0.5 | I4: m | Q4: 0.5 | S4: m | AA4: 0.5 | AC4: m | AK4: 0.5 | AM4: m | AU4: 0.5 | AW4: m | BE4: 0.5 | BG4: m | BO4: 0.5 | BQ4: m
BY5: kiriş için etkin rijitlik çarpanı = | CG5: 0.35
I6: m | S6: m | AC6: m | AM6: m | AW6: m | BG6: m | BQ6: m | BY6: kolon için etkin rijitlik çarpanı = | CG6: 0.7
I7: 0.6 | S7: 0.6 | AC7: 0.6 | AM7: 0.6 | AW7: 0.6 | BG7: 0.6 | BQ7: 0.6
BY9: Not: kolon ve kiriş atalet momentleri etkin rijitlik çarpanı ile çarpılmıştır.
G11: dm4 | Q11: dm4 | AA11: dm4 | AK11: dm4 | AU11: dm4 | BE11: dm4 | BO11: dm4
D13: =SUM(D14:E18) -> -12.09097864 | G13: =(I7*G4^3/12*10000)*CG6 -> 43.75 | I13: =SUM(I14:J18) -> -11.13642769 | Q13: =(S7*Q4^3/12*10000)*CG6 -> 43.75 | X13: =SUM(X14:Y18) -> 7.229055711 | AA13: =(AC7*AA4^3/12*10000)*CG6 -> 43.75 | AC13: =SUM(AC14:AD18) -> 6.658340787 | AK13: =(AM7*AK4^3/12*10000)*CG6 -> 43.75 | AR13: =SUM(AR14:AS18) -> 1.411826598 | AU13: =(AW7*AU4^3/12*10000)*CG6 -> 43.75 | AW13: =SUM(AW14:AX18) -> 1.300366603 | BE13: =(BG7*BE4^3/12*10000)*CG6 -> 43.75 | BL13: =SUM(BL14:BM18) -> -1.856675115 | BO13: =(BQ7*BO4^3/12*10000)*CG6 -> 43.75 | BQ13: =SUM(BQ14:BR18) -> -1.710095501
D14: =-I30*G22 -> 2.039821395e-06 | I14: =-I30*G18 -> 1.878782864e-06 | N14: =SUM(N15:O18) -> 1.456473229 | S14: =SUM(S15:T18) -> 1.3414885 | X14: =-(Y30+AC30)*AA22 -> 9.482030817e-06 | AC14: =-(Y30+AC30)*AA18 -> 8.733449437e-06 | AH14: =SUM(AH15:AI18) -> -1.266530241 | AM14: =SUM(AM15:AN18) -> -1.166541012 | AR14: =-(AS30+AW30)*AU22 -> 1.398100396e-05 | AW14: =-(AS30+AW30)*AU18 -> 1.287724049e-05 | BB14: =SUM(BB15:BC18) -> 0.05517581526 | BG14: =SUM(BG15:BH18) -> 0.05081982984 | BL14: =-BM30*BO22 -> 9.098200708e-06 | BQ14: =-BM30*BO18 -> 8.379921704e-06 | BT14: m
D15: =-I28*G22 -> 1.189025476e-05 | I15: =-I28*G18 -> 1.095155043e-05 | N15: =-(O29+S29)*Q22 -> -1.613801099e-05 | S15: =-(O29+S29)*Q18 -> -1.486395749e-05 | X15: =-(Y28+AC28)*AA22 -> 0.0001691132355 | AC15: =-(Y28+AC28)*AA18 -> 0.0001557621906 | AH15: =-(AI29+AM29)*AK22 -> -5.615578171e-05 | AM15: =-(AI29+AM29)*AK18 -> -5.172243052e-05 | AR15: =-(AS28+AW28)*AU22 -> 0.0002711724568 | AW15: =-(AS28+AW28)*AU18 -> 0.000249764105 | BB15: =-(BC29+BG29)*BE22 -> -5.516057675e-05 | BG15: =-(BC29+BG29)*BE18 -> -5.080579438e-05 | BL15: =-BM28*BO22 -> 0.0001735762748 | BQ15: =-BM28*BO18 -> 0.0001598728846 | BT15: 3.8
D16: =-I26*G22 -> -0.00165165642 | G16: I = | I16: =-I26*G18 -> -0.001521262492 | N16: =-(O27+S27)*Q22 -> -9.406954077e-05 | Q16: I = | S16: =-(O27+S27)*Q18 -> -8.664299807e-05 | X16: =-(Y26+AC26)*AA22 -> 0.003019640638 | AA16: I = | AC16: =-(Y26+AC26)*AA18 -> 0.002781247956 | AH16: =-(AI27+AM27)*AK22 -> -0.00110587462 | AK16: I = | AM16: =-(AI27+AM27)*AK18 -> -0.001018568729 | AR16: =-(AS26+AW26)*AU22 -> 0.005659773396 | AU16: I = | AW16: =-(AS26+AW26)*AU18 -> 0.005212949181 | BB16: =-(BC27+BG27)*BE22 -> -0.001052358344 | BE16: I = | BG16: =-(BC27+BG27)*BE18 -> -0.0009692774217 | BL16: =-BM26*BO22 -> 0.002825182093 | BO16: I = | BQ16: =-BM26*BO18 -> 0.002602141401
D17: =-I24*G22 -> -0.1824583965 | I17: =-I24*G18 -> -0.1680537863 | N17: =-(O25+S25)*Q22 -> 0.01306705064 | S17: =-(O25+S25)*Q18 -> 0.01203544138 | X17: =-(Y24+AC24)*AA22 -> 0.06732249205 | AC17: =-(Y24+AC24)*AA18 -> 0.06200755847 | AH17: =-(AI25+AM25)*AK22 -> -0.02768674857 | AM17: =-(AI25+AM25)*AK18 -> -0.02550095263 | AR17: =-(AS24+AW24)*AU22 -> 0.1502123775 | AW17: =-(AS24+AW24)*AU18 -> 0.1383535056 | BB17: =-(BC25+BG25)*BE22 -> -0.0171285157 | BG17: =-(BC25+BG25)*BE18 -> -0.01577626446 | BL17: =-BM24*BO22 -> -0.01210857072 | BQ17: =-BM24*BO18 -> -0.01115263093
D18: =-(E22+I22)*G22 -> -11.90688252 | G18: =(4*G13/BT15)/((4*G13/BT15)+(4*L21/L35)+(4*G27/BT26)) -> 0.3582479535 | I18: =-(E22+I22)*G18 -> -10.96686548 | N18: =-(O22+O23+S22+S23)*Q22 -> 1.443516386 | Q18: =(4*Q13/BT15)/((4*Q13/BT15)+(4*V21/V35)+(4*Q27/BT26)+(4*L21/L35)) -> 0.295120192 | S18: =-(O22+O23+S22+S23)*Q18 -> 1.329554566 | X18: =-(Y22+AC22)*AA22 -> 7.158534983 | AA18: =(4*AA13/BT15)/((4*AA13/BT15)+(4*AA27/BT26)+(4*V21/V35)+(4*AF21/AF35)) -> 0.2637354994 | AC18: =-(Y22+AC22)*AA18 -> 6.593387484 | AH18: =-(AI22+AM22+AI23+AM23)*AK22 -> -1.237681462 | AK18: =(4*AK13/BT15)/((4*AK13/BT15)+(4*AK27/BT26)+(4*AF21/AF35)+(4*AP21/AP35)) -> 0.2340459889 | AM18: =-(AI22+AM22+AI23+AM23)*AK18 -> -1.139969768 | AR18: =-(AS22+AW22)*AU22 -> 1.255669293 | AU18: =(4*AU13/BT15)/((4*AU13/BT15)+(4*AU27/BT26)+(4*AP21/AP35)+(4*AZ21/AZ35)) -> 0.2386335515 | AW18: =-(AS22+AW22)*AU18 -> 1.156537507 | BB18: =-(BC22+BG22+BC23+BG23)*BE22 -> 0.07341184988 | BE18: =(4*BE13/BT15)/((4*BE13/BT15)+(4*BE27/BT26)+(4*AZ21/AZ35)+(4*BJ21/BJ35)) -> 0.2415932371 | BG18: =-(BC22+BG22+BC23+BG23)*BE18 -> 0.06761617752 | BL18: =-(BM22+BQ22)*BO22 -> -1.847574401 | BO18: =(4*BO13/BT15)/((4*BO13/BT15)+(4*BO27/BT26)+(4*BJ21/BJ35)) -> 0.3212901471 | BQ18: =-(BM22+BQ22)*BO18 -> -1.701713264
B20: q = | C20: 10 | E20: KN/m | K20: q = | L20: 15 | N20: KN/m | U20: q = | V20: 10 | X20: KN/m | AE20: q = | AF20: 10 | AH20: KN/m | AO20: q = | AP20: 10 | AR20: KN/m | AY20: q = | AZ20: 5 | BB20: KN/m | BI20: q = | BJ20: 5 | BL20: KN/m | BQ20: q = | BR20: 10 | BT20: KN/m
F21: 0 | H21: =(4*L21/L35)/((4*G13/BT15)+(4*L21/L35)+(4*G27/BT26)) -> 0.2527971256 | K21: I = | L21: =((L43*H45^3/12+H45*L43*(((H45*L43*H45/2+L50*(O46-H45)*((O46-H45)/2+H45))/(L43*H45+(O46-H45)*L50))-H45/2)^2+L50*(O46-H45)^3/12+L50*(O46-H45)*(O46-((H45*L43*H45/2+L50*(O46-H45)*((O46-H45)/2+H45))/(L43*H45+(O46-H45)*L50))-(O46-H45)/2)^2)*10000)*CG5 -> 44.68333333 | N21: dm4 | P21: =(4*L21/L35)/((4*Q13/BT15)+(4*V21/V35)+(4*Q27/BT26)+(4*L21/L35)) -> 0.2082511164 | R21: =(4*V21/V35)/((4*Q13/BT15)+(4*V21/V35)+(4*Q27/BT26)+(4*L21/L35)) -> 0.1762124831 | U21: I = | V21: =((V43*R45^3/12+R45*V43*(((R45*V43*R45/2+V50*(Y46-R45)*((Y46-R45)/2+R45))/(V43*R45+(Y46-R45)*V50))-R45/2)^2+V50*(Y46-R45)^3/12+V50*(Y46-R45)*(Y46-((R45*V43*R45/2+V50*(Y46-R45)*((Y46-R45)/2+R45))/(V43*R45+(Y46-R45)*V50))-(Y46-R45)/2)^2)*10000)*CG5 -> 44.68333333 | X21: dm4 | Z21: =(4*V21/V35)/((4*AA13/BT15)+(4*AA27/BT26)+(4*V21/V35)+(4*AF21/AF35)) -> 0.1574730855 | AB21: =(4*AF21/AF35)/((4*AA13/BT15)+(4*AA27/BT26)+(4*V21/V35)+(4*AF21/AF35)) -> 0.2924500158 | AE21: I = | AF21: =((AF43*AB45^3/12+AB45*AF43*(((AB45*AF43*AB45/2+AF50*(AI46-AB45)*((AI46-AB45)/2+AB45))/(AF43*AB45+(AI46-AB45)*AF50))-AB45/2)^2+AF50*(AI46-AB45)^3/12+AF50*(AI46-AB45)*(AI46-((AB45*AF43*AB45/2+AF50*(AI46-AB45)*((AI46-AB45)/2+AB45))/(AF43*AB45+(AI46-AB45)*AF50))-(AI46-AB45)/2)^2)*10000)*CG5 -> 44.68333333 | AH21: dm4 | AJ21: =(4*AF21/AF35)/((4*AK13/BT15)+(4*AK27/BT26)+(4*AF21/AF35)+(4*AP21/AP35)) -> 0.2595280246 | AL21: =(4*AP21/AP35)/((4*AK13/BT15)+(4*AK27/BT26)+(4*AF21/AF35)+(4*AP21/AP35)) -> 0.2523189128 | AO21: I = | AP21: =((AP43*AL45^3/12+AL45*AP43*(((AL45*AP43*AL45/2+AP50*(AS46-AL45)*((AS46-AL45)/2+AL45))/(AP43*AL45+(AS46-AL45)*AP50))-AL45/2)^2+AP50*(AS46-AL45)^3/12+AP50*(AS46-AL45)*(AS46-((AL45*AP43*AL45/2+AP50*(AS46-AL45)*((AS46-AL45)/2+AL45))/(AP43*AL45+(AS46-AL45)*AP50))-(AS46-AL45)/2)^2)*10000)*CG5 -> 44.68333333 | AR21: dm4 | AT21: =(4*AP21/AP35)/((4*AU13/BT15)+(4*AU27/BT26)+(4*AP21/AP35)+(4*AZ21/AZ35)) -> 0.257264645 | AV21: =(4*AZ21/AZ35)/((4*AU13/BT15)+(4*AU27/BT26)+(4*AP21/AP35)+(4*AZ21/AZ35)) -> 0.2450139476 | AY21: I = | AZ21: =((AZ43*AV45^3/12+AV45*AZ43*(((AV45*AZ43*AV45/2+AZ50*(BC46-AV45)*((BC46-AV45)/2+AV45))/(AZ43*AV45+(BC46-AV45)*AZ50))-AV45/2)^2+AZ50*(BC46-AV45)^3/12+AZ50*(BC46-AV45)*(BC46-((AV45*AZ43*AV45/2+AZ50*(BC46-AV45)*((BC46-AV45)/2+AV45))/(AZ43*AV45+(BC46-AV45)*AZ50))-(BC46-AV45)/2)^2)*10000)*CG5 -> 44.68333333 | BB21: dm4 | BD21: =(4*AZ21/AZ35)/((4*BE13/BT15)+(4*BE27/BT26)+(4*AZ21/AZ35)+(4*BJ21/BJ35)) -> 0.248052767 | BF21: =(4*BJ21/BJ35)/((4*BE13/BT15)+(4*BE27/BT26)+(4*AZ21/AZ35)+(4*BJ21/BJ35)) -> 0.248052767 | BI21: I = | BJ21: =((BJ43*BF45^3/12+BF45*BJ43*(((BF45*BJ43*BF45/2+BJ50*(BM46-BF45)*((BM46-BF45)/2+BF45))/(BJ43*BF45+(BM46-BF45)*BJ50))-BF45/2)^2+BJ50*(BM46-BF45)^3/12+BJ50*(BM46-BF45)*(BM46-((BF45*BJ43*BF45/2+BJ50*(BM46-BF45)*((BM46-BF45)/2+BF45))/(BJ43*BF45+(BM46-BF45)*BJ50))-(BM46-BF45)/2)^2)*10000)*CG5 -> 44.68333333 | BL21: dm4 | BN21: =(4*BJ21/BJ35)/((4*BO13/BT15)+(4*BO27/BT26)+(4*BJ21/BJ35)) -> 0.3298805503 | BP21: 0
E22: =-C20*E35*E35/2 -> -7.2 | G22: =(4*G27/BT26)/((4*G13/BT15)+(4*L21/L35)+(4*G27/BT26)) -> 0.3889549209 | I22: =L20*L35^2/12 -> 37.8125 | O22: =-L20*L35^2/12 -> -37.8125 | Q22: =(4*Q27/BT26)/((4*Q13/BT15)+(4*V21/V35)+(4*Q27/BT26)+(4*L21/L35)) -> 0.3204162085 | S22: =V20*V35^2/12 -> 35.20833333 | Y22: =-V20*V35^2/12 -> -35.20833333 | AA22: =(4*AA27/BT26)/((4*AA13/BT15)+(4*AA27/BT26)+(4*V21/V35)+(4*AF21/AF35)) -> 0.2863413993 | AC22: =AF20*AF35^2/12 -> 10.20833333 | AI22: =-AF20*AF35^2/12 -> -10.20833333 | AK22: =(4*AK27/BT26)/((4*AK13/BT15)+(4*AK27/BT26)+(4*AF21/AF35)+(4*AP21/AP35)) -> 0.2541070737 | AM22: =AP20*AP35^2/12 -> 10.8 | AS22: =-AP20*AP35^2/12 -> -10.8 | AU22: =(4*AU27/BT26)/((4*AU13/BT15)+(4*AU27/BT26)+(4*AP21/AP35)+(4*AZ21/AZ35)) -> 0.2590878559 | AW22: =AZ20*AZ35^2/12 -> 5.9535 | BC22: =-AZ20*AZ35^2/12 -> -5.9535 | BE22: =(4*BE27/BT26)/((4*BE13/BT15)+(4*BE27/BT26)+(4*AZ21/AZ35)+(4*BJ21/BJ35)) -> 0.2623012288 | BG22: =BJ20*BJ35^2/12 -> 5.9535 | BM22: =-BJ20*BJ35^2/12 -> -5.9535 | BO22: =(4*BO27/BT26)/((4*BO13/BT15)+(4*BO27/BT26)+(4*BJ21/BJ35)) -> 0.3488293026 | BQ22: =BR20*BP35*BP35/2 -> 11.25
I23: =-(E22+I22)*H21 -> -7.738752007 | O23: =+I23/2 -> -3.869376003 | S23: =+Y23/2 -> 1.968413568 | Y23: =-(Y22+AC22)*Z21 -> 3.936827136 | AC23: =-(Y22+AC22)*AB21 -> 7.311250396 | AI23: =+AC23/2 -> 3.655625198 | AM23: =+AS23/2 -> 0.6234165511 | AS23: =-(AS22+AW22)*AT21 -> 1.246833102 | AW23: =-(AS22+AW22)*AV21 -> 1.187460097 | BC23: =+AW23/2 -> 0.5937300486 | BG23: =+BM23/2 -> -0.8736061674 | BM23: =-(BM22+BQ22)*BN21 -> -1.747212335
I24: =+O24/2 -> 0.4690990824 | O24: =-(O22+O23+S22+S23)*P21 -> 0.9381981648 | S24: =-(O22+O23+S22+S23)*R21 -> 0.7938599856 | Y24: =+S24/2 -> 0.3969299928 | AC24: =+AI24/2 -> -0.6320426668 | AI24: =-(AI22+AM22+AI23+AM23)*AJ21 -> -1.264085334 | AM24: =-(AI22+AI23+AM22+AM23)*AL21 -> -1.228971852 | AS24: =+AM24/2 -> -0.614485926 | AW24: =+BC24/2 -> 0.03471202284 | BC24: =-(BC22+BG22+BC23+BG23)*BD21 -> 0.06942404569 | BG24: =-(BC22+BC23+BG22+BG23)*BF21 -> 0.06942404569 | BM24: =+BG24/2 -> 0.03471202284
G25: dm4 | I25: =-I24*H21 -> -0.1185868996 | O25: =+I25/2 -> -0.05929344982 | Q25: dm4 | S25: =+Y25/2 -> 0.0185119591 | Y25: =-(Y24+AC24)*Z21 -> 0.03702391819 | AA25: dm4 | AC25: =-(Y24+AC24)*AB21 -> 0.06875870522 | AI25: =+AC25/2 -> 0.03437935261 | AK25: dm4 | AM25: =+AS25/2 -> 0.0745776637 | AS25: =-(AS24+AW24)*AT21 -> 0.1491553274 | AU25: dm4 | AW25: =-(AS24+AW24)*AV21 -> 0.1420526928 | BC25: =+AW25/2 -> 0.07102634638 | BE25: dm4 | BG25: =+BM25/2 -> -0.005725410599 | BM25: =-BM24*BN21 -> -0.0114508212 | BO25: dm4 | BT25: m
I26: =+O26/2 -> 0.004246395485 | O26: =-(O25+S25)*P21 -> 0.008492790971 | S26: =-(O25+S25)*R21 -> 0.007186207745 | Y26: =+S26/2 -> 0.003593103872 | AC26: =+AI26/2 -> -0.0141386996 | AI26: =-(AI25+AM25)*AJ21 -> -0.02827739921 | AM26: =-(AI25+AM25)*AL21 -> -0.0274919159 | AS26: =+AM26/2 -> -0.01374595795 | AW26: =+BC26/2 -> -0.008099038905 | BC26: =-(BC25+BG25)*BD21 -> -0.01619807781 | BG26: =-(BC25+BG25)*BF21 -> -0.01619807781 | BM26: =+BG26/2 -> -0.008099038905 | BT26: 3.5
G27: =(I38*G41^3/12*10000)*CG6 -> 43.75 | I27: =-I26*H21 -> -0.001073476573 | O27: =+I27/2 -> -0.0005367382864 | Q27: =(S38*Q41^3/12*10000)*CG6 -> 43.75 | S27: =+Y27/2 -> 0.0008303237489 | Y27: =-(Y26+AC26)*Z21 -> 0.001660647498 | AA27: =(AC38*AA41^3/12*10000)*CG6 -> 43.75 | AC27: =-(Y26+AC26)*AB21 -> 0.003084059639 | AI27: =+AC27/2 -> 0.001542029819 | AK27: =(AM38*AK41^3/12*10000)*CG6 -> 43.75 | AM27: =+AS27/2 -> 0.002809972681 | AS27: =-(AS26+AW26)*AT21 -> 0.005619945361 | AU27: =(AW38*AU41^3/12*10000)*CG6 -> 43.75 | AW27: =-(AS26+AW26)*AV21 -> 0.005352328915 | BC27: =+AW27/2 -> 0.002676164458 | BE27: =(BG38*BE41^3/12*10000)*CG6 -> 43.75 | BG27: =+BM27/2 -> 0.001335857706 | BM27: =-BM26*BN21 -> 0.002671715411 | BO27: =(BQ38*BO41^3/12*10000)*CG6 -> 43.75
I28: =+O28/2 -> -3.056975016e-05 | O28: =-(O27+S27)*P21 -> -6.113950031e-05 | S28: =-(O27+S27)*R21 -> -5.173342334e-05 | Y28: =+S28/2 -> -2.586671167e-05 | AC28: =+AI28/2 -> -0.0005647333059 | AI28: =-(AI27+AM27)*AJ21 -> -0.001129466612 | AM28: =-(AI27+AM27)*AL21 -> -0.001098092539 | AS28: =+AM28/2 -> -0.0005490462696 | AW28: =+BC28/2 -> -0.0004975965995 | BC28: =-(BC27+BG27)*BD21 -> -0.000995193199 | BG28: =-(BC27+BG27)*BF21 -> -0.000995193199 | BM28: =+BG28/2 -> -0.0004975965995
I29: =-I28*H21 -> 7.727944969e-06 | O29: =+I29/2 -> 3.863972485e-06 | S29: =+Y29/2 -> 4.650180352e-05 | Y29: =-(Y28+AC28)*Z21 -> 9.300360704e-05 | AC29: =-(Y28+AC28)*AB21 -> 0.0001727209845 | AI29: =+AC29/2 -> 8.636049225e-05 | AM29: =+AS29/2 -> 0.0001346321031 | AS29: =-(AS28+AW28)*AT21 -> 0.0002692642062 | AW29: =-(AS28+AW28)*AV21 -> 0.0002564421011 | BC29: =+AW29/2 -> 0.0001282210506 | BG29: =+BM29/2 -> 8.207372004e-05 | BM29: =-BM28*BN21 -> 0.0001641474401
G30: I = | I30: =+O30/2 -> -5.24436454e-06 | O30: =-(O29+S29)*P21 -> -1.048872908e-05 | Q30: I = | S30: =-(O29+S29)*R21 -> -8.875078452e-06 | Y30: =+S30/2 -> -4.437539226e-06 | AA30: I = | AC30: =+AI30/2 -> -2.867688586e-05 | AI30: =-(AI29+AM29)*AJ21 -> -5.735377172e-05 | AK30: I = | AM30: =-(AI29+AM29)*AL21 -> -5.576061139e-05 | AS30: =+AM30/2 -> -2.78803057e-05 | AU30: I = | AW30: =+BC30/2 -> -2.608209987e-05 | BC30: =-(BC29+BG29)*BD21 -> -5.216419974e-05 | BE30: I = | BG30: =-(BC29+BG29)*BF21 -> -5.216419974e-05 | BM30: =+BG30/2 -> -2.608209987e-05 | BO30: I =
I31: =-I30*H21 -> 1.325760281e-06 | O31: =SUM(O22:P30) -> -40.795083 | S31: =SUM(S22:T30) -> 37.99712127 | Y31: =-(Y30+AC30)*Z21 -> 5.214630691e-06 | AC31: =-(Y30+AC30)*AB21 -> 9.684314141e-06 | AI31: =SUM(AI22:AJ30) -> -7.810249945 | AM31: =SUM(AM22:AN30) -> 10.2433212 | AS31: =-(AS30+AW30)*AT21 -> 1.388261911e-05 | AW31: =-(AS30+AW30)*AV21 -> 1.322154201e-05 | BC31: =SUM(BC22:BD30) -> -5.233760609 | BG31: =SUM(BG22:BH30) -> 5.127764964 | BM31: =-BM30*BN21 -> 8.603977459e-06
I32: =SUM(I22:J31) -> 30.42740633 | Y32: =SUM(Y22:Z31) -> -30.83223062 | AC32: =SUM(AC22:AD31) -> 16.94483412 | AS32: =SUM(AS22:AT31) -> -10.02691729 | AW32: =SUM(AW22:AX31) -> 7.314724088 | BM32: =SUM(BM22:BN31) -> -7.683229384
E35: 1.2 | G35: m | L35: 5.5 | N35: m | V35: 6.5 | X35: m | AF35: 3.5 | AH35: m | AP35: 3.6 | AR35: m | AZ35: 3.78 | BB35: m | BJ35: 3.78 | BL35: m | BP35: 1.5 | BR35: m
I37: m | S37: m | AC37: m | AM37: m | AW37: m | BG37: m | BQ37: m
I38: 0.6 | S38: 0.6 | AC38: 0.6 | AM38: 0.6 | AW38: 0.6 | BG38: 0.6 | BQ38: 0.6
G41: 0.5 | I41: m | Q41: 0.5 | S41: m | AA41: 0.5 | AC41: m | AK41: 0.5 | AM41: m | AU41: 0.5 | AW41: m | BE41: 0.5 | BG41: m | BO41: 0.5 | BQ41: m
L43: 1.2 | N43: m | V43: 1.2 | X43: m | AF43: 1.2 | AH43: m | AP43: 1.2 | AR43: m | AZ43: 1.2 | BB43: m | BJ43: 1.2 | BL43: m
H45: 0.1 | J45: m | O45: m | R45: 0.1 | T45: m | Y45: m | AB45: 0.1 | AD45: m | AI45: m | AL45: 0.1 | AN45: m | AS45: m | AV45: 0.1 | AX45: m | BC45: m | BF45: 0.1 | BH45: m | BM45: m
O46: 0.7 | Y46: 0.7 | AI46: 0.7 | AS46: 0.7 | BC46: 0.7 | BM46: 0.7
L50: 0.25 | N50: m | V50: 0.25 | X50: m | AF50: 0.25 | AH50: m | AP50: 0.25 | AR50: m | AZ50: 0.25 | BB50: m | BJ50: 0.25 | BL50: m
D52: =IF(I13<0,I13/2,"") -> -5.568213847 | J52: =IF(I13>0,I13/2,"") ->  | N52: =IF(S14<0,S14/2,"") ->  | T52: =IF(S14>0,S14/2,"") -> 0.6707442501 | X52: =IF(AC13<0,AC13/2,"") ->  | AD52: =IF(AC13>0,AC13/2,"") -> 3.329170393 | AH52: =IF(AM14<0,AM14/2,"") -> -0.5832705059 | AN52: =IF(AM14>0,AM14/2,"") ->  | AR52: =IF(AW13<0,AW13/2,"") ->  | AX52: =IF(AW13>0,AW13/2,"") -> 0.6501833016 | BB52: =IF(BG14<0,BG14/2,"") ->  | BH52: =IF(BG14>0,BG14/2,"") -> 0.02540991492 | BL52: =IF(BQ13<0,BQ13/2,"") -> -0.8550477504 | BR52: =IF(BQ13>0,BQ13/2,"") -> 
J55: moment diyagramı (KNm)
R56: =-S31 -> -37.99712127
H57: =-I32 -> -30.42740633 | Z57: =Y32 -> -30.83223062 | AB57: =-AC32 -> -16.94483412 | AJ57: =AI31 -> -7.810249945 | AL57: =-AM31 -> -10.2433212 | AT57: =AS32 -> -10.02691729 | AV57: =-AW32 -> -7.314724088 | BD57: =BC31 -> -5.233760609 | BF57: =-BG31 -> -5.127764964 | BN57: =BM32 -> -7.683229384
P58: =O31 -> -40.795083
H59: =IF(E22=0,"",+E22) -> -7.2 | BP59: =IF(BQ22=0,"",-BQ22) -> -11.25
E61: =IF(I13>0,-I13,"") ->  | I61: =IF(I13<0,-I13,"") -> 11.13642769 | O61: =IF(S14>0,-S14,"") -> -1.3414885 | S61: =IF(S14<0,-S14,"") ->  | Y61: =IF(AC13>0,-AC13,"") -> -6.658340787 | AC61: =IF(AC13<0,-AC13,"") ->  | AI61: =IF(AM14>0,-AM14,"") ->  | AM61: =IF(AM14<0,-AM14,"") -> 1.166541012 | AS61: =IF(AW13>0,-AW13,"") -> -1.300366603 | AW61: =IF(AW13<0,-AW13,"") ->  | BC61: =IF(BG14>0,-BG14,"") -> -0.05081982984 | BG61: =IF(BG14<0,-BG14,"") ->  | BM61: =IF(BQ13>0,-BQ13,"") ->  | BQ61: =IF(BQ13<0,-BQ13,"") -> 1.710095501
E62: =IF(D13<0,D13,"") -> -12.09097864 | I62: =IF(D13>0,D13,"") ->  | O62: =IF(N14<0,N14,"") ->  | S62: =IF(N14>0,N14,"") -> 1.456473229 | Y62: =IF(X13<0,X13,"") ->  | AC62: =IF(X13>0,X13,"") -> 7.229055711 | AI62: =IF(AH14<0,AH14,"") -> -1.266530241 | AM62: =IF(AH14>0,AH14,"") ->  | AS62: =IF(AR13<0,AR13,"") ->  | AW62: =IF(AR13>0,AR13,"") -> 1.411826598 | BC62: =IF(BB14<0,BB14,"") ->  | BG62: =IF(BB14>0,BB14,"") -> 0.05517581526 | BM62: =IF(BL13<0,BL13,"") -> -1.856675115 | BQ62: =IF(BL13>0,BL13,"") -> 
L65: =(((I32-(-O31))/L35+L20*L35*0.5)^2/(2*L20))-I32 -> 21.2259502 | V65: =(((S31-(-Y32))/V35+V20*V35*0.5)^2/(2*V20))-S31 -> 18.45857631 | AF65: =(((AC32-(-AI31))/AF35+AF20*AF35*0.5)^2/(2*AF20))-AC32 -> 3.275531958 | AP65: =(((AM31-(-AS32))/AP35+AP20*AP35*0.5)^2/(2*AP20))-AM31 -> 6.06506143 | AZ65: =(((AW32-(-BC31))/AZ35+AZ20*AZ35*0.5)^2/(2*AZ20))-AW32 -> 2.686314817 | BJ65: =(((BG31-(-BM32))/BJ35+BJ20*BJ35*0.5)^2/(2*BJ20))-BG31 -> 2.570457023
D74: =IF(D13>0,-D13/2,"") ->  | J74: =IF(D13<0,-D13/2,"") -> 6.04548932 | N74: =IF(N14>0,-N14/2,"") -> -0.7282366144 | T74: =IF(N14<0,-N14/2,"") ->  | X74: =IF(X13>0,-X13/2,"") -> -3.614527856 | AD74: =IF(X13<0,-X13/2,"") ->  | AH74: =IF(AH14>0,-AH14/2,"") ->  | AN74: =IF(AH14<0,-AH14/2,"") -> 0.6332651206 | AR74: =IF(AR13>0,-AR13/2,"") -> -0.7059132989 | AX74: =IF(AR13<0,-AR13/2,"") ->  | BB74: =IF(BB14>0,-BB14/2,"") -> -0.02758790763 | BH74: =IF(BB14<0,-BB14/2,"") ->  | BL74: =IF(BL13>0,-BL13/2,"") ->  | BR74: =IF(BL13<0,-BL13/2,"") -> 0.9283375576
D77: =IF(I13<0,(I13+I13/2)/$BT$15,"") -> -4.395958301 | J77: =IF(I13>0,(I13+I13/2)/$BT$15,"") ->  | N77: =IF(S14<0,(S14+S14/2)/$BT$15,"") ->  | T77: =IF(S14>0,(S14+S14/2)/$BT$15,"") -> 0.5295349343 | X77: =IF(AC13<0,(AC13+AC13/2)/$BT$15,"") ->  | AD77: =IF(AC13>0,(AC13+AC13/2)/$BT$15,"") -> 2.628292416 | AH77: =IF(AM14<0,(AM14+AM14/2)/$BT$15,"") -> -0.4604767152 | AN77: =IF(AM14>0,(AM14+AM14/2)/$BT$15,"") ->  | AR77: =IF(AW13<0,(AW13+AW13/2)/$BT$15,"") ->  | AX77: =IF(AW13>0,(AW13+AW13/2)/$BT$15,"") -> 0.5133026065 | BB77: =IF(BG14<0,(BG14+BG14/2)/$BT$15,"") ->  | BH77: =IF(BG14>0,(BG14+BG14/2)/$BT$15,"") -> 0.02006045915 | BL77: =IF(BQ13<0,(BQ13+BQ13/2)/$BT$15,"") -> -0.6750376977 | BR77: =IF(BQ13>0,(BQ13+BQ13/2)/$BT$15,"") -> 
J80: kesme kuvveti diyagramı (KN)
H84: =L20*L35+P89 -> 39.36496788 | R84: =V20*V35+Z89 -> 33.60229087 | AB84: =AF20*AF35+AJ89 -> 20.10988119 | AL84: =AP20*AP35+AT89 -> 18.0601122 | AV84: =AZ20*AZ35+BD89 -> 10.00051944 | BF84: =BJ20*BJ35+BN89 -> 8.773951212 | BP84: =IF(BQ22=0,"",BR20*BP35) -> 15
D86: =IF(D77<0,D77,"") -> -4.395958301 | J86: =IF(J77>0,J77,"") ->  | N86: =IF(N77<0,N77,"") ->  | T86: =IF(T77>0,T77,"") -> 0.5295349343 | X86: =IF(X77<0,X77,"") ->  | AD86: =IF(AD77>0,AD77,"") -> 2.628292416 | AH86: =IF(AH77<0,AH77,"") -> -0.4604767152 | AN86: =IF(AN77>0,AN77,"") ->  | AR86: =IF(AR77<0,AR77,"") ->  | AX86: =IF(AX77>0,AX77,"") -> 0.5133026065 | BB86: =IF(BB77<0,BB77,"") ->  | BH86: =IF(BH77>0,BH77,"") -> 0.02006045915 | BL86: =IF(BL77<0,BL77,"") -> -0.6750376977 | BR86: =IF(BR77>0,BR77,"") -> 
D87: =IF(D99<0,D99,"") -> -5.181847989 | J87: =IF(J99>0,J99,"") ->  | N87: =IF(N99<0,N99,"") ->  | T87: =IF(T99>0,T99,"") -> 0.6242028123 | X87: =IF(X99<0,X99,"") ->  | AD87: =IF(AD99>0,AD99,"") -> 3.098166733 | AH87: =IF(AH99<0,AH99,"") -> -0.5427986748 | AN87: =IF(AN99>0,AN99,"") ->  | AR87: =IF(AR99<0,AR99,"") ->  | AX87: =IF(AX99>0,AX99,"") -> 0.6050685419 | BB87: =IF(BB99<0,BB99,"") ->  | BH87: =IF(BH99>0,BH99,"") -> 0.02364677797 | BL87: =IF(BL99<0,BL99,"") -> -0.7957179065 | BR87: =IF(BR99>0,BR99,"") -> 
P89: =-(0.5*L20*L35^2+(-O31)-I32)/L35 -> -43.13503212 | Z89: =-(0.5*V20*V35^2+(-Y32)-S31)/V35 -> -31.39770913 | AJ89: =-(0.5*AF20*AF35^2+(-AI31)-AC32)/AF35 -> -14.89011881 | AT89: =-(0.5*AP20*AP35^2+(-AS32)-AM31)/AP35 -> -17.9398878 | BD89: =-(0.5*AZ20*AZ35^2+(-BC31)-AW32)/AZ35 -> -8.899480561 | BN89: =-(0.5*BJ20*BJ35^2+(-BM32)-BG31)/BJ35 -> -10.12604879
F90: =IF(E22=0,"",-C20*E35) -> -12
J91: =((L20*L35-((0.5*L20*L35^2+(-O31)-I32)/L35))*L35)/((L20*L35-((0.5*L20*L35^2+(-O31)-I32)/L35))+((0.5*L20*L35^2+(-O31)-I32)/L35)) -> 2.624331192 | L91: m | T91: =((V20*V35-((0.5*V20*V35^2+(-Y32)-S31)/V35))*V35)/((V20*V35-((0.5*V20*V35^2+(-Y32)-S31)/V35))+((0.5*V20*V35^2+(-Y32)-S31)/V35)) -> 3.360229087 | V91: m | AD91: =((AF20*AF35-((0.5*AF20*AF35^2+(-AI31)-AC32)/AF35))*AF35)/((AF20*AF35-((0.5*AF20*AF35^2+(-AI31)-AC32)/AF35))+((0.5*AF20*AF35^2+(-AI31)-AC32)/AF35)) -> 2.010988119 | AF91: m | AN91: =((AP20*AP35-((0.5*AP20*AP35^2+(-AS32)-AM31)/AP35))*AP35)/((AP20*AP35-((0.5*AP20*AP35^2+(-AS32)-AM31)/AP35))+((0.5*AP20*AP35^2+(-AS32)-AM31)/AP35)) -> 1.80601122 | AP91: m | AX91: =((AZ20*AZ35-((0.5*AZ20*AZ35^2+(-BC31)-AW32)/AZ35))*AZ35)/((AZ20*AZ35-((0.5*AZ20*AZ35^2+(-BC31)-AW32)/AZ35))+((0.5*AZ20*AZ35^2+(-BC31)-AW32)/AZ35)) -> 2.000103888 | AZ91: m | BH91: =((BJ20*BJ35-((0.5*BJ20*BJ35^2+(-BM32)-BG31)/BJ35))*BJ35)/((BJ20*BJ35-((0.5*BJ20*BJ35^2+(-BM32)-BG31)/BJ35))+((0.5*BJ20*BJ35^2+(-BM32)-BG31)/BJ35)) -> 1.754790242 | BJ91: m
D99: =IF(D13<0,(D13+D13/2)/$BT$26,"") -> -5.181847989 | J99: =IF(D13>0,(D13+D13/2)/$BT$26,"") ->  | N99: =IF(N14<0,(N14+N14/2)/$BT$26,"") ->  | T99: =IF(N14>0,(N14+N14/2)/$BT$26,"") -> 0.6242028123 | X99: =IF(X13<0,(X13+X13/2)/$BT$26,"") ->  | AD99: =IF(X13>0,(X13+X13/2)/$BT$26,"") -> 3.098166733 | AH99: =IF(AH14<0,(AH14+AH14/2)/$BT$26,"") -> -0.5427986748 | AN99: =IF(AH14>0,(AH14+AH14/2)/$BT$26,"") ->  | AR99: =IF(AR13<0,(AR13+AR13/2)/$BT$26,"") ->  | AX99: =IF(AR13>0,(AR13+AR13/2)/$BT$26,"") -> 0.6050685419 | BB99: =IF(BB14<0,(BB14+BB14/2)/$BT$26,"") ->  | BH99: =IF(BB14>0,(BB14+BB14/2)/$BT$26,"") -> 0.02364677797 | BL99: =IF(BL13<0,(BL13+BL13/2)/$BT$26,"") -> -0.7957179065 | BR99: =IF(BL13>0,(BL13+BL13/2)/$BT$26,"") -> 
B101: kiriş faydalı yükseklik d (m) | H101: =O46-M3 -> 0.67 | R101: =Y46-M3 -> 0.67 | AB101: =AI46-M3 -> 0.67 | AL101: =AS46-M3 -> 0.67 | AV101: =BC46-M3 -> 0.67 | BF101: =BM46-M3 -> 0.67
B103: kiriş kolon yüzünden d mesafede kesme kuvveti (KN) | H103: =(L20*L35-((0.5*L20*L35^2-O31-I32)/L35))-L20*(MIN(G4,G41)/2+H101) -> 25.56496788 | O103: =((0.5*L20*L35^2-O31-I32)/L35)-L20*(MIN(Q4,Q41)/2+H101) -> 29.33503212 | R103: =(V20*V35-((0.5*V20*V35^2-Y32-S31)/V35))-V20*(MIN(Q4,Q41)/2+R101) -> 24.40229087 | Y103: =((0.5*V20*V35^2-Y32-S31)/V35)-V20*(MIN(AA4,AA41)/2+R101) -> 22.19770913 | AB103: =(AF20*AF35-((0.5*AF20*AF35^2-AI31-AC32)/AF35))-AF20*(MIN(AA4,AA41)/2+AB101) -> 10.90988119 | AI103: =((0.5*AF20*AF35^2-AI31-AC32)/AF35)-AF20*(MIN(AK4,AK41)/2+AB101) -> 5.690118806 | AL103: =(AP20*AP35-((0.5*AP20*AP35^2-AS32-AM31)/AP35))-AP20*(MIN(AK4,AK41)/2+AL101) -> 8.860112197 | AS103: =((0.5*AP20*AP35^2-AS32-AM31)/AP35)-AP20*(MIN(AU4,AU41)/2+AL101) -> 8.739887803 | AV103: =(AZ20*AZ35-((0.5*AZ20*AZ35^2-BC31-AW32)/AZ35))-AZ20*(MIN(AU4,AU41)/2+AV101) -> 5.400519439 | BC103: =((0.5*AZ20*AZ35^2-BC31-AW32)/AZ35)-AZ20*(MIN(BE4,BE41)/2+AV101) -> 4.299480561 | BF103: =(BJ20*BJ35-((0.5*BJ20*BJ35^2-BM32-BG31)/BJ35))-BJ20*(MIN(BE4,BE41)/2+BF101) -> 4.173951212 | BM103: =((0.5*BJ20*BJ35^2-BM32-BG31)/BJ35)-BJ20*(MIN(BO4,BO41)/2+BF101) -> 5.526048788
B105: kiriş kolon yüzünden 2*h mesafede kesme kuvveti (KN) | H105: =(L20*L35-((0.5*L20*L35^2-O31-I32)/L35))-L20*(MIN(G4,G41)/2+2*O46) -> 14.61496788 | O105: =((0.5*L20*L35^2-O31-I32)/L35)-L20*(MIN(Q4,Q41)/2+2*O46) -> 18.38503212 | R105: =(V20*V35-((0.5*V20*V35^2-Y32-S31)/V35))-V20*(MIN(Q4,Q41)/2+2*Y46) -> 17.10229087 | Y105: =((0.5*V20*V35^2-Y32-S31)/V35)-V20*(MIN(AA4,AA41)/2+2*Y46) -> 14.89770913 | AB105: =(AF20*AF35-((0.5*AF20*AF35^2-AI31-AC32)/AF35))-AF20*(MIN(AA4,AA41)/2+2*AI46) -> 3.609881194 | AI105: =((0.5*AF20*AF35^2-AI31-AC32)/AF35)-AF20*(MIN(AK4,AK41)/2+2*AI46) -> -1.609881194 | AL105: =(AP20*AP35-((0.5*AP20*AP35^2-AS32-AM31)/AP35))-AP20*(MIN(AK4,AK41)/2+2*AS46) -> 1.560112197 | AS105: =((0.5*AP20*AP35^2-AS32-AM31)/AP35)-AP20*(MIN(AU4,AU41)/2+2*AS46) -> 1.439887803 | AV105: =(AZ20*AZ35-((0.5*AZ20*AZ35^2-BC31-AW32)/AZ35))-AZ20*(MIN(AU4,AU41)/2+2*BC46) -> 1.750519439 | BC105: =((0.5*AZ20*AZ35^2-BC31-AW32)/AZ35)-AZ20*(MIN(BE4,BE41)/2+2*BC46) -> 0.6494805612 | BF105: =(BJ20*BJ35-((0.5*BJ20*BJ35^2-BM32-BG31)/BJ35))-BJ20*(MIN(BE4,BE41)/2+2*BM46) -> 0.5239512116 | BM105: =((0.5*BJ20*BJ35^2-BM32-BG31)/BJ35)-BJ20*(MIN(BO4,BO41)/2+2*BM46) -> 1.876048788
B107: kiriş kolon yüzü kesme kuvveti (KN) | H107: =(L20*L35-((0.5*L20*L35^2-O31-I32)/L35))-L20*MIN(G4,G41)/2 -> 35.61496788 | O107: =((0.5*L20*L35^2-O31-I32)/L35)-L20*MIN(Q4,Q41)/2 -> 39.38503212 | R107: =(V20*V35-((0.5*V20*V35^2-Y32-S31)/V35))-V20*MIN(Q4,Q41)/2 -> 31.10229087 | Y107: =((0.5*V20*V35^2-Y32-S31)/V35)-V20*MIN(AA4,AA41)/2 -> 28.89770913 | AB107: =(AF20*AF35-((0.5*AF20*AF35^2-AI31-AC32)/AF35))-AF20*MIN(AA4,AA41)/2 -> 17.60988119 | AI107: =((0.5*AF20*AF35^2-AI31-AC32)/AF35)-AF20*MIN(AK4,AK41)/2 -> 12.39011881 | AL107: =(AP20*AP35-((0.5*AP20*AP35^2-AS32-AM31)/AP35))-AP20*MIN(AK4,AK41)/2 -> 15.5601122 | AS107: =((0.5*AP20*AP35^2-AS32-AM31)/AP35)-AP20*MIN(AU4,AU41)/2 -> 15.4398878 | AV107: =(AZ20*AZ35-((0.5*AZ20*AZ35^2-BC31-AW32)/AZ35))-AZ20*MIN(AU4,AU41)/2 -> 8.750519439 | BC107: =((0.5*AZ20*AZ35^2-BC31-AW32)/AZ35)-AZ20*MIN(BE4,BE41)/2 -> 7.649480561 | BF107: =(BJ20*BJ35-((0.5*BJ20*BJ35^2-BM32-BG31)/BJ35))-BJ20*MIN(BE4,BE41)/2 -> 7.523951212 | BM107: =((0.5*BJ20*BJ35^2-BM32-BG31)/BJ35)-BJ20*MIN(BO4,BO41)/2 -> 8.876048788
B109: kiriş kolon yüzü moment (KNm) | H109: =+I32-(L20*L35-((0.5*L20*L35^2-O31-I32)/L35))*MIN(G4,G41)/3 -> 23.86657835 | O109: =-O31-((0.5*L20*L35^2-O31-I32)/L35)*MIN(Q4,Q41)/3 -> 33.60591098 | R109: =+S31-(V20*V35-((0.5*V20*V35^2-Y32-S31)/V35))*MIN(Q4,Q41)/3 -> 32.39673946 | Y109: =-Y32-((0.5*V20*V35^2-Y32-S31)/V35)*MIN(AA4,AA41)/3 -> 25.5992791 | AB109: =+AC32-(AF20*AF35-((0.5*AF20*AF35^2-AI31-AC32)/AF35))*MIN(AA4,AA41)/3 -> 13.59318726 | AI109: =-AI31-((0.5*AF20*AF35^2-AI31-AC32)/AF35)*MIN(AK4,AK41)/3 -> 5.328563478 | AL109: =+AM31-(AP20*AP35-((0.5*AP20*AP35^2-AS32-AM31)/AP35))*MIN(AK4,AK41)/3 -> 7.233302499 | AS109: =-AS32-((0.5*AP20*AP35^2-AS32-AM31)/AP35)*MIN(AU4,AU41)/3 -> 7.036935988 | AV109: =+AW32-(AZ20*AZ35-((0.5*AZ20*AZ35^2-BC31-AW32)/AZ35))*MIN(AU4,AU41)/3 -> 5.647970848 | BC109: =-BC31-((0.5*AZ20*AZ35^2-BC31-AW32)/AZ35)*MIN(BE4,BE41)/3 -> 3.750513849 | BF109: =+BG31-(BJ20*BJ35-((0.5*BJ20*BJ35^2-BM32-BG31)/BJ35))*MIN(BE4,BE41)/3 -> 3.665439762 | BM109: =-BM32-((0.5*BJ20*BJ35^2-BM32-BG31)/BJ35)*MIN(BO4,BO41)/3 -> 5.995554586

Sheet 7_aciklikli
B2: ÇERÇEVE CROSS (7 AÇIKLIKLI) (atalet momentleri etkin rijitlik çarpanı ile çarpılmış) (inş.müh. Gürcan BERBEROĞLU tel: 0532 366 02 04 www.betoncelik.com )
I3: pas payı d ' = | M3: 0.03 | O3: m | V3: dikkat sadece sarı hücrelere rakam giriniz.
G4: 0.5 | I4: m | Q4: 0.5 | S4: m | AA4: 0.5 | AC4: m | AK4: 0.5 | AM4: m | AU4: 0.5 | AW4: m | BE4: 0.5 | BG4: m | BO4: 0.5 | BQ4: m | BY4: 0.5 | CA4: m
CI5: kiriş için etkin rijitlik çarpanı = | CQ5: 0.35
I6: m | S6: m | AC6: m | AM6: m | AW6: m | BG6: m | BQ6: m | CA6: m | CI6: kolon için etkin rijitlik çarpanı = | CQ6: 0.7
I7: 0.6 | S7: 0.6 | AC7: 0.6 | AM7: 0.6 | AW7: 0.6 | BG7: 0.6 | BQ7: 0.6 | CA7: 0.6
CI9: Not: kolon ve kiriş atalet momentleri etkin rijitlik çarpanı ile çarpılmıştır.
G11: dm4 | Q11: dm4 | AA11: dm4 | AK11: dm4 | AU11: dm4 | BE11: dm4 | BO11: dm4 | BY11: dm4
D13: =SUM(D14:E18) -> -12.09098033 | G13: =(I7*G4^3/12*10000)*CQ6 -> 43.75 | I13: =SUM(I14:J18) -> -11.13642925 | Q13: =(S7*Q4^3/12*10000)*CQ6 -> 43.75 | X13: =SUM(X14:Y18) -> 7.228899361 | AA13: =(AC7*AA4^3/12*10000)*CQ6 -> 43.75 | AC13: =SUM(AC14:AD18) -> 6.65819678 | AK13: =(AM7*AK4^3/12*10000)*CQ6 -> 43.75 | AR13: =SUM(AR14:AS18) -> 1.403549174 | AU13: =(AW7*AU4^3/12*10000)*CQ6 -> 43.75 | AW13: =SUM(AW14:AX18) -> 1.292742661 | BE13: =(BG7*BE4^3/12*10000)*CQ6 -> 43.75 | BL13: =SUM(BL14:BM18) -> -2.384215263 | BO13: =(BQ7*BO4^3/12*10000)*CQ6 -> 43.75 | BQ13: =SUM(BQ14:BR18) -> -2.195987742 | BY13: =(CA7*BY4^3/12*10000)*CQ6 -> 43.75
D14: =-I30*G22 -> 1.352850684e-06 | I14: =-I30*G18 -> 1.246046683e-06 | N14: =SUM(N15:O18) -> 1.45648659 | S14: =SUM(S15:T18) -> 1.341500806 | X14: =-(Y30+AC30)*AA22 -> 3.595414621e-06 | AC14: =-(Y30+AC30)*AA18 -> 3.311566099e-06 | AH14: =SUM(AH15:AI18) -> -1.265468196 | AM14: =SUM(AM15:AN18) -> -1.165562812 | AR14: =-(AS30+AW30)*AU22 -> 7.259606266e-08 | AW14: =-(AS30+AW30)*AU18 -> 6.686479456e-08 | BB14: =SUM(BB15:BC18) -> 0.1216276251 | BG14: =SUM(BG15:BH18) -> 0.1120254442 | BL14: =-(BM30+BQ30)*BO22 -> -6.87200987e-06 | BQ14: =-(BM30+BQ30)*BO18 -> -6.329482775e-06 | BV14: =SUM(BV15:BW18) -> 1.498219587 | CA14: =SUM(CA15:CB18) -> 1.379939093 | CD14: m
D15: =-I28*G22 -> 1.088840874e-05 | I15: =-I28*G18 -> 1.002879752e-05 | N15: =-(O29+S29)*Q22 -> -1.070305432e-05 | S15: =-(O29+S29)*Q18 -> -9.85807635e-06 | X15: =-(Y28+AC28)*AA22 -> 0.0001086108375 | AC15: =-(Y28+AC28)*AA18 -> 0.0001000362977 | AH15: =-(AI29+AM29)*AK22 -> -1.882505029e-05 | AM15: =-(AI29+AM29)*AK18 -> -1.733886211e-05 | AR15: =-(AS28+AW28)*AU22 -> 3.75023194e-05 | AW15: =-(AS28+AW28)*AU18 -> 3.454160998e-05 | BB15: =-(BC29+BG29)*BE22 -> 1.917371562e-05 | BG15: =-(BC29+BG29)*BE18 -> 1.766000123e-05 | BL15: =-(BM28+BQ28)*BO22 -> -0.0001920961653 | BQ15: =-(BM28+BQ28)*BO18 -> -0.0001769306785 | BV15: =-BW29*BY22 -> 3.39730393e-05 | CA15: =-BW29*BY18 -> 3.129095725e-05 | CD15: 3.8
D16: =-I26*G22 -> -0.00165165642 | G16: I = | I16: =-I26*G18 -> -0.001521262492 | N16: =-(O27+S27)*Q22 -> -8.614345368e-05 | Q16: I = | S16: =-(O27+S27)*Q18 -> -7.934265471e-05 | X16: =-(Y26+AC26)*AA22 -> 0.002929680076 | AA16: I = | AC16: =-(Y26+AC26)*AA18 -> 0.002698389543 | AH16: =-(AI27+AM27)*AK22 -> -0.0006963801969 | AK16: I = | AM16: =-(AI27+AM27)*AK18 -> -0.000641402813 | AR16: =-(AS26+AW26)*AU22 -> 0.002506456231 | AU16: I = | AW16: =-(AS26+AW26)*AU18 -> 0.002308578107 | BB16: =-(BC27+BG27)*BE22 -> 0.0004250752513 | BE16: I = | BG16: =-(BC27+BG27)*BE18 -> 0.0003915166788 | BL16: =-(BM26+BQ26)*BO22 -> -0.005933753224 | BO16: I = | BQ16: =-(BM26+BQ26)*BO18 -> -0.005465299022 | BV16: =-BW27*BY22 -> 0.001049409972 | BY16: I = | CA16: =-BW27*BY18 -> 0.0009665618165
D17: =-I24*G22 -> -0.1824583965 | I17: =-I24*G18 -> -0.1680537863 | N17: =-(O25+S25)*Q22 -> 0.01306705064 | S17: =-(O25+S25)*Q18 -> 0.01203544138 | X17: =-(Y24+AC24)*AA22 -> 0.06732249205 | AC17: =-(Y24+AC24)*AA18 -> 0.06200755847 | AH17: =-(AI25+AM25)*AK22 -> -0.02707152848 | AM17: =-(AI25+AM25)*AK18 -> -0.02493430255 | AR17: =-(AS24+AW24)*AU22 -> 0.1453358497 | AW17: =-(AS24+AW24)*AU18 -> 0.1338619668 | BB17: =-(BC25+BG25)*BE22 -> 0.007965402466 | BG17: =-(BC25+BG25)*BE18 -> 0.007336554903 | BL17: =-(BM24+BQ24)*BO22 -> -0.2095593015 | BQ17: =-(BM24+BQ24)*BO18 -> -0.1930151461 | BV17: =-BW25*BY22 -> 0.03706147062 | CA17: =-BW25*BY18 -> 0.03413556504
D18: =-(E22+I22)*G22 -> -11.90688252 | G18: =(4*G13/CD15)/((4*G13/CD15)+(4*L21/L35)+(4*G27/CD26)) -> 0.3582479535 | I18: =-(E22+I22)*G18 -> -10.96686548 | N18: =-(O22+O23+S22+S23)*Q22 -> 1.443516386 | Q18: =(4*Q13/CD15)/((4*Q13/CD15)+(4*V21/V35)+(4*Q27/CD26)+(4*L21/L35)) -> 0.295120192 | S18: =-(O22+O23+S22+S23)*Q18 -> 1.329554566 | X18: =-(Y22+AC22)*AA22 -> 7.158534983 | AA18: =(4*AA13/CD15)/((4*AA13/CD15)+(4*AA27/CD26)+(4*V21/V35)+(4*AF21/AF35)) -> 0.2637354994 | AC18: =-(Y22+AC22)*AA18 -> 6.593387484 | AH18: =-(AI22+AM22+AI23+AM23)*AK22 -> -1.237681462 | AK18: =(4*AK13/CD15)/((4*AK13/CD15)+(4*AK27/CD26)+(4*AF21/AF35)+(4*AP21/AP35)) -> 0.2340459889 | AM18: =-(AI22+AM22+AI23+AM23)*AK18 -> -1.139969768 | AR18: =-(AS22+AW22)*AU22 -> 1.255669293 | AU18: =(4*AU13/CD15)/((4*AU13/CD15)+(4*AU27/CD26)+(4*AP21/AP35)+(4*AZ21/AZ35)) -> 0.2386335515 | AW18: =-(AS22+AW22)*AU18 -> 1.156537507 | BB18: =-(BC22+BG22+BC23+BG23)*BE22 -> 0.1132179737 | BE18: =(4*BE13/CD15)/((4*BE13/CD15)+(4*BE27/CD26)+(4*AZ21/AZ35)+(4*BJ21/BJ35)) -> 0.2415932371 | BG18: =-(BC22+BG22+BC23+BG23)*BE18 -> 0.1042797126 | BL18: =-(BM22+BQ22)*BO22 -> -2.16852324 | BO18: =(4*BO13/CD15)/((4*BO13/CD15)+(4*BO27/CD26)+(4*BJ21/BJ35)+(4*BT21/BT35)) -> 0.2350760945 | BQ18: =-(BM22+BQ22)*BO18 -> -1.997324037 | BV18: =-(BW22+CA22+BW23)*BY22 -> 1.460074733 | BY18: =(4*BY13/CD15)/((4*BY13/CD15)+(4*BY27/CD26)+(4*BT21/BT35)) -> 0.3098657075 | CA18: =-(BW22+CA22+BW23)*BY18 -> 1.344805676
B20: q = | C20: 10 | E20: KN/m | K20: q = | L20: 15 | N20: KN/m | U20: q = | V20: 10 | X20: KN/m | AE20: q = | AF20: 10 | AH20: KN/m | AO20: q = | AP20: 10 | AR20: KN/m | AY20: q = | AZ20: 5 | BB20: KN/m | BI20: q = | BJ20: 5 | BL20: KN/m | BS20: q = | BT20: 15 | BV20: KN/m | CA20: q = | CB20: 10 | CD20: KN/m
F21: 0 | H21: =(4*L21/L35)/((4*G13/CD15)+(4*L21/L35)+(4*G27/CD26)) -> 0.2527971256 | K21: I = | L21: =((L43*H45^3/12+H45*L43*(((H45*L43*H45/2+L50*(O46-H45)*((O46-H45)/2+H45))/(L43*H45+(O46-H45)*L50))-H45/2)^2+L50*(O46-H45)^3/12+L50*(O46-H45)*(O46-((H45*L43*H45/2+L50*(O46-H45)*((O46-H45)/2+H45))/(L43*H45+(O46-H45)*L50))-(O46-H45)/2)^2)*10000)*CQ5 -> 44.68333333 | N21: dm4 | P21: =(4*L21/L35)/((4*Q13/CD15)+(4*V21/V35)+(4*Q27/CD26)+(4*L21/L35)) -> 0.2082511164 | R21: =(4*V21/V35)/((4*Q13/CD15)+(4*V21/V35)+(4*Q27/CD26)+(4*L21/L35)) -> 0.1762124831 | U21: I = | V21: =((V43*R45^3/12+R45*V43*(((R45*V43*R45/2+V50*(Y46-R45)*((Y46-R45)/2+R45))/(V43*R45+(Y46-R45)*V50))-R45/2)^2+V50*(Y46-R45)^3/12+V50*(Y46-R45)*(Y46-((R45*V43*R45/2+V50*(Y46-R45)*((Y46-R45)/2+R45))/(V43*R45+(Y46-R45)*V50))-(Y46-R45)/2)^2)*10000)*CQ5 -> 44.68333333 | X21: dm4 | Z21: =(4*V21/V35)/((4*AA13/CD15)+(4*AA27/CD26)+(4*V21/V35)+(4*AF21/AF35)) -> 0.1574730855 | AB21: =(4*AF21/AF35)/((4*AA13/CD15)+(4*AA27/CD26)+(4*V21/V35)+(4*AF21/AF35)) -> 0.2924500158 | AE21: I = | AF21: =((AF43*AB45^3/12+AB45*AF43*(((AB45*AF43*AB45/2+AF50*(AI46-AB45)*((AI46-AB45)/2+AB45))/(AF43*AB45+(AI46-AB45)*AF50))-AB45/2)^2+AF50*(AI46-AB45)^3/12+AF50*(AI46-AB45)*(AI46-((AB45*AF43*AB45/2+AF50*(AI46-AB45)*((AI46-AB45)/2+AB45))/(AF43*AB45+(AI46-AB45)*AF50))-(AI46-AB45)/2)^2)*10000)*CQ5 -> 44.68333333 | AH21: dm4 | AJ21: =(4*AF21/AF35)/((4*AK13/CD15)+(4*AK27/CD26)+(4*AF21/AF35)+(4*AP21/AP35)) -> 0.2595280246 | AL21: =(4*AP21/AP35)/((4*AK13/CD15)+(4*AK27/CD26)+(4*AF21/AF35)+(4*AP21/AP35)) -> 0.2523189128 | AO21: I = | AP21: =((AP43*AL45^3/12+AL45*AP43*(((AL45*AP43*AL45/2+AP50*(AS46-AL45)*((AS46-AL45)/2+AL45))/(AP43*AL45+(AS46-AL45)*AP50))-AL45/2)^2+AP50*(AS46-AL45)^3/12+AP50*(AS46-AL45)*(AS46-((AL45*AP43*AL45/2+AP50*(AS46-AL45)*((AS46-AL45)/2+AL45))/(AP43*AL45+(AS46-AL45)*AP50))-(AS46-AL45)/2)^2)*10000)*CQ5 -> 44.68333333 | AR21: dm4 | AT21: =(4*AP21/AP35)/((4*AU13/CD15)+(4*AU27/CD26)+(4*AP21/AP35)+(4*AZ21/AZ35)) -> 0.257264645 | AV21: =(4*AZ21/AZ35)/((4*AU13/CD15)+(4*AU27/CD26)+(4*AP21/AP35)+(4*AZ21/AZ35)) -> 0.2450139476 | AY21: I = | AZ21: =((AZ43*AV45^3/12+AV45*AZ43*(((AV45*AZ43*AV45/2+AZ50*(BC46-AV45)*((BC46-AV45)/2+AV45))/(AZ43*AV45+(BC46-AV45)*AZ50))-AV45/2)^2+AZ50*(BC46-AV45)^3/12+AZ50*(BC46-AV45)*(BC46-((AV45*AZ43*AV45/2+AZ50*(BC46-AV45)*((BC46-AV45)/2+AV45))/(AZ43*AV45+(BC46-AV45)*AZ50))-(BC46-AV45)/2)^2)*10000)*CQ5 -> 44.68333333 | BB21: dm4 | BD21: =(4*AZ21/AZ35)/((4*BE13/CD15)+(4*BE27/CD26)+(4*AZ21/AZ35)+(4*BJ21/BJ35)) -> 0.248052767 | BF21: =(4*BJ21/BJ35)/((4*BE13/CD15)+(4*BE27/CD26)+(4*AZ21/AZ35)+(4*BJ21/BJ35)) -> 0.248052767 | BI21: I = | BJ21: =((BJ43*BF45^3/12+BF45*BJ43*(((BF45*BJ43*BF45/2+BJ50*(BM46-BF45)*((BM46-BF45)/2+BF45))/(BJ43*BF45+(BM46-BF45)*BJ50))-BF45/2)^2+BJ50*(BM46-BF45)^3/12+BJ50*(BM46-BF45)*(BM46-((BF45*BJ43*BF45/2+BJ50*(BM46-BF45)*((BM46-BF45)/2+BF45))/(BJ43*BF45+(BM46-BF45)*BJ50))-(BM46-BF45)/2)^2)*10000)*CQ5 -> 44.68333333 | BL21: dm4 | BN21: =(4*BJ21/BJ35)/((4*BO13/CD15)+(4*BO27/CD26)+(4*BJ21/BJ35)+(4*BT21/BT35)) -> 0.2413613742 | BP21: =(4*BT21/BT35)/((4*BO13/CD15)+(4*BO27/CD26)+(4*BJ21/BJ35)+(4*BT21/BT35)) -> 0.2683370572 | BS21: I = | BT21: =((BT43*BP45^3/12+BP45*BT43*(((BP45*BT43*BP45/2+BT50*(BW46-BP45)*((BW46-BP45)/2+BP45))/(BT43*BP45+(BW46-BP45)*BT50))-BP45/2)^2+BT50*(BW46-BP45)^3/12+BT50*(BW46-BP45)*(BW46-((BP45*BT43*BP45/2+BT50*(BW46-BP45)*((BW46-BP45)/2+BP45))/(BT43*BP45+(BW46-BP45)*BT50))-(BW46-BP45)/2)^2)*10000)*CQ5 -> 44.68333333 | BV21: dm4 | BX21: =(4*BT21/BT35)/((4*BY13/CD15)+(4*BY27/CD26)+(4*BT21/BT35)) -> 0.3537086672 | BZ21: 0
E22: =-C20*E35*E35/2 -> -7.2 | G22: =(4*G27/CD26)/((4*G13/CD15)+(4*L21/L35)+(4*G27/CD26)) -> 0.3889549209 | I22: =L20*L35^2/12 -> 37.8125 | O22: =-L20*L35^2/12 -> -37.8125 | Q22: =(4*Q27/CD26)/((4*Q13/CD15)+(4*V21/V35)+(4*Q27/CD26)+(4*L21/L35)) -> 0.3204162085 | S22: =V20*V35^2/12 -> 35.20833333 | Y22: =-V20*V35^2/12 -> -35.20833333 | AA22: =(4*AA27/CD26)/((4*AA13/CD15)+(4*AA27/CD26)+(4*V21/V35)+(4*AF21/AF35)) -> 0.2863413993 | AC22: =AF20*AF35^2/12 -> 10.20833333 | AI22: =-AF20*AF35^2/12 -> -10.20833333 | AK22: =(4*AK27/CD26)/((4*AK13/CD15)+(4*AK27/CD26)+(4*AF21/AF35)+(4*AP21/AP35)) -> 0.2541070737 | AM22: =AP20*AP35^2/12 -> 10.8 | AS22: =-AP20*AP35^2/12 -> -10.8 | AU22: =(4*AU27/CD26)/((4*AU13/CD15)+(4*AU27/CD26)+(4*AP21/AP35)+(4*AZ21/AZ35)) -> 0.2590878559 | AW22: =AZ20*AZ35^2/12 -> 5.9535 | BC22: =-AZ20*AZ35^2/12 -> -5.9535 | BE22: =(4*BE27/CD26)/((4*BE13/CD15)+(4*BE27/CD26)+(4*AZ21/AZ35)+(4*BJ21/BJ35)) -> 0.2623012288 | BG22: =BJ20*BJ35^2/12 -> 5.9535 | BM22: =-BJ20*BJ35^2/12 -> -5.9535 | BO22: =(4*BO27/CD26)/((4*BO13/CD15)+(4*BO27/CD26)+(4*BJ21/BJ35)+(4*BT21/BT35)) -> 0.255225474 | BQ22: =BT20*BT35^2/12 -> 14.45 | BW22: =-BT20*BT35^2/12 -> -14.45 | BY22: =(4*BY27/CD26)/((4*BY13/CD15)+(4*BY27/CD26)+(4*BT21/BT35)) -> 0.3364256253 | CA22: =CB20*BZ35*BZ35/2 -> 11.25
I23: =-(E22+I22)*H21 -> -7.738752007 | O23: =+I23/2 -> -3.869376003 | S23: =+Y23/2 -> 1.968413568 | Y23: =-(Y22+AC22)*Z21 -> 3.936827136 | AC23: =-(Y22+AC22)*AB21 -> 7.311250396 | AI23: =+AC23/2 -> 3.655625198 | AM23: =+AS23/2 -> 0.6234165511 | AS23: =-(AS22+AW22)*AT21 -> 1.246833102 | AW23: =-(AS22+AW22)*AV21 -> 1.187460097 | BC23: =+AW23/2 -> 0.5937300486 | BG23: =+BM23/2 -> -1.025363458 | BM23: =-(BM22+BQ22)*BN21 -> -2.050726916 | BQ23: =-(BM22+BQ22)*BP21 -> -2.279925807 | BW23: =+BQ23/2 -> -1.139962903
I24: =+O24/2 -> 0.4690990824 | O24: =-(O22+O23+S22+S23)*P21 -> 0.9381981648 | S24: =-(O22+O23+S22+S23)*R21 -> 0.7938599856 | Y24: =+S24/2 -> 0.3969299928 | AC24: =+AI24/2 -> -0.6320426668 | AI24: =-(AI22+AM22+AI23+AM23)*AJ21 -> -1.264085334 | AM24: =-(AI22+AI23+AM22+AM23)*AL21 -> -1.228971852 | AS24: =+AM24/2 -> -0.614485926 | AW24: =+BC24/2 -> 0.05353393077 | BC24: =-(BC22+BG22+BC23+BG23)*BD21 -> 0.1070678615 | BG24: =-(BC22+BC23+BG22+BG23)*BF21 -> 0.1070678615 | BM24: =+BG24/2 -> 0.05353393077 | BQ24: =+BW24/2 -> 0.7675412471 | BW24: =-(BW22+CA22+BW23)*BX21 -> 1.535082494
G25: dm4 | I25: =-I24*H21 -> -0.1185868996 | O25: =+I25/2 -> -0.05929344982 | Q25: dm4 | S25: =+Y25/2 -> 0.0185119591 | Y25: =-(Y24+AC24)*Z21 -> 0.03702391819 | AA25: dm4 | AC25: =-(Y24+AC24)*AB21 -> 0.06875870522 | AI25: =+AC25/2 -> 0.03437935261 | AK25: dm4 | AM25: =+AS25/2 -> 0.07215655797 | AS25: =-(AS24+AW24)*AT21 -> 0.1443131159 | AU25: dm4 | AW25: =-(AS24+AW24)*AV21 -> 0.1374410628 | BC25: =+AW25/2 -> 0.0687205314 | BE25: dm4 | BG25: =+BM25/2 -> -0.09908791664 | BM25: =-(BM24+BQ24)*BN21 -> -0.1981758333 | BO25: dm4 | BQ25: =-(BM24+BQ24)*BP21 -> -0.220324897 | BW25: =+BQ25/2 -> -0.1101624485 | BY25: dm4 | CD25: m
I26: =+O26/2 -> 0.004246395485 | O26: =-(O25+S25)*P21 -> 0.008492790971 | S26: =-(O25+S25)*R21 -> 0.007186207745 | Y26: =+S26/2 -> 0.003593103872 | AC26: =+AI26/2 -> -0.01382452721 | AI26: =-(AI25+AM25)*AJ21 -> -0.02764905442 | AM26: =-(AI25+AM25)*AL21 -> -0.02688102513 | AS26: =+AM26/2 -> -0.01344051257 | AW26: =+BC26/2 -> 0.003766356968 | BC26: =-(BC25+BG25)*BD21 -> 0.007532713937 | BG26: =-(BC25+BG25)*BF21 -> 0.007532713937 | BM26: =+BG26/2 -> 0.003766356968 | BQ26: =+BW26/2 -> 0.01948270642 | BW26: =-BW25*BX21 -> 0.03896541284 | CD26: 3.5
G27: =(I38*G41^3/12*10000)*CQ6 -> 43.75 | I27: =-I26*H21 -> -0.001073476573 | O27: =+I27/2 -> -0.0005367382864 | Q27: =(S38*Q41^3/12*10000)*CQ6 -> 43.75 | S27: =+Y27/2 -> 0.0008055869008 | Y27: =-(Y26+AC26)*Z21 -> 0.001611173802 | AA27: =(AC38*AA41^3/12*10000)*CQ6 -> 43.75 | AC27: =-(Y26+AC26)*AB21 -> 0.002992179917 | AI27: =+AC27/2 -> 0.001496089959 | AK27: =(AM38*AK41^3/12*10000)*CQ6 -> 43.75 | AM27: =+AS27/2 -> 0.001244409103 | AS27: =-(AS26+AW26)*AT21 -> 0.002488818206 | AU27: =(AW38*AU41^3/12*10000)*CQ6 -> 43.75 | AW27: =-(AS26+AW26)*AV21 -> 0.002370303053 | BC27: =+AW27/2 -> 0.001185151526 | BE27: =(BG38*BE41^3/12*10000)*CQ6 -> 43.75 | BG27: =+BM27/2 -> -0.002805712944 | BM27: =-(BM26+BQ26)*BN21 -> -0.005611425888 | BO27: =(BQ38*BO41^3/12*10000)*CQ6 -> 43.75 | BQ27: =-(BM26+BQ26)*BP21 -> -0.006238585252 | BW27: =+BQ27/2 -> -0.003119292626 | BY27: =(CA38*BY41^3/12*10000)*CQ6 -> 43.75
I28: =+O28/2 -> -2.799401204e-05 | O28: =-(O27+S27)*P21 -> -5.598802408e-05 | S28: =-(O27+S27)*R21 -> -4.737448191e-05 | Y28: =+S28/2 -> -2.368724096e-05 | AC28: =+AI28/2 -> -0.0003556181539 | AI28: =-(AI27+AM27)*AJ21 -> -0.0007112363078 | AM28: =-(AI27+AM27)*AL21 -> -0.0006914797437 | AS28: =+AM28/2 -> -0.0003457398718 | AW28: =+BC28/2 -> 0.0002009923719 | BC28: =-(BC27+BG27)*BD21 -> 0.0004019847438 | BG28: =-(BC27+BG27)*BF21 -> 0.0004019847438 | BM28: =+BG28/2 -> 0.0002009923719 | BQ28: =+BW28/2 -> 0.0005516604187 | BW28: =-BW27*BX21 -> 0.001103320837
I29: =-I28*H21 -> 7.076805777e-06 | O29: =+I29/2 -> 3.538402889e-06 | S29: =+Y29/2 -> 2.986519543e-05 | Y29: =-(Y28+AC28)*Z21 -> 5.973039086e-05 | AC29: =-(Y28+AC28)*AB21 -> 0.0001109278687 | AI29: =+AC29/2 -> 5.546393437e-05 | AM29: =+AS29/2 -> 1.86192071e-05 | AS29: =-(AS28+AW28)*AT21 -> 3.723841419e-05 | AW29: =-(AS28+AW28)*AV21 -> 3.546515637e-05 | BC29: =+AW29/2 -> 1.773257819e-05 | BG29: =+BM29/2 -> -9.083065593e-05 | BM29: =-(BM28+BQ28)*BN21 -> -0.0001816613119 | BQ29: =-(BM28+BQ28)*BP21 -> -0.0002019646349 | BW29: =+BQ29/2 -> -0.0001009823175
G30: I = | I30: =+O30/2 -> -3.47816832e-06 | O30: =-(O29+S29)*P21 -> -6.95633664e-06 | Q30: I = | S30: =-(O29+S29)*R21 -> -5.886131003e-06 | Y30: =+S30/2 -> -2.943065502e-06 | AA30: I = | AC30: =+AI30/2 -> -9.61332568e-06 | AI30: =-(AI29+AM29)*AJ21 -> -1.922665136e-05 | AK30: I = | AM30: =-(AI29+AM29)*AL21 -> -1.869257771e-05 | AS30: =+AM30/2 -> -9.346288855e-06 | AU30: I = | AW30: =+BC30/2 -> 9.066090224e-06 | BC30: =-(BC29+BG29)*BD21 -> 1.813218045e-05 | BE30: I = | BG30: =-(BC29+BG29)*BF21 -> 1.813218045e-05 | BM30: =+BG30/2 -> 9.066090224e-06 | BO30: I = | BQ30: =+BW30/2 -> 1.785916046e-05 | BW30: =-BW29*BX21 -> 3.571832092e-05 | BY30: I =
I31: =-I30*H21 -> 8.792709536e-07 | O31: =SUM(O22:P30) -> -40.79507464 | S31: =SUM(S22:T30) -> 37.99708725 | Y31: =-(Y30+AC30)*Z21 -> 1.977293662e-06 | AC31: =-(Y30+AC30)*AB21 -> 3.6721168e-06 | AI31: =SUM(AI22:AJ30) -> -7.80924208 | AM31: =SUM(AM22:AN30) -> 10.24027309 | AS31: =-(AS30+AW30)*AT21 -> 7.208520148e-08 | AW31: =-(AS30+AW30)*AV21 -> 6.865257284e-08 | BC31: =SUM(BC22:BD30) -> -5.174825843 | BG31: =SUM(BG22:BH30) -> 4.941172774 | BM31: =-(BM30+BQ30)*BN21 -> -6.498715507e-06 | BQ31: =-(BM30+BQ30)*BP21 -> -7.225042534e-06 | BW31: =SUM(BW22:BX30) -> -14.12815868
I32: =SUM(I22:J31) -> 30.42740958 | Y32: =SUM(Y22:Z31) -> -30.83231293 | AC32: =SUM(AC22:AD31) -> 16.94521679 | AS32: =SUM(AS22:AT31) -> -10.03460918 | AW32: =SUM(AW22:AX31) -> 7.338317343 | BM32: =SUM(BM22:BN31) -> -8.150691989 | BQ32: =SUM(BQ22:BR31) -> 12.73089499
E35: 1.2 | G35: m | L35: 5.5 | N35: m | V35: 6.5 | X35: m | AF35: 3.5 | AH35: m | AP35: 3.6 | AR35: m | AZ35: 3.78 | BB35: m | BJ35: 3.78 | BL35: m | BT35: 3.4 | BV35: m | BZ35: 1.5 | CB35: m
I37: m | S37: m | AC37: m | AM37: m | AW37: m | BG37: m | BQ37: m | CA37: m
I38: 0.6 | S38: 0.6 | AC38: 0.6 | AM38: 0.6 | AW38: 0.6 | BG38: 0.6 | BQ38: 0.6 | CA38: 0.6
G41: 0.5 | I41: m | Q41: 0.5 | S41: m | AA41: 0.5 | AC41: m | AK41: 0.5 | AM41: m | AU41: 0.5 | AW41: m | BE41: 0.5 | BG41: m | BO41: 0.5 | BQ41: m | BY41: 0.5 | CA41: m
L43: 1.2 | N43: m | V43: 1.2 | X43: m | AF43: 1.2 | AH43: m | AP43: 1.2 | AR43: m | AZ43: 1.2 | BB43: m | BJ43: 1.2 | BL43: m | BT43: 1.2 | BV43: m
H45: 0.1 | J45: m | O45: m | R45: 0.1 | T45: m | Y45: m | AB45: 0.1 | AD45: m | AI45: m | AL45: 0.1 | AN45: m | AS45: m | AV45: 0.1 | AX45: m | BC45: m | BF45: 0.1 | BH45: m | BM45: m | BP45: 0.1 | BR45: m | BW45: m
O46: 0.7 | Y46: 0.7 | AI46: 0.7 | AS46: 0.7 | BC46: 0.7 | BM46: 0.7 | BW46: 0.7
L50: 0.25 | N50: m | V50: 0.25 | X50: m | AF50: 0.25 | AH50: m | AP50: 0.25 | AR50: m | AZ50: 0.25 | BB50: m | BJ50: 0.25 | BL50: m | BT50: 0.25 | BV50: m
D52: =IF(I13<0,I13/2,"") -> -5.568214625 | J52: =IF(I13>0,I13/2,"") ->  | N52: =IF(S14<0,S14/2,"") ->  | T52: =IF(S14>0,S14/2,"") -> 0.6707504032 | X52: =IF(AC13<0,AC13/2,"") ->  | AD52: =IF(AC13>0,AC13/2,"") -> 3.32909839 | AH52: =IF(AM14<0,AM14/2,"") -> -0.5827814061 | AN52: =IF(AM14>0,AM14/2,"") ->  | AR52: =IF(AW13<0,AW13/2,"") ->  | AX52: =IF(AW13>0,AW13/2,"") -> 0.6463713303 | BB52: =IF(BG14<0,BG14/2,"") ->  | BH52: =IF(BG14>0,BG14/2,"") -> 0.0560127221 | BL52: =IF(BQ13<0,BQ13/2,"") -> -1.097993871 | BR52: =IF(BQ13>0,BQ13/2,"") ->  | BV52: =IF(CA14<0,CA14/2,"") ->  | CB52: =IF(CA14>0,CA14/2,"") -> 0.6899695467
J55: moment diyagramı (KNm)
R56: =-S31 -> -37.99708725
H57: =-I32 -> -30.42740958 | Z57: =Y32 -> -30.83231293 | AB57: =-AC32 -> -16.94521679 | AJ57: =AI31 -> -7.80924208 | AL57: =-AM31 -> -10.24027309 | AT57: =AS32 -> -10.03460918 | AV57: =-AW32 -> -7.338317343 | BD57: =BC31 -> -5.174825843 | BF57: =-BG31 -> -4.941172774 | BN57: =BM32 -> -8.150691989 | BP57: =-BQ32 -> -12.73089499 | BX57: =BW31 -> -14.12815868
P58: =O31 -> -40.79507464
H59: =IF(E22=0,"",+E22) -> -7.2 | BZ59: =IF(CA22=0,"",-CA22) -> -11.25
E61: =IF(I13>0,-I13,"") ->  | I61: =IF(I13<0,-I13,"") -> 11.13642925 | O61: =IF(S14>0,-S14,"") -> -1.341500806 | S61: =IF(S14<0,-S14,"") ->  | Y61: =IF(AC13>0,-AC13,"") -> -6.65819678 | AC61: =IF(AC13<0,-AC13,"") ->  | AI61: =IF(AM14>0,-AM14,"") ->  | AM61: =IF(AM14<0,-AM14,"") -> 1.165562812 | AS61: =IF(AW13>0,-AW13,"") -> -1.292742661 | AW61: =IF(AW13<0,-AW13,"") ->  | BC61: =IF(BG14>0,-BG14,"") -> -0.1120254442 | BG61: =IF(BG14<0,-BG14,"") ->  | BM61: =IF(BQ13>0,-BQ13,"") ->  | BQ61: =IF(BQ13<0,-BQ13,"") -> 2.195987742 | BW61: =IF(CA14>0,-CA14,"") -> -1.379939093 | CA61: =IF(CA14<0,-CA14,"") -> 
E62: =IF(D13<0,D13,"") -> -12.09098033 | I62: =IF(D13>0,D13,"") ->  | O62: =IF(N14<0,N14,"") ->  | S62: =IF(N14>0,N14,"") -> 1.45648659 | Y62: =IF(X13<0,X13,"") ->  | AC62: =IF(X13>0,X13,"") -> 7.228899361 | AI62: =IF(AH14<0,AH14,"") -> -1.265468196 | AM62: =IF(AH14>0,AH14,"") ->  | AS62: =IF(AR13<0,AR13,"") ->  | AW62: =IF(AR13>0,AR13,"") -> 1.403549174 | BC62: =IF(BB14<0,BB14,"") ->  | BG62: =IF(BB14>0,BB14,"") -> 0.1216276251 | BM62: =IF(BL13<0,BL13,"") -> -2.384215263 | BQ62: =IF(BL13>0,BL13,"") ->  | BW62: =IF(BV14<0,BV14,"") ->  | CA62: =IF(BV14>0,BV14,"") -> 1.498219587
L65: =(((I32-(-O31))/L35+L20*L35*0.5)^2/(2*L20))-I32 -> 21.22595249 | V65: =(((S31-(-Y32))/V35+V20*V35*0.5)^2/(2*V20))-S31 -> 18.4585502 | AF65: =(((AC32-(-AI31))/AF35+AF20*AF35*0.5)^2/(2*AF20))-AC32 -> 3.275948255 | AP65: =(((AM31-(-AS32))/AP35+AP20*AP35*0.5)^2/(2*AP20))-AM31 -> 6.062722052 | AZ65: =(((AW32-(-BC31))/AZ35+AZ20*AZ35*0.5)^2/(2*AZ20))-AW32 -> 2.706437116 | BJ65: =(((BG31-(-BM32))/BJ35+BJ20*BJ35*0.5)^2/(2*BJ20))-BG31 -> 2.45641116 | BT65: =(((BQ32-(-BW31))/BT35+BT20*BT35*0.5)^2/(2*BT20))-BQ32 -> 8.251102764
D74: =IF(D13>0,-D13/2,"") ->  | J74: =IF(D13<0,-D13/2,"") -> 6.045490164 | N74: =IF(N14>0,-N14/2,"") -> -0.7282432949 | T74: =IF(N14<0,-N14/2,"") ->  | X74: =IF(X13>0,-X13/2,"") -> -3.614449681 | AD74: =IF(X13<0,-X13/2,"") ->  | AH74: =IF(AH14>0,-AH14/2,"") ->  | AN74: =IF(AH14<0,-AH14/2,"") -> 0.632734098 | AR74: =IF(AR13>0,-AR13/2,"") -> -0.7017745871 | AX74: =IF(AR13<0,-AR13/2,"") ->  | BB74: =IF(BB14>0,-BB14/2,"") -> -0.06081381256 | BH74: =IF(BB14<0,-BB14/2,"") ->  | BL74: =IF(BL13>0,-BL13/2,"") ->  | BR74: =IF(BL13<0,-BL13/2,"") -> 1.192107632 | BV74: =IF(BV14>0,-BV14/2,"") -> -0.7491097936 | CB74: =IF(BV14<0,-BV14/2,"") -> 
D77: =IF(I13<0,(I13+I13/2)/$CD$15,"") -> -4.395958915 | J77: =IF(I13>0,(I13+I13/2)/$CD$15,"") ->  | N77: =IF(S14<0,(S14+S14/2)/$CD$15,"") ->  | T77: =IF(S14>0,(S14+S14/2)/$CD$15,"") -> 0.529539792 | X77: =IF(AC13<0,(AC13+AC13/2)/$CD$15,"") ->  | AD77: =IF(AC13>0,(AC13+AC13/2)/$CD$15,"") -> 2.628235571 | AH77: =IF(AM14<0,(AM14+AM14/2)/$CD$15,"") -> -0.4600905837 | AN77: =IF(AM14>0,(AM14+AM14/2)/$CD$15,"") ->  | AR77: =IF(AW13<0,(AW13+AW13/2)/$CD$15,"") ->  | AX77: =IF(AW13>0,(AW13+AW13/2)/$CD$15,"") -> 0.5102931555 | BB77: =IF(BG14<0,(BG14+BG14/2)/$CD$15,"") ->  | BH77: =IF(BG14>0,(BG14+BG14/2)/$CD$15,"") -> 0.04422057008 | BL77: =IF(BQ13<0,(BQ13+BQ13/2)/$CD$15,"") -> -0.8668372667 | BR77: =IF(BQ13>0,(BQ13+BQ13/2)/$CD$15,"") ->  | BV77: =IF(CA14<0,(CA14+CA14/2)/$CD$15,"") ->  | CB77: =IF(CA14>0,(CA14+CA14/2)/$CD$15,"") -> 0.5447128
J80: kesme kuvveti diyagramı (KN)
H84: =L20*L35+P89 -> 39.36496999 | R84: =V20*V35+Z89 -> 33.60227297 | AB84: =AF20*AF35+AJ89 -> 20.11027849 | AL84: =AP20*AP35+AT89 -> 18.05712886 | AV84: =AZ20*AZ35+BD89 -> 10.02235225 | BF84: =BJ20*BJ35+BN89 -> 8.600920843 | BP84: =BT20*BT35+BX89 -> 25.08904009 | BZ84: =IF(CA22=0,"",CB20*BZ35) -> 15
D86: =IF(D77<0,D77,"") -> -4.395958915 | J86: =IF(J77>0,J77,"") ->  | N86: =IF(N77<0,N77,"") ->  | T86: =IF(T77>0,T77,"") -> 0.529539792 | X86: =IF(X77<0,X77,"") ->  | AD86: =IF(AD77>0,AD77,"") -> 2.628235571 | AH86: =IF(AH77<0,AH77,"") -> -0.4600905837 | AN86: =IF(AN77>0,AN77,"") ->  | AR86: =IF(AR77<0,AR77,"") ->  | AX86: =IF(AX77>0,AX77,"") -> 0.5102931555 | BB86: =IF(BB77<0,BB77,"") ->  | BH86: =IF(BH77>0,BH77,"") -> 0.04422057008 | BL86: =IF(BL77<0,BL77,"") -> -0.8668372667 | BR86: =IF(BR77>0,BR77,"") ->  | BV86: =IF(BV77<0,BV77,"") ->  | CB86: =IF(CB77>0,CB77,"") -> 0.5447128
D87: =IF(D99<0,D99,"") -> -5.181848712 | J87: =IF(J99>0,J99,"") ->  | N87: =IF(N99<0,N99,"") ->  | T87: =IF(T99>0,T99,"") -> 0.6242085385 | X87: =IF(X99<0,X99,"") ->  | AD87: =IF(AD99>0,AD99,"") -> 3.098099726 | AH87: =IF(AH99<0,AH99,"") -> -0.5423435126 | AN87: =IF(AN99>0,AN99,"") ->  | AR87: =IF(AR99<0,AR99,"") ->  | AX87: =IF(AX99>0,AX99,"") -> 0.6015210747 | BB87: =IF(BB99<0,BB99,"") ->  | BH87: =IF(BH99>0,BH99,"") -> 0.05212612505 | BL87: =IF(BL99<0,BL99,"") -> -1.021806541 | BR87: =IF(BR99>0,BR99,"") ->  | BV87: =IF(BV99<0,BV99,"") ->  | CB87: =IF(CB99>0,CB99,"") -> 0.6420941088
P89: =-(0.5*L20*L35^2+(-O31)-I32)/L35 -> -43.13503001 | Z89: =-(0.5*V20*V35^2+(-Y32)-S31)/V35 -> -31.39772703 | AJ89: =-(0.5*AF20*AF35^2+(-AI31)-AC32)/AF35 -> -14.88972151 | AT89: =-(0.5*AP20*AP35^2+(-AS32)-AM31)/AP35 -> -17.94287114 | BD89: =-(0.5*AZ20*AZ35^2+(-BC31)-AW32)/AZ35 -> -8.877647751 | BN89: =-(0.5*BJ20*BJ35^2+(-BM32)-BG31)/BJ35 -> -10.29907916 | BX89: =-(0.5*BT20*BT35^2+(-BW31)-BQ32)/BT35 -> -25.91095991
F90: =IF(E22=0,"",-C20*E35) -> -12
J91: =((L20*L35-((0.5*L20*L35^2+(-O31)-I32)/L35))*L35)/((L20*L35-((0.5*L20*L35^2+(-O31)-I32)/L35))+((0.5*L20*L35^2+(-O31)-I32)/L35)) -> 2.624331333 | L91: m | T91: =((V20*V35-((0.5*V20*V35^2+(-Y32)-S31)/V35))*V35)/((V20*V35-((0.5*V20*V35^2+(-Y32)-S31)/V35))+((0.5*V20*V35^2+(-Y32)-S31)/V35)) -> 3.360227297 | V91: m | AD91: =((AF20*AF35-((0.5*AF20*AF35^2+(-AI31)-AC32)/AF35))*AF35)/((AF20*AF35-((0.5*AF20*AF35^2+(-AI31)-AC32)/AF35))+((0.5*AF20*AF35^2+(-AI31)-AC32)/AF35)) -> 2.011027849 | AF91: m | AN91: =((AP20*AP35-((0.5*AP20*AP35^2+(-AS32)-AM31)/AP35))*AP35)/((AP20*AP35-((0.5*AP20*AP35^2+(-AS32)-AM31)/AP35))+((0.5*AP20*AP35^2+(-AS32)-AM31)/AP35)) -> 1.805712886 | AP91: m | AX91: =((AZ20*AZ35-((0.5*AZ20*AZ35^2+(-BC31)-AW32)/AZ35))*AZ35)/((AZ20*AZ35-((0.5*AZ20*AZ35^2+(-BC31)-AW32)/AZ35))+((0.5*AZ20*AZ35^2+(-BC31)-AW32)/AZ35)) -> 2.00447045 | AZ91: m | BH91: =((BJ20*BJ35-((0.5*BJ20*BJ35^2+(-BM32)-BG31)/BJ35))*BJ35)/((BJ20*BJ35-((0.5*BJ20*BJ35^2+(-BM32)-BG31)/BJ35))+((0.5*BJ20*BJ35^2+(-BM32)-BG31)/BJ35)) -> 1.720184169 | BJ91: m | BR91: =((BT20*BT35-((0.5*BT20*BT35^2+(-BW31)-BQ32)/BT35))*BT35)/((BT20*BT35-((0.5*BT20*BT35^2+(-BW31)-BQ32)/BT35))+((0.5*BT20*BT35^2+(-BW31)-BQ32)/BT35)) -> 1.672602673 | BT91: m
D99: =IF(D13<0,(D13+D13/2)/$CD$26,"") -> -5.181848712 | J99: =IF(D13>0,(D13+D13/2)/$CD$26,"") ->  | N99: =IF(N14<0,(N14+N14/2)/$CD$26,"") ->  | T99: =IF(N14>0,(N14+N14/2)/$CD$26,"") -> 0.6242085385 | X99: =IF(X13<0,(X13+X13/2)/$CD$26,"") ->  | AD99: =IF(X13>0,(X13+X13/2)/$CD$26,"") -> 3.098099726 | AH99: =IF(AH14<0,(AH14+AH14/2)/$CD$26,"") -> -0.5423435126 | AN99: =IF(AH14>0,(AH14+AH14/2)/$CD$26,"") ->  | AR99: =IF(AR13<0,(AR13+AR13/2)/$CD$26,"") ->  | AX99: =IF(AR13>0,(AR13+AR13/2)/$CD$26,"") -> 0.6015210747 | BB99: =IF(BB14<0,(BB14+BB14/2)/$CD$26,"") ->  | BH99: =IF(BB14>0,(BB14+BB14/2)/$CD$26,"") -> 0.05212612505 | BL99: =IF(BL13<0,(BL13+BL13/2)/$CD$26,"") -> -1.021806541 | BR99: =IF(BL13>0,(BL13+BL13/2)/$CD$26,"") ->  | BV99: =IF(BV14<0,(BV14+BV14/2)/$CD$26,"") ->  | CB99: =IF(BV14>0,(BV14+BV14/2)/$CD$26,"") -> 0.6420941088
B101: kiriş faydalı yükseklik d (m) | H101: =O46-M3 -> 0.67 | R101: =Y46-M3 -> 0.67 | AB101: =AI46-M3 -> 0.67 | AL101: =AS46-M3 -> 0.67 | AV101: =BC46-M3 -> 0.67 | BF101: =BM46-M3 -> 0.67 | BP101: =BW46-M3 -> 0.67
B103: kiriş kolon yüzünden d mesafede kesme kuvveti (KN) | H103: =(L20*L35-((0.5*L20*L35^2-O31-I32)/L35))-L20*(MIN(G4,G41)/2+H101) -> 25.56496999 | O103: =((0.5*L20*L35^2-O31-I32)/L35)-L20*(MIN(Q4,Q41)/2+H101) -> 29.33503001 | R103: =(V20*V35-((0.5*V20*V35^2-Y32-S31)/V35))-V20*(MIN(Q4,Q41)/2+R101) -> 24.40227297 | Y103: =((0.5*V20*V35^2-Y32-S31)/V35)-V20*(MIN(AA4,AA41)/2+R101) -> 22.19772703 | AB103: =(AF20*AF35-((0.5*AF20*AF35^2-AI31-AC32)/AF35))-AF20*(MIN(AA4,AA41)/2+AB101) -> 10.91027849 | AI103: =((0.5*AF20*AF35^2-AI31-AC32)/AF35)-AF20*(MIN(AK4,AK41)/2+AB101) -> 5.689721512 | AL103: =(AP20*AP35-((0.5*AP20*AP35^2-AS32-AM31)/AP35))-AP20*(MIN(AK4,AK41)/2+AL101) -> 8.857128864 | AS103: =((0.5*AP20*AP35^2-AS32-AM31)/AP35)-AP20*(MIN(AU4,AU41)/2+AL101) -> 8.742871136 | AV103: =(AZ20*AZ35-((0.5*AZ20*AZ35^2-BC31-AW32)/AZ35))-AZ20*(MIN(AU4,AU41)/2+AV101) -> 5.422352249 | BC103: =((0.5*AZ20*AZ35^2-BC31-AW32)/AZ35)-AZ20*(MIN(BE4,BE41)/2+AV101) -> 4.277647751 | BF103: =(BJ20*BJ35-((0.5*BJ20*BJ35^2-BM32-BG31)/BJ35))-BJ20*(MIN(BE4,BE41)/2+BF101) -> 4.000920843 | BM103: =((0.5*BJ20*BJ35^2-BM32-BG31)/BJ35)-BJ20*(MIN(BO4,BO41)/2+BF101) -> 5.699079157 | BP103: =(BT20*BT35-((0.5*BT20*BT35^2-BW31-BQ32)/BT35))-BT20*(MIN(BO4,BO41)/2+BP101) -> 11.28904009 | BW103: =((0.5*BT20*BT35^2-BW31-BQ32)/BT35)-BT20*(MIN(BY4,BY41)/2+BP101) -> 12.11095991
B105: kiriş kolon yüzünden 2*h mesafede kesme kuvveti (KN) | H105: =(L20*L35-((0.5*L20*L35^2-O31-I32)/L35))-L20*(MIN(G4,G41)/2+2*O46) -> 14.61496999 | O105: =((0.5*L20*L35^2-O31-I32)/L35)-L20*(MIN(Q4,Q41)/2+2*O46) -> 18.38503001 | R105: =(V20*V35-((0.5*V20*V35^2-Y32-S31)/V35))-V20*(MIN(Q4,Q41)/2+2*Y46) -> 17.10227297 | Y105: =((0.5*V20*V35^2-Y32-S31)/V35)-V20*(MIN(AA4,AA41)/2+2*Y46) -> 14.89772703 | AB105: =(AF20*AF35-((0.5*AF20*AF35^2-AI31-AC32)/AF35))-AF20*(MIN(AA4,AA41)/2+2*AI46) -> 3.610278488 | AI105: =((0.5*AF20*AF35^2-AI31-AC32)/AF35)-AF20*(MIN(AK4,AK41)/2+2*AI46) -> -1.610278488 | AL105: =(AP20*AP35-((0.5*AP20*AP35^2-AS32-AM31)/AP35))-AP20*(MIN(AK4,AK41)/2+2*AS46) -> 1.557128864 | AS105: =((0.5*AP20*AP35^2-AS32-AM31)/AP35)-AP20*(MIN(AU4,AU41)/2+2*AS46) -> 1.442871136 | AV105: =(AZ20*AZ35-((0.5*AZ20*AZ35^2-BC31-AW32)/AZ35))-AZ20*(MIN(AU4,AU41)/2+2*BC46) -> 1.772352249 | BC105: =((0.5*AZ20*AZ35^2-BC31-AW32)/AZ35)-AZ20*(MIN(BE4,BE41)/2+2*BC46) -> 0.6276477514 | BF105: =(BJ20*BJ35-((0.5*BJ20*BJ35^2-BM32-BG31)/BJ35))-BJ20*(MIN(BE4,BE41)/2+2*BM46) -> 0.3509208426 | BM105: =((0.5*BJ20*BJ35^2-BM32-BG31)/BJ35)-BJ20*(MIN(BO4,BO41)/2+2*BM46) -> 2.049079157 | BP105: =(BT20*BT35-((0.5*BT20*BT35^2-BW31-BQ32)/BT35))-BT20*(MIN(BO4,BO41)/2+2*BW46) -> 0.3390400924 | BW105: =((0.5*BT20*BT35^2-BW31-BQ32)/BT35)-BT20*(MIN(BY4,BY41)/2+2*BW46) -> 1.160959908
B107: kiriş kolon yüzü kesme kuvveti (KN) | H107: =(L20*L35-((0.5*L20*L35^2-O31-I32)/L35))-L20*MIN(G4,G41)/2 -> 35.61496999 | O107: =((0.5*L20*L35^2-O31-I32)/L35)-L20*MIN(Q4,Q41)/2 -> 39.38503001 | R107: =(V20*V35-((0.5*V20*V35^2-Y32-S31)/V35))-V20*MIN(Q4,Q41)/2 -> 31.10227297 | Y107: =((0.5*V20*V35^2-Y32-S31)/V35)-V20*MIN(AA4,AA41)/2 -> 28.89772703 | AB107: =(AF20*AF35-((0.5*AF20*AF35^2-AI31-AC32)/AF35))-AF20*MIN(AA4,AA41)/2 -> 17.61027849 | AI107: =((0.5*AF20*AF35^2-AI31-AC32)/AF35)-AF20*MIN(AK4,AK41)/2 -> 12.38972151 | AL107: =(AP20*AP35-((0.5*AP20*AP35^2-AS32-AM31)/AP35))-AP20*MIN(AK4,AK41)/2 -> 15.55712886 | AS107: =((0.5*AP20*AP35^2-AS32-AM31)/AP35)-AP20*MIN(AU4,AU41)/2 -> 15.44287114 | AV107: =(AZ20*AZ35-((0.5*AZ20*AZ35^2-BC31-AW32)/AZ35))-AZ20*MIN(AU4,AU41)/2 -> 8.772352249 | BC107: =((0.5*AZ20*AZ35^2-BC31-AW32)/AZ35)-AZ20*MIN(BE4,BE41)/2 -> 7.627647751 | BF107: =(BJ20*BJ35-((0.5*BJ20*BJ35^2-BM32-BG31)/BJ35))-BJ20*MIN(BE4,BE41)/2 -> 7.350920843 | BM107: =((0.5*BJ20*BJ35^2-BM32-BG31)/BJ35)-BJ20*MIN(BO4,BO41)/2 -> 9.049079157 | BP107: =(BT20*BT35-((0.5*BT20*BT35^2-BW31-BQ32)/BT35))-BT20*MIN(BO4,BO41)/2 -> 21.33904009 | BW107: =((0.5*BT20*BT35^2-BW31-BQ32)/BT35)-BT20*MIN(BY4,BY41)/2 -> 22.16095991
B109: kiriş kolon yüzü moment (KNm) | H109: =+I32-(L20*L35-((0.5*L20*L35^2-O31-I32)/L35))*MIN(G4,G41)/3 -> 23.86658125 | O109: =-O31-((0.5*L20*L35^2-O31-I32)/L35)*MIN(Q4,Q41)/3 -> 33.60590297 | R109: =+S31-(V20*V35-((0.5*V20*V35^2-Y32-S31)/V35))*MIN(Q4,Q41)/3 -> 32.39670842 | Y109: =-Y32-((0.5*V20*V35^2-Y32-S31)/V35)*MIN(AA4,AA41)/3 -> 25.59935843 | AB109: =+AC32-(AF20*AF35-((0.5*AF20*AF35^2-AI31-AC32)/AF35))*MIN(AA4,AA41)/3 -> 13.59350371 | AI109: =-AI31-((0.5*AF20*AF35^2-AI31-AC32)/AF35)*MIN(AK4,AK41)/3 -> 5.327621828 | AL109: =+AM31-(AP20*AP35-((0.5*AP20*AP35^2-AS32-AM31)/AP35))*MIN(AK4,AK41)/3 -> 7.230751611 | AS109: =-AS32-((0.5*AP20*AP35^2-AS32-AM31)/AP35)*MIN(AU4,AU41)/3 -> 7.044130655 | AV109: =+AW32-(AZ20*AZ35-((0.5*AZ20*AZ35^2-BC31-AW32)/AZ35))*MIN(AU4,AU41)/3 -> 5.667925302 | BC109: =-BC31-((0.5*AZ20*AZ35^2-BC31-AW32)/AZ35)*MIN(BE4,BE41)/3 -> 3.695217885 | BF109: =+BG31-(BJ20*BJ35-((0.5*BJ20*BJ35^2-BM32-BG31)/BJ35))*MIN(BE4,BE41)/3 -> 3.507685967 | BM109: =-BM32-((0.5*BJ20*BJ35^2-BM32-BG31)/BJ35)*MIN(BO4,BO41)/3 -> 6.434178796 | BP109: =+BQ32-(BT20*BT35-((0.5*BT20*BT35^2-BW31-BQ32)/BT35))*MIN(BO4,BO41)/3 -> 8.549388312 | BW109: =-BW31-((0.5*BT20*BT35^2-BW31-BQ32)/BT35)*MIN(BY4,BY41)/3 -> 9.809665363
